Workbook

Sheet ورقة1
B1: المقاول | C1: عدد اللترات | D1: السعر | E1: القيمة | F1: عدد اللترات | G1: القيمة
B2: الشيخ رجب | C2: =SUMIF('توزيع يومى على المقاولين'!$H$7:$I$22000,B2,'توزيع يومى على المقاولين'!$I$7:$I$22000) -> 800 | D2: =IFERROR(IF(E2<>"",E2/C2,""),"") -> 7.05 | E2: =SUMIF('توزيع يومى على المقاولين'!$H$7:$K$22000,$B2,'توزيع يومى على المقاولين'!$K$7:$K$22000) -> 5640 | F2: =SUM(C2:C53) -> 342959 | G2: =SUM(E2:E53) -> 2417860.95
B3: رجب | C3: =SUMIF('توزيع يومى على المقاولين'!$H$7:$I$22000,B3,'توزيع يومى على المقاولين'!$I$7:$I$22000) -> 12881 | D3: =IFERROR(IF(E3<>"",E3/C3,""),"") -> 7.05 | E3: =SUMIF('توزيع يومى على المقاولين'!$H$7:$K$22000,$B3,'توزيع يومى على المقاولين'!$K$7:$K$22000) -> 90811.05
B4: السيد | C4: =SUMIF('توزيع يومى على المقاولين'!$H$7:$I$22000,B4,'توزيع يومى على المقاولين'!$I$7:$I$22000) -> 11826 | D4: 7.05 | E4: =SUMIF('توزيع يومى على المقاولين'!$H$7:$K$22000,$B4,'توزيع يومى على المقاولين'!$K$7:$K$22000) -> 83373.3
B5: جمال | C5: =SUMIF('توزيع يومى على المقاولين'!$H$7:$I$22000,B5,'توزيع يومى على المقاولين'!$I$7:$I$22000) -> 5095 | D5: 7.05 | E5: =SUMIF('توزيع يومى على المقاولين'!$H$7:$K$22000,$B5,'توزيع يومى على المقاولين'!$K$7:$K$22000) -> 35919.75
B6: أشرف | C6: =SUMIF('توزيع يومى على المقاولين'!$H$7:$I$22000,B6,'توزيع يومى على المقاولين'!$I$7:$I$22000) -> 15183 | D6: 7.05 | E6: =SUMIF('توزيع يومى على المقاولين'!$H$7:$K$22000,$B6,'توزيع يومى على المقاولين'!$K$7:$K$22000) -> 107040.15
B7: علوان | C7: =SUMIF('توزيع يومى على المقاولين'!$H$7:$I$22000,B7,'توزيع يومى على المقاولين'!$I$7:$I$22000) -> 24989 | D7: 7.05 | E7: =SUMIF('توزيع يومى على المقاولين'!$H$7:$K$22000,$B7,'توزيع يومى على المقاولين'!$K$7:$K$22000) -> 176172.45
B8: حلمى | C8: =SUMIF('توزيع يومى على المقاولين'!$H$7:$I$22000,B8,'توزيع يومى على المقاولين'!$I$7:$I$22000) -> 14291 | D8: 7.05 | E8: =SUMIF('توزيع يومى على المقاولين'!$H$7:$K$22000,$B8,'توزيع يومى على المقاولين'!$K$7:$K$22000) -> 100751.55
B9: أنور | C9: =SUMIF('توزيع يومى على المقاولين'!$H$7:$I$22000,B9,'توزيع يومى على المقاولين'!$I$7:$I$22000) -> 16433 | D9: 7.05 | E9: =SUMIF('توزيع يومى على المقاولين'!$H$7:$K$22000,$B9,'توزيع يومى على المقاولين'!$K$7:$K$22000) -> 115852.65
B10: جابر | C10: =SUMIF('توزيع يومى على المقاولين'!$H$7:$I$22000,B10,'توزيع يومى على المقاولين'!$I$7:$I$22000) -> 56455 | D10: 7.05 | E10: =SUMIF('توزيع يومى على المقاولين'!$H$7:$K$22000,$B10,'توزيع يومى على المقاولين'!$K$7:$K$22000) -> 398007.75
B11: رمضان عربية ش | C11: =SUMIF('توزيع يومى على المقاولين'!$H$7:$I$22000,B11,'توزيع يومى على المقاولين'!$I$7:$I$22000) -> 2277 | D11: 7.05 | E11: =SUMIF('توزيع يومى على المقاولين'!$H$7:$K$22000,$B11,'توزيع يومى على المقاولين'!$K$7:$K$22000) -> 16052.85
B12: محمد عيسى | C12: =SUMIF('توزيع يومى على المقاولين'!$H$7:$I$22000,B12,'توزيع يومى على المقاولين'!$I$7:$I$22000) -> 5895 | D12: 7.05 | E12: =SUMIF('توزيع يومى على المقاولين'!$H$7:$K$22000,$B12,'توزيع يومى على المقاولين'!$K$7:$K$22000) -> 41559.75
B13: عمر | C13: =SUMIF('توزيع يومى على المقاولين'!$H$7:$I$22000,B13,'توزيع يومى على المقاولين'!$I$7:$I$22000) -> 6557 | D13: 7.05 | E13: =SUMIF('توزيع يومى على المقاولين'!$H$7:$K$22000,$B13,'توزيع يومى على المقاولين'!$K$7:$K$22000) -> 46226.85
B14: حلمى25 | C14: =SUMIF('توزيع يومى على المقاولين'!$H$7:$I$22000,B14,'توزيع يومى على المقاولين'!$I$7:$I$22000) -> 8528 | D14: 7.05 | E14: =SUMIF('توزيع يومى على المقاولين'!$H$7:$K$22000,$B14,'توزيع يومى على المقاولين'!$K$7:$K$22000) -> 60122.4
B15: ضيف | C15: =SUMIF('توزيع يومى على المقاولين'!$H$7:$I$22000,B15,'توزيع يومى على المقاولين'!$I$7:$I$22000) -> 19751 | D15: 7.05 | E15: =SUMIF('توزيع يومى على المقاولين'!$H$7:$K$22000,$B15,'توزيع يومى على المقاولين'!$K$7:$K$22000) -> 139244.55
B16: خالد 54 | C16: =SUMIF('توزيع يومى على المقاولين'!$H$7:$I$22000,B16,'توزيع يومى على المقاولين'!$I$7:$I$22000) -> 12554 | D16: 7.05 | E16: =SUMIF('توزيع يومى على المقاولين'!$H$7:$K$22000,$B16,'توزيع يومى على المقاولين'!$K$7:$K$22000) -> 88505.7
B17: محسن مياه | C17: =SUMIF('توزيع يومى على المقاولين'!$H$7:$I$22000,B17,'توزيع يومى على المقاولين'!$I$7:$I$22000) -> 5100 | D17: 7.05 | E17: =SUMIF('توزيع يومى على المقاولين'!$H$7:$K$22000,$B17,'توزيع يومى على المقاولين'!$K$7:$K$22000) -> 35955
B18: خالد 31 | C18: =SUMIF('توزيع يومى على المقاولين'!$H$7:$I$22000,B18,'توزيع يومى على المقاولين'!$I$7:$I$22000) -> 24836 | D18: 7.05 | E18: =SUMIF('توزيع يومى على المقاولين'!$H$7:$K$22000,$B18,'توزيع يومى على المقاولين'!$K$7:$K$22000) -> 175093.8
B19: عربية الجيش | C19: =SUMIF('توزيع يومى على المقاولين'!$H$7:$I$22000,B19,'توزيع يومى على المقاولين'!$I$7:$I$22000) -> 136 | D19: 7.05 | E19: =SUMIF('توزيع يومى على المقاولين'!$H$7:$K$22000,$B19,'توزيع يومى على المقاولين'!$K$7:$K$22000) -> 958.8
B20: عنتر | C20: =SUMIF('توزيع يومى على المقاولين'!$H$7:$I$22000,B20,'توزيع يومى على المقاولين'!$I$7:$I$22000) -> 28608 | D20: 7.05 | E20: =SUMIF('توزيع يومى على المقاولين'!$H$7:$K$22000,$B20,'توزيع يومى على المقاولين'!$K$7:$K$22000) -> 201686.4
B21: السيد156 | C21: =SUMIF('توزيع يومى على المقاولين'!$H$7:$I$22000,B21,'توزيع يومى على المقاولين'!$I$7:$I$22000) -> 20731 | D21: 7.05 | E21: =SUMIF('توزيع يومى على المقاولين'!$H$7:$K$22000,$B21,'توزيع يومى على المقاولين'!$K$7:$K$22000) -> 146153.55
B22: رجب طرق | C22: =SUMIF('توزيع يومى على المقاولين'!$H$7:$I$22000,B22,'توزيع يومى على المقاولين'!$I$7:$I$22000) -> 23637 | D22: 7.05 | E22: =SUMIF('توزيع يومى على المقاولين'!$H$7:$K$22000,$B22,'توزيع يومى على المقاولين'!$K$7:$K$22000) -> 166640.85
B23: جابر 59 | C23: =SUMIF('توزيع يومى على المقاولين'!$H$7:$I$22000,B23,'توزيع يومى على المقاولين'!$I$7:$I$22000) -> 25602 | D23: 7.05 | E23: =SUMIF('توزيع يومى على المقاولين'!$H$7:$K$22000,$B23,'توزيع يومى على المقاولين'!$K$7:$K$22000) -> 180494.1
B24: الشركة | C24: =SUMIF('توزيع يومى على المقاولين'!$H$7:$I$22000,B24,'توزيع يومى على المقاولين'!$I$7:$I$22000) -> 398 | D24: 7.05 | E24: =SUMIF('توزيع يومى على المقاولين'!$H$7:$K$22000,$B24,'توزيع يومى على المقاولين'!$K$7:$K$22000) -> 2805.9
B25: الشركة 23 | C25: =SUMIF('توزيع يومى على المقاولين'!$H$7:$I$22000,B25,'توزيع يومى على المقاولين'!$I$7:$I$22000) -> 396 | D25: 7.05 | E25: =SUMIF('توزيع يومى على المقاولين'!$H$7:$K$22000,$B25,'توزيع يومى على المقاولين'!$K$7:$K$22000) -> 2791.8
C26: =SUMIF('توزيع يومى على المقاولين'!$H$7:$I$22000,B26,'توزيع يومى على المقاولين'!$I$7:$I$22000) -> 0 | E26: =SUMIF('توزيع يومى على المقاولين'!$H$7:$K$22000,$B26,'توزيع يومى على المقاولين'!$K$7:$K$22000) -> 0
C27: =SUMIF('توزيع يومى على المقاولين'!$H$7:$I$22000,B27,'توزيع يومى على المقاولين'!$I$7:$I$22000) -> 0 | E27: =SUMIF('توزيع يومى على المقاولين'!$H$7:$K$22000,$B27,'توزيع يومى على المقاولين'!$K$7:$K$22000) -> 0
C28: =SUMIF('توزيع يومى على المقاولين'!$H$7:$I$22000,B28,'توزيع يومى على المقاولين'!$I$7:$I$22000) -> 0 | E28: =SUMIF('توزيع يومى على المقاولين'!$H$7:$K$22000,$B28,'توزيع يومى على المقاولين'!$K$7:$K$22000) -> 0
C29: =SUMIF('توزيع يومى على المقاولين'!$H$7:$I$22000,B29,'توزيع يومى على المقاولين'!$I$7:$I$22000) -> 0 | E29: =SUMIF('توزيع يومى على المقاولين'!$H$7:$K$22000,$B29,'توزيع يومى على المقاولين'!$K$7:$K$22000) -> 0
C30: =SUMIF('توزيع يومى على المقاولين'!$H$7:$I$22000,B30,'توزيع يومى على المقاولين'!$I$7:$I$22000) -> 0 | E30: =SUMIF('توزيع يومى على المقاولين'!$H$7:$K$22000,$B30,'توزيع يومى على المقاولين'!$K$7:$K$22000) -> 0
C31: =SUMIF('توزيع يومى على المقاولين'!$H$7:$I$22000,B31,'توزيع يومى على المقاولين'!$I$7:$I$22000) -> 0 | E31: =SUMIF('توزيع يومى على المقاولين'!$H$7:$K$22000,$B31,'توزيع يومى على المقاولين'!$K$7:$K$22000) -> 0
C32: =SUMIF('توزيع يومى على المقاولين'!$H$7:$I$22000,B32,'توزيع يومى على المقاولين'!$I$7:$I$22000) -> 0 | E32: =SUMIF('توزيع يومى على المقاولين'!$H$7:$K$22000,$B32,'توزيع يومى على المقاولين'!$K$7:$K$22000) -> 0
C33: =SUMIF('توزيع يومى على المقاولين'!$H$7:$I$22000,B33,'توزيع يومى على المقاولين'!$I$7:$I$22000) -> 0 | E33: =SUMIF('توزيع يومى على المقاولين'!$H$7:$K$22000,$B33,'توزيع يومى على المقاولين'!$K$7:$K$22000) -> 0
C34: =SUMIF('توزيع يومى على المقاولين'!$H$7:$I$22000,B34,'توزيع يومى على المقاولين'!$I$7:$I$22000) -> 0 | E34: =SUMIF('توزيع يومى على المقاولين'!$H$7:$K$22000,$B34,'توزيع يومى على المقاولين'!$K$7:$K$22000) -> 0
C35: =SUMIF('توزيع يومى على المقاولين'!$H$7:$I$22000,B35,'توزيع يومى على المقاولين'!$I$7:$I$22000) -> 0 | E35: =SUMIF('توزيع يومى على المقاولين'!$H$7:$K$22000,$B35,'توزيع يومى على المقاولين'!$K$7:$K$22000) -> 0
C36: =SUMIF('توزيع يومى على المقاولين'!$H$7:$I$22000,B36,'توزيع يومى على المقاولين'!$I$7:$I$22000) -> 0 | E36: =SUMIF('توزيع يومى على المقاولين'!$H$7:$K$22000,$B36,'توزيع يومى على المقاولين'!$K$7:$K$22000) -> 0
C37: =SUMIF('توزيع يومى على المقاولين'!$H$7:$I$22000,B37,'توزيع يومى على المقاولين'!$I$7:$I$22000) -> 0 | E37: =SUMIF('توزيع يومى على المقاولين'!$H$7:$K$22000,$B37,'توزيع يومى على المقاولين'!$K$7:$K$22000) -> 0
C38: =SUMIF('توزيع يومى على المقاولين'!$H$7:$I$22000,B38,'توزيع يومى على المقاولين'!$I$7:$I$22000) -> 0 | E38: =SUMIF('توزيع يومى على المقاولين'!$H$7:$K$22000,$B38,'توزيع يومى على المقاولين'!$K$7:$K$22000) -> 0
C39: =SUMIF('توزيع يومى على المقاولين'!$H$7:$I$22000,B39,'توزيع يومى على المقاولين'!$I$7:$I$22000) -> 0 | E39: =SUMIF('توزيع يومى على المقاولين'!$H$7:$K$22000,$B39,'توزيع يومى على المقاولين'!$K$7:$K$22000) -> 0
C40: =SUMIF('توزيع يومى على المقاولين'!$H$7:$I$22000,B40,'توزيع يومى على المقاولين'!$I$7:$I$22000) -> 0 | E40: =SUMIF('توزيع يومى على المقاولين'!$H$7:$K$22000,$B40,'توزيع يومى على المقاولين'!$K$7:$K$22000) -> 0
C41: =SUMIF('توزيع يومى على المقاولين'!$H$7:$I$22000,B41,'توزيع يومى على المقاولين'!$I$7:$I$22000) -> 0 | E41: =SUMIF('توزيع يومى على المقاولين'!$H$7:$K$22000,$B41,'توزيع يومى على المقاولين'!$K$7:$K$22000) -> 0
C42: =SUMIF('توزيع يومى على المقاولين'!$H$7:$I$22000,B42,'توزيع يومى على المقاولين'!$I$7:$I$22000) -> 0 | E42: =SUMIF('توزيع يومى على المقاولين'!$H$7:$K$22000,$B42,'توزيع يومى على المقاولين'!$K$7:$K$22000) -> 0
C43: =SUMIF('توزيع يومى على المقاولين'!$H$7:$I$22000,B43,'توزيع يومى على المقاولين'!$I$7:$I$22000) -> 0 | E43: =SUMIF('توزيع يومى على المقاولين'!$H$7:$K$22000,$B43,'توزيع يومى على المقاولين'!$K$7:$K$22000) -> 0
C44: =SUMIF('توزيع يومى على المقاولين'!$H$7:$I$22000,B44,'توزيع يومى على المقاولين'!$I$7:$I$22000) -> 0 | E44: =SUMIF('توزيع يومى على المقاولين'!$H$7:$K$22000,$B44,'توزيع يومى على المقاولين'!$K$7:$K$22000) -> 0
C45: =SUMIF('توزيع يومى على المقاولين'!$H$7:$I$22000,B45,'توزيع يومى على المقاولين'!$I$7:$I$22000) -> 0 | E45: =SUMIF('توزيع يومى على المقاولين'!$H$7:$K$22000,$B45,'توزيع يومى على المقاولين'!$K$7:$K$22000) -> 0
C46: =SUMIF('توزيع يومى على المقاولين'!$H$7:$I$22000,B46,'توزيع يومى على المقاولين'!$I$7:$I$22000) -> 0 | E46: =SUMIF('توزيع يومى على المقاولين'!$H$7:$K$22000,$B46,'توزيع يومى على المقاولين'!$K$7:$K$22000) -> 0
C47: =SUMIF('توزيع يومى على المقاولين'!$H$7:$I$22000,B47,'توزيع يومى على المقاولين'!$I$7:$I$22000) -> 0 | E47: =SUMIF('توزيع يومى على المقاولين'!$H$7:$K$22000,$B47,'توزيع يومى على المقاولين'!$K$7:$K$22000) -> 0
C48: =SUMIF('توزيع يومى على المقاولين'!$H$7:$I$22000,B48,'توزيع يومى على المقاولين'!$I$7:$I$22000) -> 0 | E48: =SUMIF('توزيع يومى على المقاولين'!$H$7:$K$22000,$B48,'توزيع يومى على المقاولين'!$K$7:$K$22000) -> 0
C49: =SUMIF('توزيع يومى على المقاولين'!$H$7:$I$22000,B49,'توزيع يومى على المقاولين'!$I$7:$I$22000) -> 0 | E49: =SUMIF('توزيع يومى على المقاولين'!$H$7:$K$22000,$B49,'توزيع يومى على المقاولين'!$K$7:$K$22000) -> 0
C50: =SUMIF('توزيع يومى على المقاولين'!$H$7:$I$22000,B50,'توزيع يومى على المقاولين'!$I$7:$I$22000) -> 0 | E50: =SUMIF('توزيع يومى على المقاولين'!$H$7:$K$22000,$B50,'توزيع يومى على المقاولين'!$K$7:$K$22000) -> 0
C51: =SUMIF('توزيع يومى على المقاولين'!$H$7:$I$22000,B51,'توزيع يومى على المقاولين'!$I$7:$I$22000) -> 0 | E51: =SUMIF('توزيع يومى على المقاولين'!$H$7:$K$22000,$B51,'توزيع يومى على المقاولين'!$K$7:$K$22000) -> 0
C52: =SUMIF('توزيع يومى على المقاولين'!$H$7:$I$22000,B52,'توزيع يومى على المقاولين'!$I$7:$I$22000) -> 0 | E52: =SUMIF('توزيع يومى على المقاولين'!$H$7:$K$22000,$B52,'توزيع يومى على المقاولين'!$K$7:$K$22000) -> 0
C53: =SUMIF('توزيع يومى على المقاولين'!$H$7:$I$22000,B53,'توزيع يومى على المقاولين'!$I$7:$I$22000) -> 0 | E53: =SUMIF('توزيع يومى على المقاولين'!$H$7:$K$22000,$B53,'توزيع يومى على المقاولين'!$K$7:$K$22000) -> 0

Sheet الخلاصة (hidden)
D2: شركة ال حماد للمقاولات | I2: مشروع تسويات اللاهون
D4: خلاصة باجمالى توريد وتوزيع السولار حتى تاريخه
E5: بداية من | F5: 2020-10-05
D6: البيان | E6: الكمية | F6: السعر | G6: القيمة | I6: المدفوعات | J6: الخلاصة
D7: وليد سولار السعر 7.35 | E7: =+'اجمالى التوريد والصرف والفرق'!C62 -> 168104 | F7: 7.35 | G7: =+E7*F7 -> 1235564.4 | H7: =+G7-'اجمالى التوريد والصرف والفرق'!E62 -> 0 | I7: =200000+400000+24000+400000 -> 1024000 | J7: =+G7-I7 -> 211564.4
D8: تصريح 200ج دخول بوابة واكراميات100ج سائق جاز | E8: =+E7 -> 168104 | F8: =+G8/E8 -> 0.03747680008 | G8: =+'اجمالى التوريد والصرف والفرق'!M7+'اجمالى التوريد والصرف والفرق'!N7 -> 6300
D9: اجمالى تكلفة توريد الجاز | E9: =+E7 -> 168104 | F9: =+G9/E9 -> 7.3874768 | G9: =+G7+G8 -> 1241864.4
D11: كمية السولار على المقاولين | E11: =+'اجمالى التوريد والصرف والفرق'!G62 -> 168104 | F11: 7.05 | G11: =+E11*F11 -> 1185133.2 | H11: =+G11-'توزيع يومى على المقاولين'!K4 -> -1232727.75
D13: الفرق في تكلفه الفعلية وتكلفة المقاول(خسارة على الشركة) | E13: =+E7-E11 -> 0 | F13: 0 | G13: =+G9-G11 -> 56731.2

Sheet مقارنة بين وليد والموقع (hidden)
B2: شركة ال حماد للمقاولات | K2: مشروع التسويات بالفيوم
B4: بيان بتوريد السولار وتوزيعه على المقاولين وفرق الكميات والقيمة
L5: 7.35
B6: كمية المورد من السولار السعر 7.35 | G6: وليد سولار الواصل للموقع السعر 7.35 | K6: الفرق
B7: التاريخ | C7: الكمية | D7: السعر | E7: القيمة | G7: الكمية | H7: السعر | I7: القيمة | K7: الكمية | L7: المبلغ
B8: 2020-10-10 | C8: 6500 | D8: 7.35 | E8: =+C8*D8 -> 47775 | G8: 6497 | H8: 7.05 | I8: =+G8*H8 -> 45803.85 | K8: =+C8-G8 -> 3 | L8: =+K8*$L$5 -> 22.05
B9: 2020-10-11 | C9: 6500 | D9: 7.35 | E9: =+C9*D9 -> 47775 | G9: 6500 | H9: 7.05 | I9: =+G9*H9 -> 45825 | K9: 0 | L9: =+K9*$L$5 -> 0
B10: 2020-10-12 | C10: 6500 | D10: 7.35 | E10: =+C10*D10 -> 47775 | G10: 6500 | H10: 7.05 | I10: 45825 | K10: 0 | L10: 0
B11: 2020-10-13 | C11: 6500 | D11: 7.35 | E11: 47775 | G11: 6451 | H11: 7.05 | I11: 45479.55 | K11: 49 | L11: 360.15
B12: 2020-10-14 | C12: 6500 | D12: 7.35 | E12: 47775 | G12: 6452 | H12: 7.05 | I12: 45486.6 | K12: 48 | L12: 352.8
B13: 2020-10-17 | C13: 6500 | D13: 7.35 | E13: 47775 | G13: 6500 | H13: 7.05 | I13: 45825 | K13: 0 | L13: 0
B14: 2020-10-18 | C14: 6500 | D14: 7.35 | E14: 47775 | G14: 6495 | H14: 7.05 | I14: 45789.75 | K14: 5 | L14: 36.75
B15: 2020-10-19 | C15: 6500 | D15: 7.35 | E15: 47775 | G15: 6279 | H15: 7.05 | I15: 44266.95 | K15: 221 | L15: 1624.35
B16: 2020-10-20 | C16: 6500 | D16: 7.35 | E16: 47775 | G16: 6611 | H16: 7.05 | I16: 46607.55 | K16: -111 | L16: -815.85
B17: 2020-10-21 | C17: 6500 | D17: 7.35 | E17: 47775 | G17: 6500 | H17: 7.05 | I17: 45825 | K17: 0 | L17: 0
B18: 2020-10-24 | C18: 6500 | D18: 7.35 | E18: 47775 | G18: 6466 | H18: 7.05 | I18: 45585.3 | K18: 34 | L18: 249.9
B19: 2020-10-25 | C19: 6500 | D19: 7.35 | E19: 47775 | G19: 6500 | H19: 7.05 | I19: 45825 | K19: 0 | L19: 0
B20: 2020-10-26 | C20: 6500 | D20: 7.35 | E20: 47775 | G20: 6500 | H20: 7.05 | I20: 45825 | K20: 0 | L20: 0
B21: 2020-10-28 | C21: 6500 | D21: 7.35 | E21: 47775 | G21: 6500 | H21: 7.05 | I21: 45825 | K21: 0 | L21: 0
D22: 7.35 | E22: 0 | H22: 7.05 | I22: 0 | K22: 0 | L22: 0
D23: 7.35 | E23: 0 | H23: 7.05 | I23: 0 | K23: 0 | L23: 0
D24: 7.35 | E24: 0 | H24: 7.05 | I24: 0 | K24: 0 | L24: 0
D25: 7.35 | E25: 0 | H25: 7.05 | I25: 0 | K25: 0 | L25: 0
B26: الاجمالى الكميات والقيمة | C26: =SUM(C8:C25) -> 91000 | D26: 7.35 | E26: 668850 | G26: =SUM(G8:G25) -> 90751 | H26: 7.05 | I26: 639794.55 | K26: 249 | L26: =SUM(L8:L25) -> 1830.15
K27: هذا الفرق على وليد لصالح الشركة

Sheet تقرير قيمة الجاز شهرى (hidden)
B1: شركة ال حماد للمقاولات | D1: مشروع تسويات اللاهون
C2: تقرير شهر للجاز على المقاولين
B3: الشهر | C3: كمية الجاز مقاولين | D3: قيمة جاز المقاولين
B4: أكتوبر | C4: =SUMIF('توزيع يومى على المقاولين'!C7:$D$1959,'تقرير قيمة الجاز شهرى'!B4,'توزيع يومى على المقاولين'!$D$7:$D$1959) -> 0 | D4: =+C4*7.05 -> 0
B5: نوفمبر | C5: =SUMIF('توزيع يومى على المقاولين'!$C$7:$D$1959,'تقرير قيمة الجاز شهرى'!B5,'توزيع يومى على المقاولين'!$D$7:$D$1959) -> 0 | D5: 0
B6: ديسمبر | C6: =SUMIF('توزيع يومى على المقاولين'!C9:$D$1959,'تقرير قيمة الجاز شهرى'!B6,'توزيع يومى على المقاولين'!$D$7:$D$1959) -> 0 | D6: 0
I7: =200000+400000+24000+400000 -> 1024000
B8: الاجمالى الكلى | C8: =SUM(C4:C6) -> 0 | D8: =+D4+D5 -> 0

Sheet اجمالى كمية وقيمة على المقاولين (hidden)
C1: =+C4-'توزيع يومى على المقاولين'!I4 -> 0
B2: بيان باجمالى الكميات والقيمة لكل مقاول حتى تاريخه | F2: =+C4-'تقرير المقاولين جاز'!F6 -> 330078 | G2: =+E4-'تقرير المقاولين جاز'!H6 -> 2327049.9
B4: الاجمالى الكلى | C4: =SUM(C6:C3099) -> 342959 | D4: اجمالى القيمة | E4: =+C4*7.05 -> 2417860.95
B5: المقاول | C5: كمية السولار | D5: السعر اللتر | E5: قيمة السولار
B6: الشيخ رجب | C6: =SUMIF('توزيع يومى على المقاولين'!$H$7:$I$30002,B6,'توزيع يومى على المقاولين'!$I$7:$I$28002) -> 800 | D6: 7.05 | E6: =+C6*D6 -> 5640
B7: رجب | C7: =SUMIF('توزيع يومى على المقاولين'!$H$7:$I$30002,B7,'توزيع يومى على المقاولين'!$I$7:$I$28002) -> 12881 | D7: 7.05 | E7: 90811.05
B8: السيد | C8: =SUMIF('توزيع يومى على المقاولين'!$H$7:$I$30002,B8,'توزيع يومى على المقاولين'!$I$7:$I$28002) -> 11826 | D8: 7.05 | E8: 83373.3
B9: جمال | C9: =SUMIF('توزيع يومى على المقاولين'!$H$7:$I$30002,B9,'توزيع يومى على المقاولين'!$I$7:$I$28002) -> 5095 | D9: 7.05 | E9: 35919.75
B10: أشرف | C10: =SUMIF('توزيع يومى على المقاولين'!$H$7:$I$30002,B10,'توزيع يومى على المقاولين'!$I$7:$I$28002) -> 15183 | D10: 7.05 | E10: 107040.15
B11: علوان | C11: =SUMIF('توزيع يومى على المقاولين'!$H$7:$I$30002,B11,'توزيع يومى على المقاولين'!$I$7:$I$28002) -> 24989 | D11: 7.05 | E11: 176172.45
B12: حلمى | C12: =SUMIF('توزيع يومى على المقاولين'!$H$7:$I$30002,B12,'توزيع يومى على المقاولين'!$I$7:$I$28002) -> 14291 | D12: 7.05 | E12: 100751.55
B13: أنور | C13: =SUMIF('توزيع يومى على المقاولين'!$H$7:$I$30002,B13,'توزيع يومى على المقاولين'!$I$7:$I$28002) -> 16433 | D13: 7.05 | E13: 115852.65
B14: جابر | C14: =SUMIF('توزيع يومى على المقاولين'!$H$7:$I$30002,B14,'توزيع يومى على المقاولين'!$I$7:$I$28002) -> 56455 | D14: 7.05 | E14: 398007.75
B15: رمضان عربية ش | C15: =SUMIF('توزيع يومى على المقاولين'!$H$7:$I$30002,B15,'توزيع يومى على المقاولين'!$I$7:$I$28002) -> 2277 | D15: 7.05 | E15: 16052.85
B16: محمد عيسى | C16: =SUMIF('توزيع يومى على المقاولين'!$H$7:$I$30002,B16,'توزيع يومى على المقاولين'!$I$7:$I$28002) -> 5895 | D16: 7.05 | E16: 41559.75
B17: عمر | C17: =SUMIF('توزيع يومى على المقاولين'!$H$7:$I$30002,B17,'توزيع يومى على المقاولين'!$I$7:$I$28002) -> 6557 | D17: 7.05 | E17: =+C17*D17 -> 46226.85
B18: حلمى25 | C18: =SUMIF('توزيع يومى على المقاولين'!$H$7:$I$30002,B18,'توزيع يومى على المقاولين'!$I$7:$I$28002) -> 8528 | D18: 7.05 | E18: 60122.4
B19: ضيف | C19: =SUMIF('توزيع يومى على المقاولين'!$H$7:$I$30002,B19,'توزيع يومى على المقاولين'!$I$7:$I$28002) -> 19751 | D19: 7.05 | E19: 139244.55
B20: محسن مياه | C20: =SUMIF('توزيع يومى على المقاولين'!$H$7:$I$30002,B20,'توزيع يومى على المقاولين'!$I$7:$I$28002) -> 5100 | D20: 7.05 | E20: =+C20*D20 -> 35955
B21: خالد 54 | C21: =SUMIF('توزيع يومى على المقاولين'!$H$7:$I$30002,B21,'توزيع يومى على المقاولين'!$I$7:$I$28002) -> 12554 | D21: 7.05 | E21: 88505.7
B22: خالد 31 | C22: =SUMIF('توزيع يومى على المقاولين'!$H$7:$I$30002,B22,'توزيع يومى على المقاولين'!$I$7:$I$28002) -> 24836 | D22: 7.05 | E22: =+C22*D22 -> 175093.8
B23: عربية الجيش | C23: =SUMIF('توزيع يومى على المقاولين'!$H$7:$I$30002,B23,'توزيع يومى على المقاولين'!$I$7:$I$28002) -> 136 | D23: 7.05 | E23: 958.8
B24: عنتر | C24: =SUMIF('توزيع يومى على المقاولين'!$H$7:$I$30002,B24,'توزيع يومى على المقاولين'!$I$7:$I$28002) -> 28608 | D24: 7.05 | E24: =+C24*D24 -> 201686.4
B25: السيد156 | C25: =SUMIF('توزيع يومى على المقاولين'!$H$7:$I$30002,B25,'توزيع يومى على المقاولين'!$I$7:$I$28002) -> 20731 | D25: 7.05 | E25: 146153.55
B26: رجب طرق | C26: =SUMIF('توزيع يومى على المقاولين'!$H$7:$I$30002,B26,'توزيع يومى على المقاولين'!$I$7:$I$28002) -> 23637 | D26: 7.05 | E26: 166640.85
B27: جابر 59 | C27: =SUMIF('توزيع يومى على المقاولين'!$H$7:$I$30002,B27,'توزيع يومى على المقاولين'!$I$7:$I$28002) -> 25602 | D27: 7.05 | E27: 180494.1
B28: الشركة | C28: =SUMIF('توزيع يومى على المقاولين'!$H$7:$I$30002,B28,'توزيع يومى على المقاولين'!$I$7:$I$28002) -> 398 | D28: 7.05 | E28: =+C28*D28 -> 2805.9
B29: الشركة 23 | C29: =SUMIF('توزيع يومى على المقاولين'!$H$7:$I$30002,B29,'توزيع يومى على المقاولين'!$I$7:$I$28002) -> 396 | D29: 7.05 | E29: 2791.8

Sheet اجمالى التوريد والصرف والفرق (hidden)
B2: شركة ال حماد للمقاولات | K2: مشروع التسويات بالفيوم
B4: بيان بتوريد السولار وتوزيعه على المقاولين وفرق الكميات والقيمة
M5: =+N7+M7 -> 6300
B6: وليد سولار السعر 7.35 | G6: كمية السولار على المقاولين | K6: الفرق | M6: الاكراميات | N6: تصريح
B7: التاريخ | C7: الكمية | D7: السعر | E7: القيمة | G7: الكمية | H7: السعر | I7: القيمة | K7: الكمية | L7: المبلغ | M7: =SUM(M8:M61) -> 3100 | N7: =SUM(N8:N61) -> 3200
B8: 2020-10-10 | C8: 6497 | D8: 7.35 | E8: =+C8*D8 -> 47752.95 | G8: 6497 | H8: 7.05 | I8: =+G8*H8 -> 45803.85 | K8: =+C8-G8 -> 0 | L8: =+E8-I8 -> 1949.1 | M8: 100
B9: 2020-10-11 | C9: 6500 | D9: 7.35 | E9: =+C9*D9 -> 47775 | G9: 6500 | H9: 7.05 | I9: =+G9*H9 -> 45825 | K9: 0 | L9: 1950 | M9: 50
B10: 2020-10-12 | C10: 6500 | D10: 7.35 | E10: =+C10*D10 -> 47775 | G10: 6500 | H10: 7.05 | I10: 45825 | K10: 0 | L10: 1950 | M10: 100
B11: 2020-10-13 | C11: 6451 | D11: 7.35 | E11: 47414.85 | G11: 6451 | H11: 7.05 | I11: 45479.55 | K11: 0 | L11: 1935.3 | M11: 50
B12: 2020-10-14 | C12: 6452 | D12: 7.35 | E12: 47422.2 | G12: 6452 | H12: 7.05 | I12: 45486.6 | K12: 0 | L12: 1935.6 | M12: 0
B13: 2020-10-17 | C13: 6500 | D13: 7.35 | E13: 47775 | G13: 6500 | H13: 7.05 | I13: 45825 | K13: 0 | L13: 1950 | M13: 200
B14: 2020-10-18 | C14: 6495 | D14: 7.35 | E14: 47738.25 | G14: 6495 | H14: 7.05 | I14: 45789.75 | K14: 0 | L14: 1948.5 | M14: 0
B15: 2020-10-19 | C15: 6279 | D15: 7.35 | E15: =+C15*D15 -> 46150.65 | G15: 6279 | H15: 7.05 | I15: =+G15*H15 -> 44266.95 | K15: 0 | L15: 1883.7 | M15: 100 | N15: 0
B16: 2020-10-20 | C16: 6611 | D16: 7.35 | E16: 48590.85 | G16: 6611 | H16: 7.05 | I16: 46607.55 | K16: 0 | L16: 1983.3 | M16: 100 | N16: 400
B17: 2020-10-21 | C17: 6500 | D17: 7.35 | E17: 47775 | G17: 6500 | H17: 7.05 | I17: 45825 | K17: 0 | L17: 1950 | M17: 100 | N17: 200
B18: 2020-10-24 | C18: 6466 | D18: 7.35 | E18: 47525.1 | G18: 6466 | H18: 7.05 | I18: 45585.3 | K18: 0 | L18: 1939.8 | M18: 100 | N18: 200
B19: 2020-10-25 | C19: 6500 | D19: 7.35 | E19: 47775 | G19: 6500 | H19: 7.05 | I19: 45825 | K19: 0 | L19: 1950 | M19: 100 | N19: 200
B20: 2020-10-26 | C20: 6500 | D20: 7.35 | E20: 47775 | G20: 6500 | H20: 7.05 | I20: 45825 | K20: 0 | L20: 1950 | M20: 100 | N20: 200
B21: 2020-10-28 | C21: 6500 | D21: 7.35 | E21: 47775 | G21: 6500 | H21: 7.05 | I21: 45825 | K21: 0 | L21: 1950 | M21: 0 | N21: 0
B22: 2020-10-31 | C22: 6500 | D22: 7.35 | E22: 47775 | G22: 6500 | H22: 7.05 | I22: 45825 | K22: 0 | L22: 1950 | M22: 200 | N22: 400
B23: 2020-11-01 | C23: 6475 | D23: 7.35 | E23: 47591.25 | G23: 6475 | H23: 7.05 | I23: 45648.75 | K23: =+C23-G23 -> 0 | L23: =+E23-I23 -> 1942.5 | M23: 100 | N23: 200
B24: 2020-11-03 | C24: 6452 | D24: 7.35 | E24: 47422.2 | G24: =+C24 -> 6452 | H24: 7.05 | I24: 45486.6 | K24: =+C24-G24 -> 0 | L24: =+E24-I24 -> 1935.6 | M24: 100 | N24: 200
B25: 2020-11-04 | C25: 6450 | D25: 7.35 | E25: =+C25*D25 -> 47407.5 | G25: =+C25 -> 6450 | H25: 7.05 | I25: =+G25*H25 -> 45472.5 | K25: 0 | L25: 1935 | M25: 0 | N25: 200
B26: 2020-11-07 | C26: 6395 | D26: 7.35 | E26: 47003.25 | G26: 6395 | H26: 7.05 | I26: 45084.75 | K26: 0 | L26: 1918.5 | M26: 200 | N26: 400
B27: 2020-11-08 | C27: 6418 | D27: 7.35 | E27: 47172.3 | G27: 6418 | H27: 7.05 | I27: 45246.9 | K27: 0 | L27: 1925.4 | M27: 200 | N27: 400
B28: 2020-11-08 | C28: 6569 | D28: 7.35 | E28: 48282.15 | G28: 6569 | H28: 7.05 | I28: 46311.45 | K28: 0 | L28: 1970.7 | M28: 0 | N28: 0
B29: 2020-11-10 | C29: 6500 | D29: 7.35 | E29: 47775 | G29: 6500 | H29: 7.05 | I29: 45825 | K29: 0 | L29: 1950 | M29: 100 | N29: 200
B30: 2020-11-11 | C30: 6404 | D30: 7.35 | E30: 47069.4 | G30: 6404 | H30: 7.05 | I30: 45148.2 | K30: 0 | L30: 1921.2
B31: 2020-11-14 | C31: 6190 | D31: 7.35 | E31: 45496.5 | G31: 6190 | H31: 7.05 | I31: 43639.5 | K31: 0 | L31: 1857
B32: 2020-11-15 | C32: 6500 | D32: 7.35 | E32: 47775 | G32: 6500 | H32: 7.05 | I32: 45825 | K32: 0 | L32: 1950 | M32: 100
B33: 2020-11-16 | C33: 6500 | D33: 7.35 | E33: 47775 | G33: 6500 | H33: 7.05 | I33: 45825 | K33: 0 | L33: 1950 | M33: 100
B34: 2020-11-18 | D34: 7.35 | E34: 0 | G34: 0 | H34: 7.05 | I34: 0 | K34: 0 | L34: 0 | M34: 100
B35: 2020-11-21 | D35: 7.35 | E35: 0 | G35: 0 | H35: 7.05 | I35: 0 | K35: 0 | L35: 0 | M35: 100
B36: 2020-11-22 | D36: 7.35 | E36: 0 | G36: 0 | H36: 7.05 | I36: 0 | K36: 0 | L36: 0 | M36: 100
B37: 2020-11-23 | D37: 7.35 | E37: 0 | G37: 0 | H37: 7.05 | I37: 0 | K37: 0 | L37: 0 | M37: 100
B38: 2020-11-24 | D38: 7.35 | E38: 0 | G38: 0 | H38: 7.05 | I38: 0 | K38: 0 | L38: 0 | M38: 100
B39: 2020-11-25 | D39: 7.35 | E39: 0 | G39: 0 | H39: 7.05 | I39: 0 | K39: 0 | L39: 0 | M39: 100
B40: 2020-11-28 | D40: 7.35 | E40: 0 | G40: 0 | H40: 7.05 | I40: 0 | K40: 0 | L40: 0 | M40: 100
B41: 2020-11-29 | D41: 7.35 | E41: 0 | G41: 0 | H41: 7.05 | I41: 0 | K41: 0 | L41: 0 | M41: 100
B42: 2020-11-30 | D42: 7.35 | E42: 0 | G42: 0 | H42: 7.05 | I42: 0 | K42: 0 | L42: 0 | M42: 100
D43: 7.35 | E43: 0 | G43: 0 | H43: 7.05 | I43: 0 | K43: 0 | L43: 0
D44: 7.35 | E44: 0 | G44: 0 | H44: 7.05 | I44: 0 | K44: 0 | L44: 0
D45: 7.35 | E45: 0 | G45: 0 | H45: 7.05 | I45: 0 | K45: 0 | L45: 0
D46: 7.35 | E46: 0 | G46: 0 | H46: 7.05 | I46: 0 | K46: 0 | L46: 0
D47: 7.35 | E47: 0 | G47: 0 | H47: 7.05 | I47: 0 | K47: 0 | L47: 0
D48: 7.35 | E48: 0 | G48: 0 | H48: 7.05 | I48: 0 | K48: 0 | L48: 0
D49: 7.35 | E49: 0 | G49: 0 | H49: 7.05 | I49: 0 | K49: 0 | L49: 0
D50: 7.35 | E50: 0 | G50: 0 | H50: 7.05 | I50: 0 | K50: 0 | L50: 0
D51: 7.35 | E51: 0 | G51: 0 | H51: 7.05 | I51: 0 | K51: 0 | L51: 0
D52: 7.35 | E52: 0 | G52: 0 | H52: 7.05 | I52: 0 | K52: 0 | L52: 0
D53: 7.35 | E53: 0 | G53: 0 | H53: 7.05 | I53: 0 | K53: 0 | L53: 0
D54: 7.35 | E54: 0 | G54: 0 | H54: 7.05 | I54: 0 | K54: 0 | L54: 0
D55: 7.35 | E55: =+C55*D55 -> 0 | G55: 0 | H55: 7.05 | I55: =+G55*H55 -> 0 | K55: 0 | L55: 0
D56: 7.35 | E56: 0 | G56: 0 | H56: 7.05 | I56: 0 | K56: 0 | L56: 0
D57: 7.35 | E57: 0 | G57: 0 | H57: 7.05 | I57: 0 | K57: 0 | L57: 0
D58: 7.35 | E58: 0 | G58: 0 | H58: 7.05 | I58: 0 | K58: 0 | L58: 0
D59: 7.35 | E59: 0 | G59: 0 | H59: 7.05 | I59: 0 | K59: 0 | L59: 0
D60: 7.35 | E60: 0 | G60: 0 | H60: 7.05 | I60: 0 | K60: 0 | L60: 0
D61: 7.35 | E61: 0 | G61: 0 | H61: 7.05 | I61: 0 | K61: 0 | L61: 0
B62: الاجمالى الكميات والقيمة | C62: =SUM(C8:C61) -> 168104 | D62: 7.35 | E62: 1235564.4 | G62: =SUM(G8:G61) -> 168104 | H62: 7.05 | I62: 1185133.2 | K62: 0 | L62: 50431.2

Sheet تقرير قيمة الجاز يومى (hidden)
C4: شركة آل حماد للمقاولات | F4: مشروع اللهون تسويات
C5: =NOW() -> 2021-01-04T19:02:47.020
D6: بيان باجمالى الكمية اليومية | F6: =SUM(E9:E2199) -> 200242 | G6: =SUM(F9:F3699) -> 1411706.1
C8: اليوم | D8: التاريخ | E8: كمية الجاز مقاولين | F8: قيمة جاز المقاولين
C9: =TEXT(D9,"dddd") -> السبت | D9: =+'اجمالى التوريد والصرف والفرق'!B8 -> 2020-10-10 | E9: =SUMIF('توزيع يومى على المقاولين'!F7:I9300,D9,'توزيع يومى على المقاولين'!I7:I1100) -> 6497 | F9: =+E9*7.05 -> 45803.85
C10: =TEXT(D10,"dddd") -> الأحد | D10: =+'اجمالى التوريد والصرف والفرق'!B9 -> 2020-10-11 | E10: =SUMIF('توزيع يومى على المقاولين'!F8:I9301,D10,'توزيع يومى على المقاولين'!I8:I1101) -> 6500 | F10: =+E10*7.05 -> 45825
C11: الإثنين | D11: =+'اجمالى التوريد والصرف والفرق'!B10 -> 2020-10-12 | E11: =SUMIF('توزيع يومى على المقاولين'!F9:I9302,D11,'توزيع يومى على المقاولين'!I9:I1102) -> 6500 | F11: 45825
C12: الثلاثاء | D12: =+'اجمالى التوريد والصرف والفرق'!B11 -> 2020-10-13 | E12: =SUMIF('توزيع يومى على المقاولين'!F10:I9303,D12,'توزيع يومى على المقاولين'!I10:I1103) -> 6451 | F12: 45479.55
C13: الأربعاء | D13: =+'اجمالى التوريد والصرف والفرق'!B12 -> 2020-10-14 | E13: =SUMIF('توزيع يومى على المقاولين'!F11:I9304,D13,'توزيع يومى على المقاولين'!I11:I1104) -> 6452 | F13: 45486.6
C14: السبت | D14: =+'اجمالى التوريد والصرف والفرق'!B13 -> 2020-10-17 | E14: =SUMIF('توزيع يومى على المقاولين'!F12:I9305,D14,'توزيع يومى على المقاولين'!I12:I1105) -> 6500 | F14: 45825
C15: الأحد | D15: =+'اجمالى التوريد والصرف والفرق'!B14 -> 2020-10-18 | E15: =SUMIF('توزيع يومى على المقاولين'!F13:I9306,D15,'توزيع يومى على المقاولين'!I13:I1106) -> 6495 | F15: 45789.75
C16: الإثنين | D16: =+'اجمالى التوريد والصرف والفرق'!B15 -> 2020-10-19 | E16: =SUMIF('توزيع يومى على المقاولين'!F14:I9307,D16,'توزيع يومى على المقاولين'!I14:I1107) -> 6279 | F16: 44266.95
C17: الثلاثاء | D17: =+'اجمالى التوريد والصرف والفرق'!B16 -> 2020-10-20 | E17: =SUMIF('توزيع يومى على المقاولين'!F15:I9308,D17,'توزيع يومى على المقاولين'!I15:I1108) -> 6611 | F17: 46607.55
C18: الأربعاء | D18: =+'اجمالى التوريد والصرف والفرق'!B17 -> 2020-10-21 | E18: =SUMIF('توزيع يومى على المقاولين'!F16:I9309,D18,'توزيع يومى على المقاولين'!I16:I1109) -> 6500 | F18: 45825
C19: السبت | D19: =+'اجمالى التوريد والصرف والفرق'!B18 -> 2020-10-24 | E19: =SUMIF('توزيع يومى على المقاولين'!F17:I9310,D19,'توزيع يومى على المقاولين'!I17:I1110) -> 6466 | F19: 45585.3
C20: الأحد | D20: =+'اجمالى التوريد والصرف والفرق'!B19 -> 2020-10-25 | E20: =SUMIF('توزيع يومى على المقاولين'!F18:I9311,D20,'توزيع يومى على المقاولين'!I18:I1111) -> 6500 | F20: 45825
C21: الإثنين | D21: =+'اجمالى التوريد والصرف والفرق'!B20 -> 2020-10-26 | E21: =SUMIF('توزيع يومى على المقاولين'!F19:I9312,D21,'توزيع يومى على المقاولين'!I19:I1112) -> 6500 | F21: 45825
C22: الأربعاء | D22: 2020-10-28 | E22: =SUMIF('توزيع يومى على المقاولين'!F20:I9313,D22,'توزيع يومى على المقاولين'!I20:I1113) -> 6500 | F22: 45825
C23: السبت | D23: =+'اجمالى التوريد والصرف والفرق'!B22 -> 2020-10-31 | E23: =SUMIF('توزيع يومى على المقاولين'!F21:I9314,D23,'توزيع يومى على المقاولين'!I21:I1114) -> 6500 | F23: 45825
C24: الأحد | D24: =+'اجمالى التوريد والصرف والفرق'!B23 -> 2020-11-01 | E24: =SUMIF('توزيع يومى على المقاولين'!F22:I9315,D24,'توزيع يومى على المقاولين'!I22:I1115) -> 6475 | F24: 45648.75
C25: الثلاثاء | D25: =+'اجمالى التوريد والصرف والفرق'!B24 -> 2020-11-03 | E25: =SUMIF('توزيع يومى على المقاولين'!F23:I9316,D25,'توزيع يومى على المقاولين'!I23:I1116) -> 6452 | F25: 45486.6
C26: الأربعاء | D26: =+'اجمالى التوريد والصرف والفرق'!B25 -> 2020-11-04 | E26: =SUMIF('توزيع يومى على المقاولين'!F24:I9317,D26,'توزيع يومى على المقاولين'!I24:I1117) -> 6450 | F26: 45472.5
C27: السبت | D27: =+'اجمالى التوريد والصرف والفرق'!B26 -> 2020-11-07 | E27: =SUMIF('توزيع يومى على المقاولين'!F25:I9318,D27,'توزيع يومى على المقاولين'!I25:I1118) -> 6394 | F27: =+E27*7.05 -> 45077.7
C28: الأحد | D28: =+'اجمالى التوريد والصرف والفرق'!B27 -> 2020-11-08 | E28: =SUMIF('توزيع يومى على المقاولين'!F26:I9319,D28,'توزيع يومى على المقاولين'!I26:I1119) -> 12987 | F28: 91558.35
C29: =TEXT(D29,"dddd") -> الثلاثاء | D29: =+'اجمالى التوريد والصرف والفرق'!B29 -> 2020-11-10 | E29: =SUMIF('توزيع يومى على المقاولين'!F28:I9321,D29,'توزيع يومى على المقاولين'!I28:I1121) -> 6500 | F29: =+E29*7.05 -> 45825
C30: الأربعاء | D30: =+'اجمالى التوريد والصرف والفرق'!B30 -> 2020-11-11 | E30: =SUMIF('توزيع يومى على المقاولين'!F29:I9322,D30,'توزيع يومى على المقاولين'!I29:I1122) -> 6404 | F30: 45148.2
C31: السبت | D31: =+'اجمالى التوريد والصرف والفرق'!B31 -> 2020-11-14 | E31: =SUMIF('توزيع يومى على المقاولين'!F30:I9323,D31,'توزيع يومى على المقاولين'!I30:I1123) -> 6190 | F31: 43639.5
C32: الأحد | D32: =+'اجمالى التوريد والصرف والفرق'!B32 -> 2020-11-15 | E32: =SUMIF('توزيع يومى على المقاولين'!F31:I9324,D32,'توزيع يومى على المقاولين'!I31:I1124) -> 6500 | F32: 45825
C33: الإثنين | D33: =+'اجمالى التوريد والصرف والفرق'!B33 -> 2020-11-16 | E33: =SUMIF('توزيع يومى على المقاولين'!F32:I9325,D33,'توزيع يومى على المقاولين'!I32:I1125) -> 6500 | F33: 45825
C34: الأربعاء | D34: =+'اجمالى التوريد والصرف والفرق'!B34 -> 2020-11-18 | E34: =SUMIF('توزيع يومى على المقاولين'!F33:I9326,D34,'توزيع يومى على المقاولين'!I33:I1126) -> 6478 | F34: 45669.9
C35: السبت | D35: =+'اجمالى التوريد والصرف والفرق'!B35 -> 2020-11-21 | E35: =SUMIF('توزيع يومى على المقاولين'!F34:I9327,D35,'توزيع يومى على المقاولين'!I34:I1127) -> 6429 | F35: 45324.45
C36: الأحد | D36: =+'اجمالى التوريد والصرف والفرق'!B36 -> 2020-11-22 | E36: =SUMIF('توزيع يومى على المقاولين'!F35:I9328,D36,'توزيع يومى على المقاولين'!I35:I1128) -> 6360 | F36: 44838
C37: الإثنين | D37: =+'اجمالى التوريد والصرف والفرق'!B37 -> 2020-11-23 | E37: =SUMIF('توزيع يومى على المقاولين'!F36:I9329,D37,'توزيع يومى على المقاولين'!I36:I1129) -> 6426 | F37: 45303.3
C38: الثلاثاء | D38: =+'اجمالى التوريد والصرف والفرق'!B38 -> 2020-11-24 | E38: =SUMIF('توزيع يومى على المقاولين'!F37:I9330,D38,'توزيع يومى على المقاولين'!I37:I1130) -> 6446 | F38: 45444.3

Sheet تقرير المقاولين جاز (hidden)
B2: رقم الاذن | C2: اسم المقاول | D2: التاريخ | E2: التاريخ
C3: علوان | D3: =">="&B6 -> >=44114 | E3: ="<="&C6 -> <=44199
B5: من تاريخ | C5: الى تاريخ | F5: اجمالى الكمية | G5: السعر | H5: القيمة
B6: 2020-10-10 | C6: 2021-01-03 | F6: =SUBTOTAL(9,F10:F52002) -> 12881 | G6: 7.05 | H6: =+F6*G6 -> 90811.05
B7: تقرير تفصيلى لتوزيع اليومى للسولار الخاص بمحطة وليد
B9: اليوم | C9: التاريخ | D9: رقم الاذن | E9: اسم المقاول | F9: الكمية | G9: السعر | H9: القيمة
B10: السبت | C10: 2020-10-10 | D10: 578 | E10: رجب | F10: 700 | G10: 7.05 | H10: 4935
B11: الأحد | C11: 2020-10-11 | D11: 599 | E11: رجب | F11: 600 | G11: 7.05 | H11: 4230
B12: الاثنين | C12: 2020-10-12 | D12: 615 | E12: رجب | F12: 800 | G12: 7.05 | H12: 5640
B13: الثلاثاء | C13: 2020-10-13 | D13: 628 | E13: رجب | F13: 400 | G13: 7.05 | H13: 2820
B14: الاربعاء | C14: 2020-10-14 | D14: 641 | E14: رجب | F14: 600 | G14: 7.05 | H14: 4230
B15: السبت | C15: 2020-10-17 | D15: 658 | E15: رجب | F15: 750 | G15: 7.05 | H15: 5287.5
B16: الأحد | C16: 2020-10-18 | D16: 679 | E16: رجب | F16: 650 | G16: 7.05 | H16: 4582.5
B17: الإثنين | C17: 2020-10-19 | D17: 703 | E17: رجب | F17: 650 | G17: 7.05 | H17: 4582.5
B18: الثلاثاء | C18: 2020-10-20 | D18: 716 | E18: رجب | F18: 841 | G18: 7.05 | H18: 5929.05
B19: الأربعاء | C19: 2020-10-21 | D19: 738 | E19: رجب | F19: 500 | G19: 7.05 | H19: 3525
B20: السبت | C20: 2020-10-24 | D20: 752 | E20: رجب | F20: 800 | G20: 7.05 | H20: 5640
B21: الأحد | C21: 2020-10-25 | D21: 774 | E21: رجب | F21: 525 | G21: 7.05 | H21: 3701.25
B22: الإثنين | C22: 2020-10-26 | D22: 792 | E22: رجب | F22: 1400 | G22: 7.05 | H22: 9870
B23: الاربعاء | C23: 2020-10-28 | D23: 811 | E23: رجب | F23: 460 | G23: 7.05 | H23: 3243
B24: السبت | C24: 2020-10-31 | D24: 831 | E24: رجب | F24: 400 | G24: 7.05 | H24: 2820
B25: الأحد | C25: 2020-11-01 | D25: 846 | E25: رجب | F25: 500 | G25: 7.05 | H25: 3525
B26: الثلاثاء | C26: 2020-11-03 | D26: 879 | E26: رجب | F26: 452 | G26: 7.05 | H26: 3186.6
B27: الأربعاء | C27: 2020-11-04 | D27: 894 | E27: رجب | F27: 250 | G27: 7.05 | H27: 1762.5
B28: السبت | C28: 2020-11-07 | D28: 918 | E28: رجب | F28: 150 | G28: 7.05 | H28: 1057.5
B29: السبت | C29: 2020-11-07 | D29: 929 | E29: رجب | F29: 150 | G29: 7.05 | H29: 1057.5
B30: الأحد | C30: 2020-11-08 | D30: 949 | E30: رجب | F30: 50 | G30: 7.05 | H30: 352.5
B31: الأحد | C31: 2020-11-08 | D31: 960 | E31: رجب | F31: 200 | G31: 7.05 | H31: 1410
B32: الأحد | C32: 2020-11-08 | D32: 975 | E32: رجب | F32: 143 | G32: 7.05 | H32: 1008.15
B33: الأربعاء | C33: 2020-11-11 | D33: 1013 | E33: رجب | F33: 260 | G33: 7.05 | H33: 1833
B34: السبت | C34: 2020-11-14 | D34: 1026 | E34: رجب | F34: 100 | G34: 7.05 | H34: 705
B35: السبت | C35: 2020-11-14 | D35: 1032 | E35: رجب | F35: 100 | G35: 7.05 | H35: 705
B36: الأحد | C36: 2020-11-15 | D36: 1048 | E36: رجب | F36: 50 | G36: 7.05 | H36: 352.5
B37: السبت | C37: 2020-11-21 | D37: 1112 | E37: رجب | F37: 200 | G37: 7.05 | H37: 1410
B38: الأربعاء | C38: 2020-11-25 | D38: 1175 | E38: رجب | F38: 200 | G38: 7.05 | H38: 1410

Sheet توزيع يومى على المقاولين
E1: شركة ال حماد للمقاولات | J1: مشروع التسويات باللاهون
E3: بيان يومى تفصيلى بتوزيع السولار على المقاولين
H4: الاجمالى الكلى | I4: =SUM(I7:I17001) -> 342959 | J4: =+K4/I4 -> 7.05 | K4: =SUM(K7:K17001) -> 2417860.95
E6: اليوم | F6: التاريخ | G6: رقم الاذن | H6: اسم المقاول | I6: الكمية | J6: السعر | K6: القيمة
B7: =TEXT('تقرير قيمة الجاز يومى'!D9,"dddd") -> السبت | C7: =TEXT(F7,"mmmm") -> October | E7: السبت | F7: 2020-10-10 | G7: 577 | H7: الشيخ رجب | I7: 400 | J7: 7.05 | K7: =+I7*J7 -> 2820
B8: =TEXT(E8,"dddd") -> السبت | C8: =TEXT(F8,"mmmm") -> October | E8: السبت | F8: 2020-10-10 | G8: 578 | H8: رجب | I8: 700 | J8: 7.05 | K8: =+I8*J8 -> 4935
B9: السبت | C9: October | E9: السبت | F9: 2020-10-10 | G9: 579 | H9: السيد | I9: 650 | J9: 7.05 | K9: 4582.5
B10: السبت | C10: October | E10: السبت | F10: 2020-10-10 | G10: 580 | H10: جمال | I10: 400 | J10: 7.05 | K10: 2820
B11: السبت | C11: October | E11: السبت | F11: 2020-10-10 | G11: 581 | H11: أشرف | I11: 250 | J11: 7.05 | K11: 1762.5
B12: السبت | C12: October | E12: السبت | F12: 2020-10-10 | G12: 582 | H12: علوان | I12: 600 | J12: 7.05 | K12: 4230
B13: السبت | C13: October | E13: السبت | F13: 2020-10-10 | G13: 583 | H13: حلمى | I13: 800 | J13: 7.05 | K13: 5640
B14: السبت | C14: October | E14: السبت | F14: 2020-10-10 | G14: 584 | H14: أنور | I14: 400 | J14: 7.05 | K14: 2820
B15: السبت | C15: October | E15: السبت | F15: 2020-10-10 | G15: 585 | H15: جابر | I15: 1975 | J15: 7.05 | K15: 13923.75
B16: السبت | C16: October | E16: السبت | F16: 2020-10-10 | G16: 586 | H16: رمضان عربية ش | I16: 67 | J16: 7.05 | K16: 472.35
B17: السبت | C17: October | E17: السبت | F17: 2020-10-10 | G17: 587 | H17: محمد عيسى | I17: 255 | J17: 7.05 | K17: 1797.75
B18: الأحد | C18: October | E18: الأحد | F18: 2020-10-11 | G18: 596 | H18: علوان | I18: 900 | J18: 7.05 | K18: 6345
B19: الأحد | C19: October | E19: الأحد | F19: 2020-10-11 | G19: 597 | H19: أنور | I19: 400 | J19: 7.05 | K19: 2820
B20: الأحد | C20: October | E20: الأحد | F20: 2020-10-11 | G20: 598 | H20: عمر | I20: 40 | J20: 7.05 | K20: 282
B21: الأحد | C21: October | E21: الأحد | F21: 2020-10-11 | G21: 599 | H21: رجب | I21: 600 | J21: 7.05 | K21: 4230
B22: الأحد | C22: October | E22: الأحد | F22: 2020-10-11 | G22: 600 | H22: حلمى | I22: 700 | J22: 7.05 | K22: 4935
B23: الأحد | C23: October | E23: الأحد | F23: 2020-10-11 | G23: 601 | H23: حلمى25 | I23: 200 | J23: 7.05 | K23: 1410
B24: الأحد | C24: October | E24: الأحد | F24: 2020-10-11 | G24: 602 | H24: الشيخ رجب | I24: 400 | J24: 7.05 | K24: 2820
B25: الأحد | C25: October | E25: الأحد | F25: 2020-10-11 | G25: 603 | H25: جمال | I25: 350 | J25: 7.05 | K25: 2467.5
B26: الأحد | C26: October | E26: الأحد | F26: 2020-10-11 | G26: 604 | H26: أشرف | I26: 300 | J26: 7.05 | K26: 2115
B27: الأحد | C27: October | E27: الأحد | F27: 2020-10-11 | G27: 605 | H27: محمد عيسى | I27: 400 | J27: 7.05 | K27: 2820
B28: الأحد | C28: October | E28: الأحد | F28: 2020-10-11 | G28: 606 | H28: جابر | I28: 1300 | J28: 7.05 | K28: 9165
B29: الأحد | C29: October | E29: الأحد | F29: 2020-10-11 | G29: 607 | H29: السيد | I29: 910 | J29: 7.05 | K29: 6415.5
B30: الاثنين | C30: October | E30: الاثنين | F30: 2020-10-12 | G30: 614 | H30: أنور | I30: 400 | J30: 7.05 | K30: 2820
B31: الاثنين | C31: October | E31: الاثنين | F31: 2020-10-12 | G31: 615 | H31: رجب | I31: 800 | J31: 7.05 | K31: 5640
B32: الاثنين | C32: October | E32: الاثنين | F32: 2020-10-12 | G32: 616 | H32: علوان | I32: 700 | J32: 7.05 | K32: 4935
B33: الاثنين | C33: October | E33: الاثنين | F33: 2020-10-12 | G33: 617 | H33: جابر | I33: 1300 | J33: 7.05 | K33: 9165
B34: الاثنين | C34: October | E34: الاثنين | F34: 2020-10-12 | G34: 618 | H34: أشرف | I34: 300 | J34: 7.05 | K34: 2115
B35: الاثنين | C35: October | E35: الاثنين | F35: 2020-10-12 | G35: 619 | H35: جمال | I35: 400 | J35: 7.05 | K35: 2820
B36: الاثنين | C36: October | E36: الاثنين | F36: 2020-10-12 | G36: 620 | H36: السيد | I36: 650 | J36: 7.05 | K36: 4582.5
B37: الاثنين | C37: October | E37: الاثنين | F37: 2020-10-12 | G37: 621 | H37: محمد عيسى | I37: 400 | J37: 7.05 | K37: 2820
B38: الاثنين | C38: October | E38: الاثنين | F38: 2020-10-12 | G38: 622 | H38: ضيف | I38: 400 | J38: 7.05 | K38: 2820
B39: الاثنين | C39: October | E39: الاثنين | F39: 2020-10-12 | G39: 623 | H39: حلمى | I39: 1150 | J39: 7.05 | K39: 8107.5
B40: الثلاثاء | C40: October | E40: الثلاثاء | F40: 2020-10-13 | G40: 625 | H40: أنور | I40: 350 | J40: 7.05 | K40: 2467.5
B41: الثلاثاء | C41: October | E41: الثلاثاء | F41: 2020-10-13 | G41: 627 | H41: علوان | I41: 700 | J41: 7.05 | K41: 4935
B42: الثلاثاء | C42: October | E42: الثلاثاء | F42: 2020-10-13 | G42: 628 | H42: رجب | I42: 400 | J42: 7.05 | K42: 2820
B43: الثلاثاء | C43: October | E43: الثلاثاء | F43: 2020-10-13 | G43: 629 | H43: جابر | I43: 1600 | J43: 7.05 | K43: 11280
B44: الثلاثاء | C44: October | E44: الثلاثاء | F44: 2020-10-13 | G44: 630 | H44: السيد | I44: 900 | J44: 7.05 | K44: 6345
B45: الثلاثاء | C45: October | E45: الثلاثاء | F45: 2020-10-13 | G45: 631 | H45: السيد | I45: 12 | J45: 7.05 | K45: 84.6
B46: الثلاثاء | C46: October | E46: الثلاثاء | F46: 2020-10-13 | G46: 632 | H46: ضيف | I46: 315 | J46: 7.05 | K46: 2220.75
B47: الثلاثاء | C47: October | E47: الثلاثاء | F47: 2020-10-13 | G47: 633 | H47: حلمى | I47: 1230 | J47: 7.05 | K47: 8671.5
B48: الثلاثاء | C48: October | E48: الثلاثاء | F48: 2020-10-13 | G48: 634 | H48: جمال | I48: 560 | J48: 7.05 | K48: 3948
B49: الثلاثاء | C49: October | E49: الثلاثاء | F49: 2020-10-13 | G49: 635 | H49: جابر | I49: 384 | J49: 7.05 | K49: 2707.2
B50: الاربعاء | C50: October | E50: الاربعاء | F50: 2020-10-14 | G50: 639 | H50: أنور | I50: 350 | J50: 7.05 | K50: 2467.5
B51: الاربعاء | C51: October | E51: الاربعاء | F51: 2020-10-14 | G51: 640 | H51: علوان | I51: 800 | J51: 7.05 | K51: 5640
B52: الاربعاء | C52: October | E52: الاربعاء | F52: 2020-10-14 | G52: 641 | H52: رجب | I52: 600 | J52: 7.05 | K52: 4230
B53: الاربعاء | C53: October | E53: الاربعاء | F53: 2020-10-14 | G53: 642 | H53: محمد عيسى | I53: 400 | J53: 7.05 | K53: 2820
B54: الاربعاء | C54: October | E54: الاربعاء | F54: 2020-10-14 | G54: 643 | H54: السيد | I54: 750 | J54: 7.05 | K54: 5287.5
B55: الاربعاء | C55: October | E55: الاربعاء | F55: 2020-10-14 | G55: 644 | H55: خالد 54 | I55: 400 | J55: 7.05 | K55: 2820
B56: الاربعاء | C56: October | E56: الاربعاء | F56: 2020-10-14 | G56: 645 | H56: جابر | I56: 1300 | J56: 7.05 | K56: 9165
B57: الاربعاء | C57: October | E57: الاربعاء | F57: 2020-10-14 | G57: 646 | H57: حلمى | I57: 902 | J57: 7.05 | K57: 6359.1
B58: الاربعاء | C58: October | E58: الاربعاء | F58: 2020-10-14 | G58: 647 | H58: جمال | I58: 260 | J58: 7.05 | K58: 1833
B59: الاربعاء | C59: October | E59: الاربعاء | F59: 2020-10-14 | G59: 648 | H59: أشرف | I59: 240 | J59: 7.05 | K59: 1692
B60: الاربعاء | C60: October | E60: الاربعاء | F60: 2020-10-14 | G60: 649 | H60: رمضان عربية ش | I60: 50 | J60: 7.05 | K60: 352.5
B61: الاربعاء | C61: October | E61: الاربعاء | F61: 2020-10-14 | G61: 650 | H61: ضيف | I61: 400 | J61: 7.05 | K61: 2820
B62: السبت | C62: October | E62: السبت | F62: 2020-10-17 | G62: 657 | H62: أنور | I62: 400 | J62: 7.05 | K62: 2820
B63: السبت | C63: October | E63: السبت | F63: 2020-10-17 | G63: 658 | H63: رجب | I63: 750 | J63: 7.05 | K63: 5287.5
B64: السبت | C64: October | E64: السبت | F64: 2020-10-17 | G64: 659 | H64: محسن مياه | I64: 100 | J64: 7.05 | K64: 705
B65: السبت | C65: October | E65: السبت | F65: 2020-10-17 | G65: 660 | H65: عمر | I65: 120 | J65: 7.05 | K65: 846
B66: السبت | C66: October | E66: السبت | F66: 2020-10-17 | G66: 661 | H66: علوان | I66: 400 | J66: 7.05 | K66: 2820
B67: السبت | C67: October | E67: السبت | F67: 2020-10-17 | G67: 662 | H67: أشرف | I67: 300 | J67: 7.05 | K67: 2115
B68: السبت | C68: October | E68: السبت | F68: 2020-10-17 | G68: 663 | H68: ضيف | I68: 300 | J68: 7.05 | K68: 2115
B69: السبت | C69: October | E69: السبت | F69: 2020-10-17 | G69: 664 | H69: السيد | I69: 1200 | J69: 7.05 | K69: 8460
B70: السبت | C70: October | E70: السبت | F70: 2020-10-17 | G70: 665 | H70: خالد 54 | I70: 400 | J70: 7.05 | K70: 2820
B71: =TEXT(E71,"dddd") -> السبت | C71: October | E71: السبت | F71: 2020-10-17 | G71: 666 | H71: جمال | I71: 350 | J71: 7.05 | K71: 2467.5
B72: السبت | C72: =TEXT(F72,"mmmm") -> October | E72: السبت | F72: 2020-10-17 | G72: 667 | H72: رمضان عربية ش | I72: 70 | J72: 7.05 | K72: =+I72*J72 -> 493.5
B73: السبت | C73: October | E73: السبت | F73: 2020-10-17 | G73: 668 | H73: جابر | I73: 1560 | J73: 7.05 | K73: 10998
B74: السبت | C74: October | E74: السبت | F74: 2020-10-17 | G74: 669 | H74: محمد عيسى | I74: 400 | J74: 7.05 | K74: 2820
B75: السبت | C75: October | E75: السبت | F75: 2020-10-17 | G75: 669 | H75: علوان | I75: 150 | J75: 7.05 | K75: 1057.5
B76: الأحد | C76: October | E76: الأحد | F76: 2020-10-18 | G76: 679 | H76: رجب | I76: 650 | J76: 7.05 | K76: 4582.5
B77: الأحد | C77: October | E77: الأحد | F77: 2020-10-18 | G77: 680 | H77: محسن مياه | I77: 50 | J77: 7.05 | K77: 352.5
B78: الأحد | C78: October | E78: الأحد | F78: 2020-10-18 | G78: 681 | H78: عمر | I78: 175 | J78: 7.05 | K78: 1233.75
B79: الأحد | C79: October | E79: الأحد | F79: 2020-10-18 | G79: 682 | H79: محمد عيسى | I79: 400 | J79: 7.05 | K79: 2820
B80: الأحد | C80: October | E80: الأحد | F80: 2020-10-18 | G80: 683 | H80: أنور | I80: 400 | J80: 7.05 | K80: 2820
B81: الأحد | C81: October | E81: الأحد | F81: 2020-10-18 | G81: 684 | H81: علوان | I81: 400 | J81: 7.05 | K81: 2820
B82: الأحد | C82: October | E82: الأحد | F82: 2020-10-18 | G82: 685 | H82: ضيف | I82: 300 | J82: 7.05 | K82: 2115
B83: الأحد | C83: October | E83: الأحد | F83: 2020-10-18 | G83: 686 | H83: حلمى | I83: 50 | J83: 7.05 | K83: 352.5
B84: الأحد | C84: October | E84: الأحد | F84: 2020-10-18 | G84: 687 | H84: حلمى25 | I84: 350 | J84: 7.05 | K84: 2467.5
B85: الأحد | C85: October | E85: الأحد | F85: 2020-10-18 | G85: 688 | H85: محسن مياه | I85: 50 | J85: 7.05 | K85: 352.5
B86: الأحد | C86: October | E86: الأحد | F86: 2020-10-18 | G86: 689 | H86: خالد 54 | I86: 500 | J86: 7.05 | K86: 3525
B87: الأحد | C87: October | E87: الأحد | F87: 2020-10-18 | G87: 690 | H87: السيد | I87: 1100 | J87: 7.05 | K87: 7755
B88: الأحد | C88: October | E88: الأحد | F88: 2020-10-18 | G88: 691 | H88: جمال | I88: 300 | J88: 7.05 | K88: 2115
B89: الأحد | C89: October | E89: الأحد | F89: 2020-10-18 | G89: 692 | H89: أشرف | I89: 350 | J89: 7.05 | K89: 2467.5
B90: الأحد | C90: October | E90: الأحد | F90: 2020-10-18 | G90: 693 | H90: جابر | I90: 1420 | J90: 7.05 | K90: 10011
B91: الإثنين | C91: October | E91: الإثنين | F91: 2020-10-19 | G91: 698 | H91: السيد | I91: 900 | J91: =IFERROR(IF(H91<>"",7.05,""),"") -> 7.05 | K91: 6345
B92: الإثنين | C92: October | E92: الإثنين | F92: 2020-10-19 | G92: 699 | H92: خالد 54 | I92: 750 | J92: =IFERROR(IF(H92<>"",7.05,""),"") -> 7.05 | K92: 5287.5
B93: الإثنين | C93: October | E93: الإثنين | F93: 2020-10-19 | G93: 700 | H93: علوان | I93: 500 | J93: 7.05 | K93: 3525
B94: الإثنين | C94: October | E94: الإثنين | F94: 2020-10-19 | G94: 701 | H94: حلمى25 | I94: 990 | J94: 7.05 | K94: 6979.5
B95: الإثنين | C95: October | E95: الإثنين | F95: 2020-10-19 | G95: 702 | H95: ضيف | I95: 300 | J95: 7.05 | K95: 2115
B96: الإثنين | C96: October | E96: الإثنين | F96: 2020-10-19 | G96: 703 | H96: رجب | I96: 650 | J96: 7.05 | K96: 4582.5
B97: الإثنين | C97: October | E97: الإثنين | F97: 2020-10-19 | G97: 704 | H97: أنور | I97: 300 | J97: 7.05 | K97: 2115
B98: الإثنين | C98: October | E98: الإثنين | F98: 2020-10-19 | G98: 705 | H98: محسن مياه | I98: 20 | J98: 7.05 | K98: 141
B99: الإثنين | C99: October | E99: الإثنين | F99: 2020-10-19 | G99: 706 | H99: محسن مياه | I99: 20 | J99: 7.05 | K99: 141
B100: الإثنين | C100: October | E100: الإثنين | F100: 2020-10-19 | G100: 707 | H100: جمال | I100: 300 | J100: 7.05 | K100: 2115
B101: الإثنين | C101: October | E101: الإثنين | F101: 2020-10-19 | G101: 708 | H101: عمر | I101: 125 | J101: 7.05 | K101: 881.25
B102: الإثنين | C102: October | E102: الإثنين | F102: 2020-10-19 | G102: 709 | H102: حلمى | I102: 20 | J102: 7.05 | K102: 141
B103: الإثنين | C103: October | E103: الإثنين | F103: 2020-10-19 | G103: 711 | H103: أشرف | I103: 230 | J103: 7.05 | K103: 1621.5
B104: الإثنين | C104: October | E104: الإثنين | F104: 2020-10-19 | G104: 712 | H104: جابر | I104: 1174 | J104: 7.05 | K104: 8276.7
B105: الثلاثاء | C105: October | E105: الثلاثاء | F105: 2020-10-20 | G105: 715 | H105: علوان | I105: 600 | J105: 7.05 | K105: 4230
B106: الثلاثاء | C106: October | E106: الثلاثاء | F106: 2020-10-20 | G106: 716 | H106: رجب | I106: 841 | J106: 7.05 | K106: 5929.05
B107: الثلاثاء | C107: October | E107: الثلاثاء | F107: 2020-10-20 | G107: 717 | H107: أنور | I107: 300 | J107: 7.05 | K107: 2115
B108: الثلاثاء | C108: October | E108: الثلاثاء | F108: 2020-10-20 | G108: 718 | H108: عمر | I108: 345 | J108: 7.05 | K108: 2432.25
B109: الثلاثاء | C109: October | E109: الثلاثاء | F109: 2020-10-20 | G109: 719 | H109: السيد | I109: 700 | J109: 7.05 | K109: 4935
B110: الثلاثاء | C110: October | E110: الثلاثاء | F110: 2020-10-20 | G110: 720 | H110: خالد 54 | I110: 700 | J110: 7.05 | K110: 4935
B111: الثلاثاء | C111: October | E111: الثلاثاء | F111: 2020-10-20 | G111: 721 | H111: حلمى | I111: 450 | J111: 7.05 | K111: 3172.5
B112: الثلاثاء | C112: October | E112: الثلاثاء | F112: 2020-10-20 | G112: 722 | H112: حلمى25 | I112: 200 | J112: 7.05 | K112: 1410
B113: الثلاثاء | C113: October | E113: الثلاثاء | F113: 2020-10-20 | G113: 723 | H113: محمد عيسى | I113: 300 | J113: 7.05 | K113: 2115
B114: الثلاثاء | C114: October | E114: الثلاثاء | F114: 2020-10-20 | G114: 724 | H114: أشرف | I114: 300 | J114: 7.05 | K114: 2115
B115: الثلاثاء | C115: October | E115: الثلاثاء | F115: 2020-10-20 | G115: 725 | H115: جابر | I115: 1225 | J115: 7.05 | K115: 8636.25
B116: الثلاثاء | C116: October | E116: الثلاثاء | F116: 2020-10-20 | G116: 726 | H116: ضيف | I116: 300 | J116: 7.05 | K116: 2115
B117: الثلاثاء | C117: October | E117: الثلاثاء | F117: 2020-10-20 | G117: 727 | H117: جمال | I117: 350 | J117: 7.05 | K117: 2467.5
B118: الأربعاء | C118: =TEXT(F118,"mmmm") -> October | E118: الأربعاء | F118: 2020-10-21 | G118: 729 | H118: محسن مياه | I118: 50 | J118: 7.05 | K118: 352.5
B119: الأربعاء | C119: October | E119: الأربعاء | F119: 2020-10-21 | G119: 730 | H119: السيد | I119: 800 | J119: 7.05 | K119: 5640
B120: الأربعاء | C120: October | E120: الأربعاء | F120: 2020-10-21 | G120: 731 | H120: خالد 54 | I120: 1000 | J120: 7.05 | K120: 7050
B121: الأربعاء | C121: October | E121: الأربعاء | F121: 2020-10-21 | G121: 732 | H121: أنور | I121: 300 | J121: 7.05 | K121: 2115
B122: الأربعاء | C122: October | E122: الأربعاء | F122: 2020-10-21 | G122: 733 | H122: ضيف | I122: 200 | J122: 7.05 | K122: 1410
B123: الأربعاء | C123: October | E123: الأربعاء | F123: 2020-10-21 | G123: 734 | H123: محمد عيسى | I123: 300 | J123: 7.05 | K123: 2115
B124: الأربعاء | C124: October | E124: الأربعاء | F124: 2020-10-21 | G124: 735 | H124: محسن مياه | I124: 50 | J124: 7.05 | K124: 352.5
B125: الأربعاء | C125: October | E125: الأربعاء | F125: 2020-10-21 | G125: 736 | H125: حلمى25 | I125: 300 | J125: 7.05 | K125: 2115
B126: الأربعاء | C126: October | E126: الأربعاء | F126: 2020-10-21 | G126: 737 | H126: حلمى | I126: 300 | J126: 7.05 | K126: 2115
B127: الأربعاء | C127: October | E127: الأربعاء | F127: 2020-10-21 | G127: 738 | H127: رجب | I127: 500 | J127: 7.05 | K127: 3525
B128: الأربعاء | C128: October | E128: الأربعاء | F128: 2020-10-21 | G128: 739 | H128: رمضان عربية ش | I128: 78 | J128: 7.05 | K128: 549.9
B129: الأربعاء | C129: October | E129: الأربعاء | F129: 2020-10-21 | G129: 740 | H129: عمر | I129: 200 | J129: 7.05 | K129: 1410
B130: الأربعاء | C130: October | E130: الأربعاء | F130: 2020-10-21 | G130: 741 | H130: علوان | I130: 400 | J130: 7.05 | K130: 2820
B131: الأربعاء | C131: October | E131: الأربعاء | F131: 2020-10-21 | G131: 742 | H131: جمال | I131: 230 | J131: 7.05 | K131: 1621.5
B132: الأربعاء | C132: October | E132: الأربعاء | F132: 2020-10-21 | G132: 743 | H132: محسن مياه | I132: 40 | J132: 7.05 | K132: 282
B133: الأربعاء | C133: October | E133: الأربعاء | F133: 2020-10-21 | G133: 744 | H133: أشرف | I133: 462 | J133: 7.05 | K133: 3257.1
B134: الأربعاء | C134: October | E134: الأربعاء | F134: 2020-10-21 | G134: 745 | H134: جابر | I134: 1290 | J134: 7.05 | K134: 9094.5
B135: =TEXT(E135,"dddd") -> السبت | C135: October | E135: السبت | F135: 2020-10-24 | G135: 751 | H135: أشرف | I135: 480 | J135: 7.05 | K135: 3384
B136: السبت | C136: October | E136: السبت | F136: 2020-10-24 | G136: 752 | H136: رجب | I136: 800 | J136: 7.05 | K136: =+I136*J136 -> 5640
B137: السبت | C137: =TEXT(F137,"mmmm") -> October | E137: السبت | F137: 2020-10-24 | G137: 753 | H137: جابر | I137: 1500 | J137: 7.05 | K137: 10575
B138: السبت | C138: October | E138: السبت | F138: 2020-10-24 | G138: 754 | H138: السيد | I138: 1000 | J138: 7.05 | K138: 7050
B139: السبت | C139: October | E139: السبت | F139: 2020-10-24 | G139: 755 | H139: خالد 54 | I139: 1000 | J139: 7.05 | K139: 7050
B140: السبت | C140: October | E140: السبت | F140: 2020-10-24 | G140: 756 | H140: جمال | I140: 350 | J140: 7.05 | K140: 2467.5
B141: السبت | C141: October | E141: السبت | F141: 2020-10-24 | G141: 757 | H141: أنور | I141: 350 | J141: 7.05 | K141: 2467.5
B142: السبت | C142: October | E142: السبت | F142: 2020-10-24 | G142: 758 | H142: محمد عيسى | I142: 400 | J142: 7.05 | K142: 2820
B143: السبت | C143: October | E143: السبت | F143: 2020-10-24 | G143: 759 | H143: ضيف | I143: 400 | J143: 7.05 | K143: 2820
B144: السبت | C144: October | E144: السبت | F144: 2020-10-24 | G144: 760 | H144: رمضان عربية ش | I144: 75 | J144: 7.05 | K144: 528.75
B145: السبت | C145: October | E145: السبت | F145: 2020-10-24 | G145: 766 | H145: محسن مياه | I145: 111 | J145: 7.05 | K145: 782.55
B146: الأحد | C146: October | E146: الأحد | F146: 2020-10-25 | G146: 772 | H146: أنور | I146: 300 | J146: 7.05 | K146: 2115
B147: الأحد | C147: October | E147: الأحد | F147: 2020-10-25 | G147: 773 | H147: جابر | I147: 1906 | J147: 7.05 | K147: 13437.3
B148: الأحد | C148: October | E148: الأحد | F148: 2020-10-25 | G148: 774 | H148: رجب | I148: 525 | J148: 7.05 | K148: 3701.25
B149: الأحد | C149: October | E149: الأحد | F149: 2020-10-25 | G149: 775 | H149: السيد | I149: 700 | J149: 7.05 | K149: 4935
B150: الأحد | C150: October | E150: الأحد | F150: 2020-10-25 | G150: 776 | H150: خالد 54 | I150: 600 | J150: 7.05 | K150: 4230
B151: الأحد | C151: October | E151: الأحد | F151: 2020-10-25 | G151: 777 | H151: جمال | I151: 350 | J151: 7.05 | K151: 2467.5
B152: الأحد | C152: October | E152: الأحد | F152: 2020-10-25 | G152: 778 | H152: محمد عيسى | I152: 400 | J152: 7.05 | K152: 2820
B153: الأحد | C153: October | E153: الأحد | F153: 2020-10-25 | G153: 779 | H153: أشرف | I153: 530 | J153: 7.05 | K153: 3736.5
B154: الأحد | C154: October | E154: الأحد | F154: 2020-10-25 | G154: 780 | H154: حلمى25 | I154: 900 | J154: 7.05 | K154: 6345
B155: الأحد | C155: October | E155: الأحد | F155: 2020-10-25 | G155: 781 | H155: ضيف | I155: 125 | J155: 7.05 | K155: 881.25
B156: الأحد | C156: October | E156: الأحد | F156: 2020-10-25 | G156: 782 | H156: محسن مياه | I156: 164 | J156: 7.05 | K156: 1156.2
B157: الإثنين | C157: October | E157: الإثنين | F157: 2020-10-26 | G157: 787 | H157: ضيف | I157: 393 | J157: =IFERROR(IF(H157<>"",7.05,""),"") -> 7.05 | K157: 2770.65
B158: الإثنين | C158: October | E158: الإثنين | F158: 2020-10-26 | G158: 788 | H158: أنور | I158: 350 | J158: 7.05 | K158: 2467.5
B159: الإثنين | C159: October | E159: الإثنين | F159: 2020-10-26 | G159: 789 | H159: علوان | I159: 400 | J159: 7.05 | K159: 2820
B160: الإثنين | C160: October | E160: الإثنين | F160: 2020-10-26 | G160: 790 | H160: جابر | I160: 1857 | J160: 7.05 | K160: 13091.85
B161: الإثنين | C161: October | E161: الإثنين | F161: 2020-10-26 | G161: 791 | H161: علوان | I161: 106 | J161: 7.05 | K161: 747.3
B162: الإثنين | C162: October | E162: الإثنين | F162: 2020-10-26 | G162: 792 | H162: رجب | I162: 1400 | J162: 7.05 | K162: 9870
B163: الإثنين | C163: October | E163: الإثنين | F163: 2020-10-26 | G163: 793 | H163: عمر | I163: 102 | J163: 7.05 | K163: 719.1
B164: =TEXT(E164,"dddd") -> الإثنين | C164: October | E164: الإثنين | F164: 2020-10-26 | G164: 794 | H164: أشرف | I164: 470 | J164: 7.05 | K164: 3313.5
B165: =TEXT(E165,"dddd") -> الإثنين | C165: October | E165: الإثنين | F165: 2020-10-26 | G165: 795 | H165: جمال | I165: 266 | J165: 7.05 | K165: 1875.3
B166: الإثنين | C166: October | E166: الإثنين | F166: 2020-10-26 | G166: 796 | H166: السيد | I166: 460 | J166: 7.05 | K166: 3243
B167: الإثنين | C167: October | E167: الإثنين | F167: 2020-10-26 | G167: 797 | H167: محمد عيسى | I167: 466 | J167: 7.05 | K167: 3285.3
B168: الإثنين | C168: October | E168: الإثنين | F168: 2020-10-26 | G168: 798 | H168: محسن مياه | I168: 102 | J168: 7.05 | K168: 719.1
B169: الإثنين | C169: October | E169: الإثنين | F169: 2020-10-26 | G169: 799 | H169: محسن مياه | I169: 128 | J169: 7.05 | K169: 902.4
B170: =TEXT(E170,"dddd") -> الاربعاء | C170: October | E170: الاربعاء | F170: 2020-10-28 | G170: 808 | H170: محسن مياه | I170: 40 | J170: 7.05 | K170: 282
B171: الاربعاء | C171: October | E171: الاربعاء | F171: 2020-10-28 | G171: 809 | H171: جابر | I171: 1400 | J171: 7.05 | K171: 9870
B172: الاربعاء | C172: October | E172: الاربعاء | F172: 2020-10-28 | G172: 810 | H172: حلمى | I172: 1110 | J172: 7.05 | K172: 7825.5
B173: الاربعاء | C173: October | E173: الاربعاء | F173: 2020-10-28 | G173: 811 | H173: رجب | I173: 460 | J173: 7.05 | K173: 3243
B174: الاربعاء | C174: October | E174: الاربعاء | F174: 2020-10-28 | G174: 812 | H174: أنور | I174: 350 | J174: 7.05 | K174: 2467.5
B175: الاربعاء | C175: October | E175: الاربعاء | F175: 2020-10-28 | G175: 813 | H175: أشرف | I175: 403 | J175: 7.05 | K175: 2841.15
B176: الاربعاء | C176: October | E176: الاربعاء | F176: 2020-10-28 | G176: 814 | H176: السيد | I176: 550 | J176: 7.05 | K176: 3877.5
B177: الاربعاء | C177: October | E177: الاربعاء | F177: 2020-10-28 | G177: 815 | H177: خالد 54 | I177: 600 | J177: 7.05 | K177: 4230
B178: الاربعاء | C178: October | E178: الاربعاء | F178: 2020-10-28 | G178: 816 | H178: خالد 31 | I178: 400 | J178: 7.05 | K178: 2820
B179: الاربعاء | C179: October | E179: الاربعاء | F179: 2020-10-28 | G179: 817 | H179: محمد عيسى | I179: 250 | J179: 7.05 | K179: 1762.5
B180: الاربعاء | C180: October | E180: الاربعاء | F180: 2020-10-28 | G180: 818 | H180: ضيف | I180: 450 | J180: 7.05 | K180: 3172.5
B181: الاربعاء | C181: October | E181: الاربعاء | F181: 2020-10-28 | G181: 819 | H181: علوان | I181: 254 | J181: 7.05 | K181: 1790.7
B182: الاربعاء | C182: October | E182: الاربعاء | F182: 2020-10-28 | G182: 820 | H182: ضيف | I182: 50 | J182: 7.05 | K182: 352.5
B183: الاربعاء | C183: October | E183: الاربعاء | F183: 2020-10-28 | G183: 821 | H183: محسن مياه | I183: 100 | J183: 7.05 | K183: 705
B184: الاربعاء | C184: October | E184: الاربعاء | F184: 2020-10-28 | G184: 822 | H184: رمضان عربية ش | I184: 83 | J184: 7.05 | K184: 585.15
B185: السبت | C185: October | E185: السبت | F185: 2020-10-31 | G185: 824 | H185: أنور | I185: 350 | J185: 7.05 | K185: =IFERROR(IF(H18<>"",I185*J185,""),"") -> 2467.5
B186: السبت | C186: October | E186: السبت | F186: 2020-10-31 | G186: 825 | H186: أشرف | I186: 250 | J186: 7.05 | K186: =IFERROR(IF(H19<>"",I186*J186,""),"") -> 1762.5
B187: السبت | C187: October | E187: السبت | F187: 2020-10-31 | G187: 826 | H187: عمر | I187: 130 | J187: 7.05 | K187: 916.5
B188: السبت | C188: October | E188: السبت | F188: 2020-10-31 | G188: 827 | H188: حلمى | I188: 650 | J188: 7.05 | K188: 4582.5
B189: السبت | C189: October | E189: السبت | F189: 2020-10-31 | G189: 828 | H189: خالد 31 | I189: 500 | J189: 7.05 | K189: 3525
B190: السبت | C190: October | E190: السبت | F190: 2020-10-31 | G190: 829 | H190: خالد 54 | I190: 900 | J190: 7.05 | K190: 6345
B191: السبت | C191: October | E191: السبت | F191: 2020-10-31 | G191: 830 | H191: ضيف | I191: 490 | J191: 7.05 | K191: 3454.5
B192: السبت | C192: October | E192: السبت | F192: 2020-10-31 | G192: 831 | H192: رجب | I192: 400 | J192: 7.05 | K192: 2820
B193: السبت | C193: October | E193: السبت | F193: 2020-10-31 | G193: 832 | H193: علوان | I193: 500 | J193: 7.05 | K193: 3525
B194: السبت | C194: October | E194: السبت | F194: 2020-10-31 | G194: 833 | H194: جابر | I194: 2000 | J194: 7.05 | K194: 14100
B195: السبت | C195: October | E195: السبت | F195: 2020-10-31 | G195: 835 | H195: خالد 54 | I195: 200 | J195: 7.05 | K195: 1410
B196: السبت | C196: October | E196: السبت | F196: 2020-10-31 | G196: 837 | H196: محسن مياه | I196: 130 | J196: 7.05 | K196: 916.5
B197: الاحد | C197: November | E197: الاحد | F197: 2020-11-01 | G197: 841 | H197: محمد عيسى | I197: 400 | J197: 7.05 | K197: 2820
B198: الاحد | C198: November | E198: الاحد | F198: 2020-11-01 | G198: 842 | H198: أشرف | I198: 230 | J198: 7.05 | K198: 1621.5
B199: الأحد | C199: November | E199: الأحد | F199: 2020-11-01 | G199: 843 | H199: أنور | I199: 350 | J199: 7.05 | K199: 2467.5
B200: الأحد | C200: November | E200: الأحد | F200: 2020-11-01 | G200: 844 | H200: جمال | I200: 329 | J200: 7.05 | K200: 2319.45
B201: الأحد | C201: =TEXT(F201,"mmmm") -> November | E201: الأحد | F201: 2020-11-01 | G201: 845 | H201: رمضان عربية ش | I201: 70 | J201: 7.05 | K201: 493.5
B202: الأحد | C202: November | E202: الأحد | F202: 2020-11-01 | G202: 846 | H202: رجب | I202: 500 | J202: 7.05 | K202: 3525
... 1831 more rows

Sheet الشيخ رجب
B3: اليوم | C3: التاريخ | D3: رقم الاذن | E3: اسم المقاول | F3: الكمية | G3: السعر | H3: القيمة
A4: 1 | B4: السبت | C4: 2020-10-10 | D4: 577 | E4: الشيخ رجب | F4: 400 | G4: 7.05 | H4: =+F4*G4 -> 2820
A5: 2 | B5: الأحد | C5: 2020-10-11 | D5: 602 | E5: الشيخ رجب | F5: 400 | G5: 7.05 | H5: =+F5*G5 -> 2820

Sheet رجب
B3: اليوم | C3: التاريخ | D3: رقم الاذن | E3: اسم المقاول | F3: الكمية | G3: السعر | H3: القيمة
A4: 1 | B4: السبت | C4: 2020-10-10 | D4: 578 | E4: رجب | F4: 700 | G4: 7.05 | H4: =+F4*G4 -> 4935
A5: 2 | B5: الأحد | C5: 2020-10-11 | D5: 599 | E5: رجب | F5: 600 | G5: 7.05 | H5: 4230
A6: 3 | B6: الاثنين | C6: 2020-10-12 | D6: 615 | E6: رجب | F6: 800 | G6: 7.05 | H6: 5640
A7: 4 | B7: الثلاثاء | C7: 2020-10-13 | D7: 628 | E7: رجب | F7: 400 | G7: 7.05 | H7: 2820
A8: 5 | B8: الاربعاء | C8: 2020-10-14 | D8: 641 | E8: رجب | F8: 600 | G8: 7.05 | H8: 4230
A9: 6 | B9: السبت | C9: 2020-10-17 | D9: 658 | E9: رجب | F9: 750 | G9: 7.05 | H9: 5287.5
A10: 7 | B10: الأحد | C10: 2020-10-18 | D10: 679 | E10: رجب | F10: 650 | G10: 7.05 | H10: 4582.5
A11: 8 | B11: الإثنين | C11: 2020-10-19 | D11: 703 | E11: رجب | F11: 650 | G11: =IFERROR(IF(E11<>"",7.05,""),"") -> 7.05 | H11: 4582.5
A12: 9 | B12: الثلاثاء | C12: 2020-10-20 | D12: 716 | E12: رجب | F12: 841 | G12: 7.05 | H12: 5929.05
A13: 10 | B13: الأربعاء | C13: 2020-10-21 | D13: 738 | E13: رجب | F13: 500 | G13: 7.05 | H13: 3525
A14: 11 | B14: السبت | C14: 2020-10-24 | D14: 752 | E14: رجب | F14: 800 | G14: 7.05 | H14: 5640
A15: 12 | B15: الأحد | C15: 2020-10-25 | D15: 774 | E15: رجب | F15: 525 | G15: 7.05 | H15: 3701.25
A16: 13 | B16: الإثنين | C16: 2020-10-26 | D16: 792 | E16: رجب | F16: 1400 | G16: 7.05 | H16: 9870
A17: 14 | B17: الاربعاء | C17: 2020-10-28 | D17: 811 | E17: رجب | F17: 460 | G17: 7.05 | H17: 3243
A18: 15 | B18: السبت | C18: 2020-10-31 | D18: 831 | E18: رجب | F18: 400 | G18: 7.05 | H18: =IFERROR(IF(#REF!<>"",F18*G18,""),"") -> 
A19: 16 | B19: الأحد | C19: 2020-11-01 | D19: 846 | E19: رجب | F19: 500 | G19: 7.05 | H19: =IFERROR(IF(#REF!<>"",F19*G19,""),"") -> 
A20: 17 | B20: الثلاثاء | C20: 2020-11-03 | D20: 879 | E20: رجب | F20: 452 | G20: 7.05 | H20: =IFERROR(IF(#REF!<>"",F20*G20,""),"") -> 
A21: 18 | B21: الأربعاء | C21: 2020-11-04 | D21: 894 | E21: رجب | F21: 250 | G21: 7.05 | H21: =IFERROR(IF(#REF!<>"",F21*G21,""),"") -> 
A22: 19 | B22: السبت | C22: 2020-11-07 | D22: 918 | E22: رجب | F22: 150 | G22: 7.05 | H22: =IFERROR(IF(#REF!<>"",F22*G22,""),"") -> 
A23: 20 | B23: السبت | C23: 2020-11-07 | D23: 929 | E23: رجب | F23: 150 | G23: 7.05 | H23: =IFERROR(IF(#REF!<>"",F23*G23,""),"") -> 
A24: 21 | B24: الأحد | C24: 2020-11-08 | D24: 949 | E24: رجب | F24: 50 | G24: 7.05 | H24: =IFERROR(IF(#REF!<>"",F24*G24,""),"") -> 
A25: 22 | B25: الأحد | C25: 2020-11-08 | D25: 960 | E25: رجب | F25: 200 | G25: 7.05 | H25: =IFERROR(IF(#REF!<>"",F25*G25,""),"") -> 
A26: 23 | B26: الأحد | C26: 2020-11-08 | D26: 975 | E26: رجب | F26: 143 | G26: 7.05 | H26: =IFERROR(IF(#REF!<>"",F26*G26,""),"") -> 
A27: 24 | B27: الأربعاء | C27: 2020-11-11 | D27: 1013 | E27: رجب | F27: 260 | G27: 7.05 | H27: =IFERROR(IF(#REF!<>"",F27*G27,""),"") -> 
A28: 25 | B28: السبت | C28: 2020-11-14 | D28: 1026 | E28: رجب | F28: 100 | G28: 7.05 | H28: =IFERROR(IF(#REF!<>"",F28*G28,""),"") -> 
A29: 26 | B29: السبت | C29: 2020-11-14 | D29: 1032 | E29: رجب | F29: 100 | G29: 7.05 | H29: =IFERROR(IF(#REF!<>"",F29*G29,""),"") -> 
A30: 27 | B30: الأحد | C30: 2020-11-15 | D30: 1048 | E30: رجب | F30: 50 | G30: 7.05 | H30: =IFERROR(IF(#REF!<>"",F30*G30,""),"") -> 
A31: 28 | B31: السبت | C31: 2020-11-21 | D31: 1112 | E31: رجب | F31: 200 | G31: 7.05 | H31: =IFERROR(IF(#REF!<>"",F31*G31,""),"") -> 
A32: 29 | B32: الأربعاء | C32: 2020-11-25 | D32: 1175 | E32: رجب | F32: 200 | G32: 7.05 | H32: =IFERROR(IF(#REF!<>"",F32*G32,""),"") -> 

Sheet السيد
B3: اليوم | C3: التاريخ | D3: رقم الاذن | E3: اسم المقاول | F3: الكمية | G3: السعر | H3: القيمة
A4: 1 | B4: السبت | C4: 2020-10-10 | D4: 579 | E4: السيد | F4: 650 | G4: 7.05 | H4: =+F4*G4 -> 4582.5
A5: 2 | B5: الأحد | C5: 2020-10-11 | D5: 607 | E5: السيد | F5: 910 | G5: 7.05 | H5: 6415.5
A6: 3 | B6: الاثنين | C6: 2020-10-12 | D6: 620 | E6: السيد | F6: 650 | G6: 7.05 | H6: 4582.5
A7: 4 | B7: الثلاثاء | C7: 2020-10-13 | D7: 630 | E7: السيد | F7: 900 | G7: 7.05 | H7: 6345
A8: 5 | B8: الثلاثاء | C8: 2020-10-13 | D8: 631 | E8: السيد | F8: 12 | G8: 7.05 | H8: 84.6
A9: 6 | B9: الاربعاء | C9: 2020-10-14 | D9: 643 | E9: السيد | F9: 750 | G9: 7.05 | H9: 5287.5
A10: 7 | B10: السبت | C10: 2020-10-17 | D10: 664 | E10: السيد | F10: 1200 | G10: 7.05 | H10: 8460
A11: 8 | B11: الأحد | C11: 2020-10-18 | D11: 690 | E11: السيد | F11: 1100 | G11: 7.05 | H11: 7755
A12: 9 | B12: الإثنين | C12: 2020-10-19 | D12: 698 | E12: السيد | F12: 900 | G12: =IFERROR(IF(E12<>"",7.05,""),"") -> 7.05 | H12: 6345
A13: 10 | B13: الثلاثاء | C13: 2020-10-20 | D13: 719 | E13: السيد | F13: 700 | G13: =IFERROR(IF(E13<>"",7.05,""),"") -> 7.05 | H13: 4935
A14: 11 | B14: الأربعاء | C14: 2020-10-21 | D14: 730 | E14: السيد | F14: 800 | G14: 7.05 | H14: 5640
A15: 12 | B15: السبت | C15: 2020-10-24 | D15: 754 | E15: السيد | F15: 1000 | G15: 7.05 | H15: 7050
A16: 13 | B16: الأحد | C16: 2020-10-25 | D16: 775 | E16: السيد | F16: 700 | G16: 7.05 | H16: 4935
A17: 14 | B17: الإثنين | C17: 2020-10-26 | D17: 796 | E17: السيد | F17: 460 | G17: 7.05 | H17: 3243
A18: 15 | B18: الاربعاء | C18: 2020-10-28 | D18: 814 | E18: السيد | F18: 550 | G18: 7.05 | H18: 3877.5
A19: 16 | B19: الأحد | C19: 2020-11-01 | D19: 850 | E19: السيد | F19: 120 | G19: 7.05 | H19: =IFERROR(IF(#REF!<>"",F19*G19,""),"") -> 
A20: 17 | B20: السبت | C20: 2020-11-07 | D20: 933 | E20: السيد | F20: 174 | G20: 7.05 | H20: =IFERROR(IF(#REF!<>"",F20*G20,""),"") -> 
A21: 18 | B21: الأحد | C21: 2020-11-08 | D21: 967 | E21: السيد | F21: 250 | G21: 7.05 | H21: =IFERROR(IF(#REF!<>"",F21*G21,""),"") -> 

Sheet جمال
B3: اليوم | C3: التاريخ | D3: رقم الاذن | E3: اسم المقاول | F3: الكمية | G3: السعر | H3: القيمة
A4: 1 | B4: السبت | C4: 2020-10-10 | D4: 580 | E4: جمال | F4: 400 | G4: 7.05 | H4: =+F4*G4 -> 2820
A5: 2 | B5: الأحد | C5: 2020-10-11 | D5: 603 | E5: جمال | F5: 350 | G5: 7.05 | H5: 2467.5
A6: 3 | B6: الاثنين | C6: 2020-10-12 | D6: 619 | E6: جمال | F6: 400 | G6: 7.05 | H6: 2820
A7: 4 | B7: الثلاثاء | C7: 2020-10-13 | D7: 634 | E7: جمال | F7: 560 | G7: 7.05 | H7: 3948
A8: 5 | B8: الاربعاء | C8: 2020-10-14 | D8: 647 | E8: جمال | F8: 260 | G8: 7.05 | H8: 1833
A9: 6 | B9: السبت | C9: 2020-10-17 | D9: 666 | E9: جمال | F9: 350 | G9: 7.05 | H9: 2467.5
A10: 7 | B10: الأحد | C10: 2020-10-18 | D10: 691 | E10: جمال | F10: 300 | G10: 7.05 | H10: 2115
A11: 8 | B11: الإثنين | C11: 2020-10-19 | D11: 707 | E11: جمال | F11: 300 | G11: =IFERROR(IF(E11<>"",7.05,""),"") -> 7.05 | H11: 2115
A12: 9 | B12: الثلاثاء | C12: 2020-10-20 | D12: 727 | E12: جمال | F12: 350 | G12: 7.05 | H12: 2467.5
A13: 10 | B13: الأربعاء | C13: 2020-10-21 | D13: 742 | E13: جمال | F13: 230 | G13: 7.05 | H13: 1621.5
A14: 11 | B14: السبت | C14: 2020-10-24 | D14: 756 | E14: جمال | F14: 350 | G14: 7.05 | H14: 2467.5
A15: 12 | B15: الأحد | C15: 2020-10-25 | D15: 777 | E15: جمال | F15: 350 | G15: 7.05 | H15: 2467.5
A16: 13 | B16: الإثنين | C16: 2020-10-26 | D16: 795 | E16: جمال | F16: 266 | G16: 7.05 | H16: 1875.3
A17: 14 | B17: الأحد | C17: 2020-11-01 | D17: 844 | E17: جمال | F17: 329 | G17: 7.05 | H17: =IFERROR(IF(#REF!<>"",F17*G17,""),"") -> 
A18: 15 | B18: الثلاثاء | C18: 2020-11-03 | D18: 867 | E18: جمال | F18: 100 | G18: 7.05 | H18: =IFERROR(IF(#REF!<>"",F18*G18,""),"") -> 
A19: 16 | B19: الأربعاء | C19: 2020-11-04 | D19: 901 | E19: جمال | F19: 100 | G19: 7.05 | H19: =IFERROR(IF(#REF!<>"",F19*G19,""),"") -> 
A20: 17 | B20: السبت | C20: 2020-11-07 | D20: 928 | E20: جمال | F20: 100 | G20: 7.05 | H20: =IFERROR(IF(#REF!<>"",F20*G20,""),"") -> 

Sheet أشرف
B3: اليوم | C3: التاريخ | D3: رقم الاذن | E3: اسم المقاول | F3: الكمية | G3: السعر | H3: القيمة
A4: 1 | B4: السبت | C4: 2020-10-10 | D4: 581 | E4: أشرف | F4: 250 | G4: 7.05 | H4: =+F4*G4 -> 1762.5
A5: 2 | B5: الأحد | C5: 2020-10-11 | D5: 604 | E5: أشرف | F5: 300 | G5: 7.05 | H5: 2115
A6: 3 | B6: الاثنين | C6: 2020-10-12 | D6: 618 | E6: أشرف | F6: 300 | G6: 7.05 | H6: 2115
A7: 4 | B7: الاربعاء | C7: 2020-10-14 | D7: 648 | E7: أشرف | F7: 240 | G7: 7.05 | H7: 1692
A8: 5 | B8: السبت | C8: 2020-10-17 | D8: 662 | E8: أشرف | F8: 300 | G8: 7.05 | H8: 2115
A9: 6 | B9: الأحد | C9: 2020-10-18 | D9: 692 | E9: أشرف | F9: 350 | G9: 7.05 | H9: 2467.5
A10: 7 | B10: الإثنين | C10: 2020-10-19 | D10: 711 | E10: أشرف | F10: 230 | G10: =IFERROR(IF(E10<>"",7.05,""),"") -> 7.05 | H10: 1621.5
A11: 8 | B11: الثلاثاء | C11: 2020-10-20 | D11: 724 | E11: أشرف | F11: 300 | G11: 7.05 | H11: 2115
A12: 9 | B12: الأربعاء | C12: 2020-10-21 | D12: 744 | E12: أشرف | F12: 462 | G12: 7.05 | H12: 3257.1
A13: 10 | B13: السبت | C13: 2020-10-24 | D13: 751 | E13: أشرف | F13: 480 | G13: 7.05 | H13: 3384
A14: 11 | B14: الأحد | C14: 2020-10-25 | D14: 779 | E14: أشرف | F14: 530 | G14: 7.05 | H14: 3736.5
A15: 12 | B15: الإثنين | C15: 2020-10-26 | D15: 794 | E15: أشرف | F15: 470 | G15: 7.05 | H15: 3313.5
A16: 13 | B16: الاربعاء | C16: 2020-10-28 | D16: 813 | E16: أشرف | F16: 403 | G16: 7.05 | H16: 2841.15
A17: 14 | B17: السبت | C17: 2020-10-31 | D17: 825 | E17: أشرف | F17: 250 | G17: 7.05 | H17: =IFERROR(IF(#REF!<>"",F17*G17,""),"") -> 
A18: 15 | B18: الاحد | C18: 2020-11-01 | D18: 842 | E18: أشرف | F18: 230 | G18: 7.05 | H18: =IFERROR(IF(#REF!<>"",F18*G18,""),"") -> 
A19: 16 | B19: الأحد | C19: 2020-11-01 | D19: 851 | E19: أشرف | F19: 293 | G19: 7.05 | H19: =IFERROR(IF(#REF!<>"",F19*G19,""),"") -> 
A20: 17 | B20: الثلاثاء | C20: 2020-11-03 | D20: 868 | E20: أشرف | F20: 500 | G20: 7.05 | H20: =IFERROR(IF(#REF!<>"",F20*G20,""),"") -> 
A21: 18 | B21: الثلاثاء | C21: 2020-11-03 | D21: 881 | E21: أشرف | F21: 100 | G21: 7.05 | H21: =IFERROR(IF(#REF!<>"",F21*G21,""),"") -> 
A22: 19 | B22: الأربعاء | C22: 2020-11-04 | D22: 893 | E22: أشرف | F22: 490 | G22: 7.05 | H22: =IFERROR(IF(#REF!<>"",F22*G22,""),"") -> 
A23: 20 | B23: السبت | C23: 2020-11-07 | D23: 927 | E23: أشرف | F23: 450 | G23: 7.05 | H23: =IFERROR(IF(#REF!<>"",F23*G23,""),"") -> 
A24: 21 | B24: الأحد | C24: 2020-11-08 | D24: 950 | E24: أشرف | F24: 600 | G24: 7.05 | H24: =IFERROR(IF(#REF!<>"",F24*G24,""),"") -> 
A25: 22 | B25: الأحد | C25: 2020-11-08 | D25: 972 | E25: أشرف | F25: 600 | G25: 7.05 | H25: =IFERROR(IF(#REF!<>"",F25*G25,""),"") -> 
A26: 23 | B26: الثلاثاء | C26: 2020-11-10 | D26: 993 | E26: أشرف | F26: 600 | G26: 7.05 | H26: =IFERROR(IF(#REF!<>"",F26*G26,""),"") -> 
A27: 24 | B27: الأربعاء | C27: 2020-11-11 | D27: 1009 | E27: أشرف | F27: 550 | G27: 7.05 | H27: =IFERROR(IF(#REF!<>"",F27*G27,""),"") -> 
A28: 25 | B28: السبت | C28: 2020-11-14 | D28: 1030 | E28: أشرف | F28: 350 | G28: 7.05 | H28: =IFERROR(IF(#REF!<>"",F28*G28,""),"") -> 
A29: 26 | B29: الأحد | C29: 2020-11-15 | D29: 1045 | E29: أشرف | F29: 250 | G29: 7.05 | H29: =IFERROR(IF(#REF!<>"",F29*G29,""),"") -> 
A30: 27 | B30: الإثنين | C30: 2020-11-16 | D30: 1067 | E30: أشرف | F30: 250 | G30: 7.05 | H30: =IFERROR(IF(#REF!<>"",F30*G30,""),"") -> 
A31: 28 | B31: الأحد | C31: 2020-11-22 | D31: 1124 | E31: أشرف | F31: 250 | G31: 7.05 | H31: =IFERROR(IF(#REF!<>"",F31*G31,""),"") -> 
A32: 29 | B32: الإثنين | C32: 2020-11-23 | D32: 1141 | E32: أشرف | F32: 450 | G32: 7.05 | H32: =IFERROR(IF(#REF!<>"",F32*G32,""),"") -> 
A33: 30 | B33: الثلاثاء | C33: 2020-11-24 | D33: 1165 | E33: أشرف | F33: 350 | G33: 7.05 | H33: =IFERROR(IF(#REF!<>"",F33*G33,""),"") -> 
A34: 31 | B34: الأربعاء | C34: 2020-11-25 | D34: 1181 | E34: أشرف | F34: 400 | G34: 7.05 | H34: =IFERROR(IF(#REF!<>"",F34*G34,""),"") -> 
A35: 32 | B35: السبت | C35: 2020-11-28 | D35: 1211 | E35: أشرف | F35: 300 | G35: 7.05 | H35: =IFERROR(IF(#REF!<>"",F35*G35,""),"") -> 
A36: 33 | B36: الأحد | C36: 2020-11-29 | D36: 1216 | E36: أشرف | F36: 350 | G36: 7.05 | H36: =IFERROR(IF(#REF!<>"",F36*G36,""),"") -> 
A37: 34 | B37: الإثنين | C37: 2020-11-30 | D37: 1243 | E37: أشرف | F37: 200 | G37: 7.05 | H37: =IFERROR(IF(#REF!<>"",F37*G37,""),"") -> 
A38: 35 | B38: الأربعاء | C38: 2020-12-02 | D38: 13 | E38: أشرف | F38: 250 | G38: 7.05 | H38: =IFERROR(IF(#REF!<>"",F38*G38,""),"") -> 
A39: 36 | B39: الخميس | C39: 2020-12-03 | D39: 29 | E39: أشرف | F39: 200 | G39: 7.05 | H39: =IFERROR(IF(#REF!<>"",F39*G39,""),"") -> 
A40: 37 | B40: السبت | C40: 2020-12-05 | D40: 40 | E40: أشرف | F40: 170 | G40: 7.05 | H40: =IFERROR(IF(#REF!<>"",F40*G40,""),"") -> 
A41: 38 | B41: الأحد | C41: 2020-12-06 | D41: 1400 | E41: أشرف | F41: 200 | G41: 7.05 | H41: =IFERROR(IF(#REF!<>"",F41*G41,""),"") -> 
A42: 39 | B42: الإثنين | C42: 2020-12-07 | D42: 1314 | E42: أشرف | F42: 200 | G42: 7.05 | H42: =IFERROR(IF(#REF!<>"",F42*G42,""),"") -> 
A43: 40 | B43: الأربعاء | C43: 2020-12-09 | D43: 1340 | E43: أشرف | F43: 400 | G43: 7.05 | H43: =IFERROR(IF(#REF!<>"",F43*G43,""),"") -> 
A44: 41 | B44: الخميس | C44: 2020-12-10 | D44: 1369 | E44: أشرف | F44: 555 | G44: 7.05 | H44: =IFERROR(IF(#REF!<>"",F44*G44,""),"") -> 
A45: 42 | B45: السبت | C45: 2020-12-12 | D45: 1385 | E45: أشرف | F45: 230 | G45: 7.05 | H45: =IFERROR(IF(#REF!<>"",F45*G45,""),"") -> 
A46: 43 | B46: الإثنين | C46: 2020-12-14 | D46: 1422 | E46: أشرف | F46: 300 | G46: 7.05 | H46: =IFERROR(IF(#REF!<>"",F46*G46,""),"") -> 
A47: 44 | B47: الثلاثاء | C47: 2020-12-15 | D47: 1441 | E47: أشرف | F47: 250 | G47: 7.05 | H47: =IFERROR(IF(#REF!<>"",F47*G47,""),"") -> 

Sheet علوان
B3: اليوم | C3: التاريخ | D3: رقم الاذن | E3: اسم المقاول | F3: الكمية | G3: السعر | H3: القيمة
A4: 1 | B4: السبت | C4: 2020-10-10 | D4: 582 | E4: علوان | F4: 600 | G4: 7.05 | H4: =+F4*G4 -> 4230
A5: 2 | B5: الأحد | C5: 2020-10-11 | D5: 596 | E5: علوان | F5: 900 | G5: 7.05 | H5: 6345
A6: 3 | B6: الاثنين | C6: 2020-10-12 | D6: 616 | E6: علوان | F6: 700 | G6: 7.05 | H6: 4935
A7: 4 | B7: الثلاثاء | C7: 2020-10-13 | D7: 627 | E7: علوان | F7: 700 | G7: 7.05 | H7: 4935
A8: 5 | B8: الاربعاء | C8: 2020-10-14 | D8: 640 | E8: علوان | F8: 800 | G8: 7.05 | H8: 5640
A9: 6 | B9: السبت | C9: 2020-10-17 | D9: 661 | E9: علوان | F9: 400 | G9: 7.05 | H9: 2820
A10: 7 | B10: السبت | C10: 2020-10-17 | D10: 669 | E10: علوان | F10: 150 | G10: 7.05 | H10: 1057.5
A11: 8 | B11: الأحد | C11: 2020-10-18 | D11: 684 | E11: علوان | F11: 400 | G11: 7.05 | H11: 2820
A12: 9 | B12: الإثنين | C12: 2020-10-19 | D12: 700 | E12: علوان | F12: 500 | G12: =IFERROR(IF(E12<>"",7.05,""),"") -> 7.05 | H12: 3525
A13: 10 | B13: الثلاثاء | C13: 2020-10-20 | D13: 715 | E13: علوان | F13: 600 | G13: 7.05 | H13: 4230
A14: 11 | B14: الأربعاء | C14: 2020-10-21 | D14: 741 | E14: علوان | F14: 400 | G14: 7.05 | H14: 2820
A15: 12 | B15: الإثنين | C15: 2020-10-26 | D15: 789 | E15: علوان | F15: 400 | G15: 7.05 | H15: 2820
A16: 13 | B16: الإثنين | C16: 2020-10-26 | D16: 791 | E16: علوان | F16: 106 | G16: 7.05 | H16: 747.3
A17: 14 | B17: الاربعاء | C17: 2020-10-28 | D17: 819 | E17: علوان | F17: 254 | G17: 7.05 | H17: 1790.7
A18: 15 | B18: السبت | C18: 2020-10-31 | D18: 832 | E18: علوان | F18: 500 | G18: 7.05 | H18: =IFERROR(IF(#REF!<>"",F18*G18,""),"") -> 
A19: 16 | B19: الثلاثاء | C19: 2020-11-03 | D19: 869 | E19: علوان | F19: 500 | G19: 7.05 | H19: =IFERROR(IF(#REF!<>"",F19*G19,""),"") -> 
A20: 17 | B20: الأربعاء | C20: 2020-11-04 | D20: 896 | E20: علوان | F20: 400 | G20: 7.05 | H20: =IFERROR(IF(#REF!<>"",F20*G20,""),"") -> 
A21: 18 | B21: السبت | C21: 2020-11-07 | D21: 921 | E21: علوان | F21: 400 | G21: 7.05 | H21: =IFERROR(IF(#REF!<>"",F21*G21,""),"") -> 
A22: 19 | B22: الأحد | C22: 2020-11-08 | D22: 944 | E22: علوان | F22: 450 | G22: 7.05 | H22: =IFERROR(IF(#REF!<>"",F22*G22,""),"") -> 
A23: 20 | B23: الأحد | C23: 2020-11-08 | D23: 957 | E23: علوان | F23: 450 | G23: 7.05 | H23: =IFERROR(IF(#REF!<>"",F23*G23,""),"") -> 
A24: 21 | B24: الثلاثاء | C24: 2020-11-10 | D24: 987 | E24: علوان | F24: 200 | G24: 7.05 | H24: =IFERROR(IF(#REF!<>"",F24*G24,""),"") -> 
A25: 22 | B25: الأربعاء | C25: 2020-11-11 | D25: 1006 | E25: علوان | F25: 450 | G25: 7.05 | H25: =IFERROR(IF(#REF!<>"",F25*G25,""),"") -> 
A26: 23 | B26: السبت | C26: 2020-11-14 | D26: 1020 | E26: علوان | F26: 200 | G26: 7.05 | H26: =IFERROR(IF(#REF!<>"",F26*G26,""),"") -> 
A27: 24 | B27: الأحد | C27: 2020-11-15 | D27: 1040 | E27: علوان | F27: 250 | G27: 7.05 | H27: =IFERROR(IF(#REF!<>"",F27*G27,""),"") -> 
A28: 25 | B28: الإثنين | C28: 2020-11-16 | D28: 1062 | E28: علوان | F28: 450 | G28: 7.05 | H28: =IFERROR(IF(#REF!<>"",F28*G28,""),"") -> 
A29: 26 | B29: الأربعاء | C29: 2020-11-18 | D29: 1078 | E29: علوان | F29: 400 | G29: 7.05 | H29: =IFERROR(IF(#REF!<>"",F29*G29,""),"") -> 
A30: 27 | B30: السبت | C30: 2020-11-21 | D30: 1104 | E30: علوان | F30: 450 | G30: 7.05 | H30: =IFERROR(IF(#REF!<>"",F30*G30,""),"") -> 
A31: 28 | B31: الأحد | C31: 2020-11-22 | D31: 1122 | E31: علوان | F31: 200 | G31: 7.05 | H31: =IFERROR(IF(#REF!<>"",F31*G31,""),"") -> 
A32: 29 | B32: الإثنين | C32: 2020-11-23 | D32: 1142 | E32: علوان | F32: 600 | G32: 7.05 | H32: =IFERROR(IF(#REF!<>"",F32*G32,""),"") -> 
A33: 30 | B33: الثلاثاء | C33: 2020-11-24 | D33: 1163 | E33: علوان | F33: 600 | G33: 7.05 | H33: =IFERROR(IF(#REF!<>"",F33*G33,""),"") -> 
A34: 31 | B34: الاربعاء | C34: 2020-11-25 | D34: 1172 | E34: علوان | F34: 300 | G34: 7.05 | H34: =IFERROR(IF(#REF!<>"",F34*G34,""),"") -> 
A35: 32 | B35: الأربعاء | C35: 2020-11-25 | D35: 1186 | E35: علوان | F35: 200 | G35: 7.05 | H35: =IFERROR(IF(#REF!<>"",F35*G35,""),"") -> 
A36: 33 | B36: السبت | C36: 2020-11-28 | D36: 1201 | E36: علوان | F36: 400 | G36: 7.05 | H36: =IFERROR(IF(#REF!<>"",F36*G36,""),"") -> 
A37: 34 | B37: الأحد | C37: 2020-11-29 | D37: 1223 | E37: علوان | F37: 450 | G37: 7.05 | H37: =IFERROR(IF(#REF!<>"",F37*G37,""),"") -> 
A38: 35 | B38: الاثنين | C38: 2020-11-30 | D38: 1234 | E38: علوان | F38: 400 | G38: 7.05 | H38: =IFERROR(IF(#REF!<>"",F38*G38,""),"") -> 
A39: 36 | B39: الاربعاء | C39: 2020-12-02 | D39: 1 | E39: علوان | F39: 400 | G39: 7.05 | H39: =IFERROR(IF(#REF!<>"",F39*G39,""),"") -> 
A40: 37 | B40: الخميس | C40: 2020-12-03 | D40: 18 | E40: علوان | F40: 400 | G40: 7.05 | H40: =IFERROR(IF(#REF!<>"",F40*G40,""),"") -> 
A41: 38 | B41: السبت | C41: 2020-12-05 | D41: 32 | E41: علوان | F41: 450 | G41: 7.05 | H41: =IFERROR(IF(#REF!<>"",F41*G41,""),"") -> 
A42: 39 | B42: الاحد | C42: 2020-12-06 | D42: 1390 | E42: علوان | F42: 400 | G42: 7.05 | H42: =IFERROR(IF(#REF!<>"",F42*G42,""),"") -> 
A43: 40 | B43: الاثنين | C43: 2020-12-07 | D43: 1301 | E43: علوان | F43: 400 | G43: 7.05 | H43: =IFERROR(IF(#REF!<>"",F43*G43,""),"") -> 
A44: 41 | B44: الاربعاء | C44: 2020-12-09 | D44: 1334 | E44: علوان | F44: 600 | G44: 7.05 | H44: =IFERROR(IF(#REF!<>"",F44*G44,""),"") -> 
A45: 42 | B45: الخميس | C45: 2020-12-10 | D45: 1358 | E45: علوان | F45: 600 | G45: 7.05 | H45: =IFERROR(IF(#REF!<>"",F45*G45,""),"") -> 
A46: 43 | B46: السبت | C46: 2020-12-12 | D46: 1382 | E46: علوان | F46: 500 | G46: 7.05 | H46: =IFERROR(IF(#REF!<>"",F46*G46,""),"") -> 
A47: 44 | B47: الإثنين | C47: 2020-12-14 | D47: 1417 | E47: علوان | F47: 150 | G47: 7.05 | H47: =IFERROR(IF(#REF!<>"",F47*G47,""),"") -> 
A48: 45 | B48: الثلاثاء | C48: 2020-12-15 | D48: 1438 | E48: علوان | F48: 450 | G48: 7.05 | H48: =IFERROR(IF(#REF!<>"",F48*G48,""),"") -> 
A49: 46 | B49: الاربعاء | C49: 2020-12-16 | D49: 1451 | E49: علوان | F49: 600 | G49: 7.05 | H49: =IFERROR(IF(#REF!<>"",F49*G49,""),"") -> 
A50: 47 | B50: الأربعاء | C50: 2020-12-16 | D50: 1460 | E50: علوان | F50: 300 | G50: 7.05 | H50: =IFERROR(IF(#REF!<>"",F50*G50,""),"") -> 
A51: 48 | B51: الاحد | C51: 2020-12-20 | D51: 1484 | E51: علوان | F51: 400 | G51: 7.05 | H51: =IFERROR(IF(#REF!<>"",F51*G51,""),"") -> 
A52: 49 | B52: الأحد | C52: 2020-12-20 | D52: 1500 | E52: علوان | F52: 79 | G52: 7.05 | H52: =IFERROR(IF(#REF!<>"",F52*G52,""),"") -> 
A53: 50 | B53: الإثنين | C53: 2020-12-21 | D53: 1510 | E53: علوان | F53: 400 | G53: 7.05 | H53: =IFERROR(IF(#REF!<>"",F53*G53,""),"") -> 
A54: 51 | B54: الاربعاء | C54: 2020-12-23 | D54: 1527 | E54: علوان | F54: 800 | G54: 7.05 | H54: =IFERROR(IF(#REF!<>"",F54*G54,""),"") -> 
A55: 52 | B55: السبت | C55: 2020-12-26 | D55: 1543 | E55: علوان | F55: 600 | G55: 7.05 | H55: =IFERROR(IF(#REF!<>"",F55*G55,""),"") -> 
A56: 53 | B56: الاحد | C56: 2020-12-27 | D56: 1562 | E56: علوان | F56: 700 | G56: 7.05 | H56: =IFERROR(IF(#REF!<>"",F56*G56,""),"") -> 
A57: 54 | B57: الثلاثاء | C57: 2020-12-29 | D57: 1578 | E57: علوان | F57: 800 | G57: 7.05 | H57: =IFERROR(IF(#REF!<>"",F57*G57,""),"") -> 
A58: 55 | B58: الأحد | C58: 2021-01-03 | D58: 1593 | E58: علوان | F58: 800 | G58: 7.05 | H58: =IFERROR(IF(#REF!<>"",F58*G58,""),"") -> 

Sheet حلمى
B3: اليوم | C3: التاريخ | D3: رقم الاذن | E3: اسم المقاول | F3: الكمية | G3: السعر | H3: القيمة
A4: 1 | B4: السبت | C4: 2020-10-10 | D4: 583 | E4: حلمى | F4: 800 | G4: 7.05 | H4: =+F4*G4 -> 5640
A5: 2 | B5: الأحد | C5: 2020-10-11 | D5: 600 | E5: حلمى | F5: 700 | G5: 7.05 | H5: 4935
A6: 3 | B6: الاثنين | C6: 2020-10-12 | D6: 623 | E6: حلمى | F6: 1150 | G6: 7.05 | H6: 8107.5
A7: 4 | B7: الثلاثاء | C7: 2020-10-13 | D7: 633 | E7: حلمى | F7: 1230 | G7: 7.05 | H7: 8671.5
A8: 5 | B8: الاربعاء | C8: 2020-10-14 | D8: 646 | E8: حلمى | F8: 902 | G8: 7.05 | H8: 6359.1
A9: 6 | B9: الأحد | C9: 2020-10-18 | D9: 686 | E9: حلمى | F9: 50 | G9: 7.05 | H9: 352.5
A10: 7 | B10: الإثنين | C10: 2020-10-19 | D10: 709 | E10: حلمى | F10: 20 | G10: =IFERROR(IF(E10<>"",7.05,""),"") -> 7.05 | H10: 141
A11: 8 | B11: الثلاثاء | C11: 2020-10-20 | D11: 721 | E11: حلمى | F11: 450 | G11: 7.05 | H11: 3172.5
A12: 9 | B12: الأربعاء | C12: 2020-10-21 | D12: 737 | E12: حلمى | F12: 300 | G12: 7.05 | H12: 2115
A13: 10 | B13: الاربعاء | C13: 2020-10-28 | D13: 810 | E13: حلمى | F13: 1110 | G13: 7.05 | H13: 7825.5
A14: 11 | B14: السبت | C14: 2020-10-31 | D14: 827 | E14: حلمى | F14: 650 | G14: 7.05 | H14: =IFERROR(IF(#REF!<>"",F14*G14,""),"") -> 
A15: 12 | B15: الأحد | C15: 2020-11-01 | D15: 853 | E15: حلمى | F15: 400 | G15: 7.05 | H15: =IFERROR(IF(#REF!<>"",F15*G15,""),"") -> 
A16: 13 | B16: الثلاثاء | C16: 2020-11-03 | D16: 874 | E16: حلمى | F16: 600 | G16: 7.05 | H16: =IFERROR(IF(#REF!<>"",F16*G16,""),"") -> 
A17: 14 | B17: الأربعاء | C17: 2020-11-04 | D17: 902 | E17: حلمى | F17: 504 | G17: 7.05 | H17: =IFERROR(IF(#REF!<>"",F17*G17,""),"") -> 
A18: 15 | B18: السبت | C18: 2020-11-07 | D18: 920 | E18: حلمى | F18: 650 | G18: 7.05 | H18: =IFERROR(IF(#REF!<>"",F18*G18,""),"") -> 
A19: 16 | B19: الاحد | C19: 2020-11-08 | D19: 940 | E19: حلمى | F19: 650 | G19: 7.05 | H19: =IFERROR(IF(#REF!<>"",F19*G19,""),"") -> 
A20: 17 | B20: الأحد | C20: 2020-11-08 | D20: 961 | E20: حلمى | F20: 350 | G20: 7.05 | H20: =IFERROR(IF(#REF!<>"",F20*G20,""),"") -> 
A21: 18 | B21: الأحد | C21: 2020-11-08 | D21: 979 | E21: حلمى | F21: 23 | G21: 7.05 | H21: =IFERROR(IF(#REF!<>"",F21*G21,""),"") -> 
A22: 19 | B22: الثلاثاء | C22: 2020-11-10 | D22: 989 | E22: حلمى | F22: 350 | G22: 7.05 | H22: =IFERROR(IF(#REF!<>"",F22*G22,""),"") -> 
A23: 20 | B23: الأربعاء | C23: 2020-11-11 | D23: 1014 | E23: حلمى | F23: 150 | G23: 7.05 | H23: =IFERROR(IF(#REF!<>"",F23*G23,""),"") -> 
A24: 21 | B24: السبت | C24: 2020-11-14 | D24: 1031 | E24: حلمى | F24: 200 | G24: 7.05 | H24: =IFERROR(IF(#REF!<>"",F24*G24,""),"") -> 
A25: 22 | B25: الأحد | C25: 2020-11-15 | D25: 1046 | E25: حلمى | F25: 150 | G25: 7.05 | H25: =IFERROR(IF(#REF!<>"",F25*G25,""),"") -> 
A26: 23 | B26: الإثنين | C26: 2020-11-16 | D26: 1069 | E26: حلمى | F26: 150 | G26: 7.05 | H26: =IFERROR(IF(#REF!<>"",F26*G26,""),"") -> 
A27: 24 | B27: السبت | C27: 2020-11-21 | D27: 1103 | E27: حلمى | F27: 300 | G27: 7.05 | H27: =IFERROR(IF(#REF!<>"",F27*G27,""),"") -> 
A28: 25 | B28: الاحد | C28: 2020-11-22 | D28: 1117 | E28: حلمى | F28: 100 | G28: 7.05 | H28: =IFERROR(IF(#REF!<>"",F28*G28,""),"") -> 
A29: 26 | B29: الإثنين | C29: 2020-11-23 | D29: 1136 | E29: حلمى | F29: 152 | G29: 7.05 | H29: =IFERROR(IF(#REF!<>"",F29*G29,""),"") -> 
A30: 27 | B30: الثلاثاء | C30: 2020-11-24 | D30: 1159 | E30: حلمى | F30: 500 | G30: 7.05 | H30: =IFERROR(IF(#REF!<>"",F30*G30,""),"") -> 
A31: 28 | B31: الأربعاء | C31: 2020-11-25 | D31: 1179 | E31: حلمى | F31: 40 | G31: 7.05 | H31: =IFERROR(IF(#REF!<>"",F31*G31,""),"") -> 
A32: 29 | B32: الأحد | C32: 2020-11-29 | D32: 1218 | E32: حلمى | F32: 350 | G32: 7.05 | H32: =IFERROR(IF(#REF!<>"",F32*G32,""),"") -> 
A33: 30 | B33: الإثنين | C33: 2020-11-30 | D33: 1238 | E33: حلمى | F33: 300 | G33: 7.05 | H33: =IFERROR(IF(#REF!<>"",F33*G33,""),"") -> 
A34: 31 | B34: الأربعاء | C34: 2020-12-02 | D34: 14 | E34: حلمى | F34: 400 | G34: 7.05 | H34: =IFERROR(IF(#REF!<>"",F34*G34,""),"") -> 
A35: 32 | B35: السبت | C35: 2020-12-05 | D35: 42 | E35: حلمى | F35: 170 | G35: 7.05 | H35: =IFERROR(IF(#REF!<>"",F35*G35,""),"") -> 
A36: 33 | B36: الأحد | C36: 2020-12-06 | D36: 1395 | E36: حلمى | F36: 200 | G36: 7.05 | H36: =IFERROR(IF(#REF!<>"",F36*G36,""),"") -> 
A37: 34 | B37: الاحد | C37: 2020-12-20 | D37: 1483 | E37: حلمى | F37: 40 | G37: 7.05 | H37: =IFERROR(IF(#REF!<>"",F37*G37,""),"") -> 
A38: 35 | B38: الأحد | C38: 2020-12-20 | D38: 1486 | E38: حلمى | F38: 150 | G38: 7.05 | H38: =IFERROR(IF(#REF!<>"",F38*G38,""),"") -> 
A39: 36 | B39: الاثنين | C39: 2020-12-21 | D39: 1508 | E39: حلمى | F39: 50 | G39: 7.05 | H39: =IFERROR(IF(#REF!<>"",F39*G39,""),"") -> 

Sheet أنور
B3: اليوم | C3: التاريخ | D3: رقم الاذن | E3: اسم المقاول | F3: الكمية | G3: السعر | H3: القيمة
A4: 1 | B4: السبت | C4: 2020-10-10 | D4: 584 | E4: أنور | F4: 400 | G4: 7.05 | H4: =+F4*G4 -> 2820
A5: 2 | B5: الأحد | C5: 2020-10-11 | D5: 597 | E5: أنور | F5: 400 | G5: 7.05 | H5: 2820
A6: 3 | B6: الاثنين | C6: 2020-10-12 | D6: 614 | E6: أنور | F6: 400 | G6: 7.05 | H6: 2820
A7: 4 | B7: الثلاثاء | C7: 2020-10-13 | D7: 625 | E7: أنور | F7: 350 | G7: 7.05 | H7: 2467.5
A8: 5 | B8: الاربعاء | C8: 2020-10-14 | D8: 639 | E8: أنور | F8: 350 | G8: 7.05 | H8: 2467.5
A9: 6 | B9: السبت | C9: 2020-10-17 | D9: 657 | E9: أنور | F9: 400 | G9: 7.05 | H9: 2820
A10: 7 | B10: الأحد | C10: 2020-10-18 | D10: 683 | E10: أنور | F10: 400 | G10: 7.05 | H10: 2820
A11: 8 | B11: الإثنين | C11: 2020-10-19 | D11: 704 | E11: أنور | F11: 300 | G11: =IFERROR(IF(E11<>"",7.05,""),"") -> 7.05 | H11: 2115
A12: 9 | B12: الثلاثاء | C12: 2020-10-20 | D12: 717 | E12: أنور | F12: 300 | G12: 7.05 | H12: 2115
A13: 10 | B13: الأربعاء | C13: 2020-10-21 | D13: 732 | E13: أنور | F13: 300 | G13: 7.05 | H13: 2115
A14: 11 | B14: السبت | C14: 2020-10-24 | D14: 757 | E14: أنور | F14: 350 | G14: 7.05 | H14: 2467.5
A15: 12 | B15: الأحد | C15: 2020-10-25 | D15: 772 | E15: أنور | F15: 300 | G15: 7.05 | H15: 2115
A16: 13 | B16: الإثنين | C16: 2020-10-26 | D16: 788 | E16: أنور | F16: 350 | G16: 7.05 | H16: 2467.5
A17: 14 | B17: الاربعاء | C17: 2020-10-28 | D17: 812 | E17: أنور | F17: 350 | G17: 7.05 | H17: 2467.5
A18: 15 | B18: السبت | C18: 2020-10-31 | D18: 824 | E18: أنور | F18: 350 | G18: 7.05 | H18: =IFERROR(IF(#REF!<>"",F18*G18,""),"") -> 
A19: 16 | B19: الأحد | C19: 2020-11-01 | D19: 843 | E19: أنور | F19: 350 | G19: 7.05 | H19: =IFERROR(IF(#REF!<>"",F19*G19,""),"") -> 
A20: 17 | B20: الأحد | C20: 2020-11-01 | D20: 852 | E20: أنور | F20: 300 | G20: 7.05 | H20: =IFERROR(IF(#REF!<>"",F20*G20,""),"") -> 
A21: 18 | B21: الثلاثاء | C21: 2020-11-03 | D21: 870 | E21: أنور | F21: 300 | G21: 7.05 | H21: =IFERROR(IF(#REF!<>"",F21*G21,""),"") -> 
A22: 19 | B22: السبت | C22: 2020-11-07 | D22: 919 | E22: أنور | F22: 350 | G22: 7.05 | H22: =IFERROR(IF(#REF!<>"",F22*G22,""),"") -> 
A23: 20 | B23: الاحد | C23: 2020-11-08 | D23: 941 | E23: أنور | F23: 350 | G23: 7.05 | H23: =IFERROR(IF(#REF!<>"",F23*G23,""),"") -> 
A24: 21 | B24: الأحد | C24: 2020-11-08 | D24: 978 | E24: أنور | F24: 323 | G24: 7.05 | H24: =IFERROR(IF(#REF!<>"",F24*G24,""),"") -> 
A25: 22 | B25: الأربعاء | C25: 2020-11-11 | D25: 1007 | E25: أنور | F25: 350 | G25: 7.05 | H25: =IFERROR(IF(#REF!<>"",F25*G25,""),"") -> 
A26: 23 | B26: السبت | C26: 2020-11-14 | D26: 1027 | E26: أنور | F26: 350 | G26: 7.05 | H26: =IFERROR(IF(#REF!<>"",F26*G26,""),"") -> 
A27: 24 | B27: الأحد | C27: 2020-11-15 | D27: 1041 | E27: أنور | F27: 350 | G27: 7.05 | H27: =IFERROR(IF(#REF!<>"",F27*G27,""),"") -> 
A28: 25 | B28: الأحد | C28: 2020-11-15 | D28: 1042 | E28: أنور | F28: 50 | G28: 7.05 | H28: =IFERROR(IF(#REF!<>"",F28*G28,""),"") -> 
A29: 26 | B29: الإثنين | C29: 2020-11-16 | D29: 1063 | E29: أنور | F29: 400 | G29: 7.05 | H29: =IFERROR(IF(#REF!<>"",F29*G29,""),"") -> 
A30: 27 | B30: الأربعاء | C30: 2020-11-18 | D30: 1079 | E30: أنور | F30: 250 | G30: 7.05 | H30: =IFERROR(IF(#REF!<>"",F30*G30,""),"") -> 
A31: 28 | B31: السبت | C31: 2020-11-21 | D31: 1105 | E31: أنور | F31: 400 | G31: 7.05 | H31: =IFERROR(IF(#REF!<>"",F31*G31,""),"") -> 
A32: 29 | B32: الأحد | C32: 2020-11-22 | D32: 1126 | E32: أنور | F32: 400 | G32: 7.05 | H32: =IFERROR(IF(#REF!<>"",F32*G32,""),"") -> 
A33: 30 | B33: الاثنين | C33: 2020-11-23 | D33: 1134 | E33: أنور | F33: 350 | G33: 7.05 | H33: =IFERROR(IF(#REF!<>"",F33*G33,""),"") -> 
A34: 31 | B34: الثلاثاء | C34: 2020-11-24 | D34: 1160 | E34: أنور | F34: 350 | G34: 7.05 | H34: =IFERROR(IF(#REF!<>"",F34*G34,""),"") -> 
A35: 32 | B35: الاربعاء | C35: 2020-11-25 | D35: 1171 | E35: أنور | F35: 450 | G35: 7.05 | H35: =IFERROR(IF(#REF!<>"",F35*G35,""),"") -> 
A36: 33 | B36: السبت | C36: 2020-11-28 | D36: 1202 | E36: أنور | F36: 350 | G36: 7.05 | H36: =IFERROR(IF(#REF!<>"",F36*G36,""),"") -> 
A37: 34 | B37: الأحد | C37: 2020-11-29 | D37: 1219 | E37: أنور | F37: 350 | G37: 7.05 | H37: =IFERROR(IF(#REF!<>"",F37*G37,""),"") -> 
A38: 35 | B38: الاثنين | C38: 2020-11-30 | D38: 1235 | E38: أنور | F38: 400 | G38: 7.05 | H38: =IFERROR(IF(#REF!<>"",F38*G38,""),"") -> 
A39: 36 | B39: الاربعاء | C39: 2020-12-02 | D39: 2 | E39: أنور | F39: 350 | G39: 7.05 | H39: =IFERROR(IF(#REF!<>"",F39*G39,""),"") -> 
A40: 37 | B40: الخميس | C40: 2020-12-03 | D40: 21 | E40: أنور | F40: 500 | G40: 7.05 | H40: =IFERROR(IF(#REF!<>"",F40*G40,""),"") -> 
A41: 38 | B41: السبت | C41: 2020-12-05 | D41: 34 | E41: أنور | F41: 350 | G41: 7.05 | H41: =IFERROR(IF(#REF!<>"",F41*G41,""),"") -> 
A42: 39 | B42: الأحد | C42: 2020-12-06 | D42: 1397 | E42: أنور | F42: 400 | G42: 7.05 | H42: =IFERROR(IF(#REF!<>"",F42*G42,""),"") -> 
A43: 40 | B43: الإثنين | C43: 2020-12-07 | D43: 1303 | E43: أنور | F43: 500 | G43: 7.05 | H43: =IFERROR(IF(#REF!<>"",F43*G43,""),"") -> 
A44: 41 | B44: الإثنين | C44: 2020-12-07 | D44: 1317 | E44: أنور | F44: 100 | G44: 7.05 | H44: =IFERROR(IF(#REF!<>"",F44*G44,""),"") -> 
A45: 42 | B45: الاربعاء | C45: 2020-12-09 | D45: 1333 | E45: أنور | F45: 500 | G45: 7.05 | H45: =IFERROR(IF(#REF!<>"",F45*G45,""),"") -> 
A46: 43 | B46: الخميس | C46: 2020-12-10 | D46: 1360 | E46: أنور | F46: 500 | G46: 7.05 | H46: =IFERROR(IF(#REF!<>"",F46*G46,""),"") -> 
A47: 44 | B47: السبت | C47: 2020-12-12 | D47: 1374 | E47: أنور | F47: 500 | G47: 7.05 | H47: =IFERROR(IF(#REF!<>"",F47*G47,""),"") -> 
A48: 45 | B48: السبت | C48: 2020-12-12 | D48: 1375 | E48: أنور | F48: 200 | G48: 7.05 | H48: =IFERROR(IF(#REF!<>"",F48*G48,""),"") -> 
A49: 46 | B49: الإثنين | C49: 2020-12-14 | D49: 1424 | E49: أنور | F49: 200 | G49: 7.05 | H49: =IFERROR(IF(#REF!<>"",F49*G49,""),"") -> 
A50: 47 | B50: الاربعاء | C50: 2020-12-16 | D50: 1452 | E50: أنور | F50: 260 | G50: 7.05 | H50: =IFERROR(IF(#REF!<>"",F50*G50,""),"") -> 

Sheet جابر
B3: اليوم | C3: التاريخ | D3: رقم الاذن | E3: اسم المقاول | F3: الكمية | G3: السعر | H3: القيمة
A4: 1 | B4: السبت | C4: 2020-10-10 | D4: 585 | E4: جابر | F4: 1975 | G4: 7.05 | H4: =+F4*G4 -> 13923.75
A5: 2 | B5: الأحد | C5: 2020-10-11 | D5: 606 | E5: جابر | F5: 1300 | G5: 7.05 | H5: 9165
A6: 3 | B6: الاثنين | C6: 2020-10-12 | D6: 617 | E6: جابر | F6: 1300 | G6: 7.05 | H6: 9165
A7: 4 | B7: الثلاثاء | C7: 2020-10-13 | D7: 629 | E7: جابر | F7: 1600 | G7: 7.05 | H7: 11280
A8: 5 | B8: الثلاثاء | C8: 2020-10-13 | D8: 635 | E8: جابر | F8: 384 | G8: 7.05 | H8: 2707.2
A9: 6 | B9: الاربعاء | C9: 2020-10-14 | D9: 645 | E9: جابر | F9: 1300 | G9: 7.05 | H9: 9165
A10: 7 | B10: السبت | C10: 2020-10-17 | D10: 668 | E10: جابر | F10: 1560 | G10: 7.05 | H10: 10998
A11: 8 | B11: الأحد | C11: 2020-10-18 | D11: 693 | E11: جابر | F11: 1420 | G11: 7.05 | H11: 10011
A12: 9 | B12: الإثنين | C12: 2020-10-19 | D12: 712 | E12: جابر | F12: 1174 | G12: =IFERROR(IF(E12<>"",7.05,""),"") -> 7.05 | H12: 8276.7
A13: 10 | B13: الثلاثاء | C13: 2020-10-20 | D13: 725 | E13: جابر | F13: 1225 | G13: 7.05 | H13: 8636.25
A14: 11 | B14: الأربعاء | C14: 2020-10-21 | D14: 745 | E14: جابر | F14: 1290 | G14: 7.05 | H14: 9094.5
A15: 12 | B15: السبت | C15: 2020-10-24 | D15: 753 | E15: جابر | F15: 1500 | G15: 7.05 | H15: 10575
A16: 13 | B16: الأحد | C16: 2020-10-25 | D16: 773 | E16: جابر | F16: 1906 | G16: 7.05 | H16: 13437.3
A17: 14 | B17: الإثنين | C17: 2020-10-26 | D17: 790 | E17: جابر | F17: 1857 | G17: 7.05 | H17: 13091.85
A18: 15 | B18: الاربعاء | C18: 2020-10-28 | D18: 809 | E18: جابر | F18: 1400 | G18: 7.05 | H18: 9870
A19: 16 | B19: السبت | C19: 2020-10-31 | D19: 833 | E19: جابر | F19: 2000 | G19: 7.05 | H19: =IFERROR(IF(#REF!<>"",F19*G19,""),"") -> 
A20: 17 | B20: الأحد | C20: 2020-11-01 | D20: 854 | E20: جابر | F20: 1792 | G20: 7.05 | H20: =IFERROR(IF(#REF!<>"",F20*G20,""),"") -> 
A21: 18 | B21: الثلاثاء | C21: 2020-11-03 | D21: 871 | E21: جابر | F21: 1300 | G21: 7.05 | H21: =IFERROR(IF(#REF!<>"",F21*G21,""),"") -> 
A22: 19 | B22: الأربعاء | C22: 2020-11-04 | D22: 891 | E22: جابر | F22: 1400 | G22: 7.05 | H22: =IFERROR(IF(#REF!<>"",F22*G22,""),"") -> 
A23: 20 | B23: السبت | C23: 2020-11-07 | D23: 925 | E23: جابر | F23: 1270 | G23: 7.05 | H23: =IFERROR(IF(#REF!<>"",F23*G23,""),"") -> 
A24: 21 | B24: الأحد | C24: 2020-11-08 | D24: 947 | E24: جابر | F24: 1630 | G24: 7.05 | H24: =IFERROR(IF(#REF!<>"",F24*G24,""),"") -> 
A25: 22 | B25: الأحد | C25: 2020-11-08 | D25: 965 | E25: جابر | F25: 1100 | G25: 7.05 | H25: =IFERROR(IF(#REF!<>"",F25*G25,""),"") -> 
A26: 23 | B26: الأحد | C26: 2020-11-08 | D26: 974 | E26: جابر | F26: 100 | G26: 7.05 | H26: =IFERROR(IF(#REF!<>"",F26*G26,""),"") -> 
A27: 24 | B27: الثلاثاء | C27: 2020-11-10 | D27: 994 | E27: جابر | F27: 2050 | G27: 7.05 | H27: =IFERROR(IF(#REF!<>"",F27*G27,""),"") -> 
A28: 25 | B28: الأربعاء | C28: 2020-11-11 | D28: 1008 | E28: جابر | F28: 1650 | G28: 7.05 | H28: =IFERROR(IF(#REF!<>"",F28*G28,""),"") -> 
A29: 26 | B29: السبت | C29: 2020-11-14 | D29: 1025 | E29: جابر | F29: 1716 | G29: 7.05 | H29: =IFERROR(IF(#REF!<>"",F29*G29,""),"") -> 
A30: 27 | B30: الأحد | C30: 2020-11-15 | D30: 1047 | E30: جابر | F30: 1375 | G30: 7.05 | H30: =IFERROR(IF(#REF!<>"",F30*G30,""),"") -> 
A31: 28 | B31: الإثنين | C31: 2020-11-16 | D31: 1064 | E31: جابر | F31: 1300 | G31: 7.05 | H31: =IFERROR(IF(#REF!<>"",F31*G31,""),"") -> 
A32: 29 | B32: الأربعاء | C32: 2020-11-18 | D32: 1074 | E32: جابر | F32: 1300 | G32: 7.05 | H32: =IFERROR(IF(#REF!<>"",F32*G32,""),"") -> 
A33: 30 | B33: السبت | C33: 2020-11-21 | D33: 1110 | E33: جابر | F33: 1150 | G33: 7.05 | H33: =IFERROR(IF(#REF!<>"",F33*G33,""),"") -> 
A34: 31 | B34: الأحد | C34: 2020-11-22 | D34: 1127 | E34: جابر | F34: 1000 | G34: 7.05 | H34: =IFERROR(IF(#REF!<>"",F34*G34,""),"") -> 
A35: 32 | B35: الإثنين | C35: 2020-11-23 | D35: 1147 | E35: جابر | F35: 976 | G35: 7.05 | H35: =IFERROR(IF(#REF!<>"",F35*G35,""),"") -> 
A36: 33 | B36: الثلاثاء | C36: 2020-11-24 | D36: 1162 | E36: جابر | F36: 1500 | G36: 7.05 | H36: =IFERROR(IF(#REF!<>"",F36*G36,""),"") -> 
A37: 34 | B37: الأربعاء | C37: 2020-11-25 | D37: 1173 | E37: جابر | F37: 1250 | G37: 7.05 | H37: =IFERROR(IF(#REF!<>"",F37*G37,""),"") -> 
A38: 35 | B38: السبت | C38: 2020-11-28 | D38: 1206 | E38: جابر | F38: 1505 | G38: 7.05 | H38: =IFERROR(IF(#REF!<>"",F38*G38,""),"") -> 
A39: 36 | B39: الأحد | C39: 2020-11-29 | D39: 1225 | E39: جابر | F39: 1063 | G39: 7.05 | H39: =IFERROR(IF(#REF!<>"",F39*G39,""),"") -> 
A40: 37 | B40: الإثنين | C40: 2020-11-30 | D40: 1244 | E40: جابر | F40: 950 | G40: 7.05 | H40: =IFERROR(IF(#REF!<>"",F40*G40,""),"") -> 
A41: 38 | B41: الأربعاء | C41: 2020-12-02 | D41: 8 | E41: جابر | F41: 680 | G41: 7.05 | H41: =IFERROR(IF(#REF!<>"",F41*G41,""),"") -> 
A42: 39 | B42: الخميس | C42: 2020-12-03 | D42: 22 | E42: جابر | F42: 800 | G42: 7.05 | H42: =IFERROR(IF(#REF!<>"",F42*G42,""),"") -> 
A43: 40 | B43: السبت | C43: 2020-12-05 | D43: 36 | E43: جابر | F43: 700 | G43: 7.05 | H43: =IFERROR(IF(#REF!<>"",F43*G43,""),"") -> 
A44: 41 | B44: السبت | C44: 2020-12-05 | D44: 47 | E44: جابر | F44: 649 | G44: 7.05 | H44: =IFERROR(IF(#REF!<>"",F44*G44,""),"") -> 
A45: 42 | B45: الإثنين | C45: 2020-12-07 | D45: 1308 | E45: جابر | F45: 500 | G45: 7.05 | H45: =IFERROR(IF(#REF!<>"",F45*G45,""),"") -> 
A46: 43 | B46: الأربعاء | C46: 2020-12-09 | D46: 1343 | E46: جابر | F46: 750 | G46: 7.05 | H46: =IFERROR(IF(#REF!<>"",F46*G46,""),"") -> 
A47: 44 | B47: الخميس | C47: 2020-12-10 | D47: 1361 | E47: جابر | F47: 230 | G47: 7.05 | H47: =IFERROR(IF(#REF!<>"",F47*G47,""),"") -> 
A48: 45 | B48: الثلاثاء | C48: 2020-12-15 | D48: 1436 | E48: جابر | F48: 200 | G48: 7.05 | H48: =IFERROR(IF(#REF!<>"",F48*G48,""),"") -> 
A49: 46 | B49: الأربعاء | C49: 2020-12-16 | D49: 1457 | E49: جابر | F49: 408 | G49: 7.05 | H49: =IFERROR(IF(#REF!<>"",F49*G49,""),"") -> 
A50: 47 | B50: الأحد | C50: 2020-12-20 | D50: 1488 | E50: جابر | F50: 200 | G50: 7.05 | H50: =IFERROR(IF(#REF!<>"",F50*G50,""),"") -> 
A51: 48 | B51: الإثنين | C51: 2020-12-21 | D51: 1515 | E51: جابر | F51: 620 | G51: 7.05 | H51: =IFERROR(IF(#REF!<>"",F51*G51,""),"") -> 
A52: 49 | B52: الأربعاء | C52: 2020-12-23 | D52: 1536 | E52: جابر | F52: 150 | G52: 7.05 | H52: =IFERROR(IF(#REF!<>"",F52*G52,""),"") -> 

Sheet رمضان عربية ش
B3: اليوم | C3: التاريخ | D3: رقم الاذن | E3: اسم المقاول | F3: الكمية | G3: السعر | H3: القيمة
A4: 1 | B4: السبت | C4: 2020-10-10 | D4: 586 | E4: رمضان عربية ش | F4: 67 | G4: 7.05 | H4: =+F4*G4 -> 472.35
A5: 2 | B5: الاربعاء | C5: 2020-10-14 | D5: 649 | E5: رمضان عربية ش | F5: 50 | G5: 7.05 | H5: 352.5
A6: 3 | B6: السبت | C6: 2020-10-17 | D6: 667 | E6: رمضان عربية ش | F6: 70 | G6: 7.05 | H6: 493.5
A7: 4 | B7: الأربعاء | C7: 2020-10-21 | D7: 739 | E7: رمضان عربية ش | F7: 78 | G7: =IFERROR(IF(E7<>"",7.05,""),"") -> 7.05 | H7: 549.9
A8: 5 | B8: السبت | C8: 2020-10-24 | D8: 760 | E8: رمضان عربية ش | F8: 75 | G8: 7.05 | H8: 528.75
A9: 6 | B9: الاربعاء | C9: 2020-10-28 | D9: 822 | E9: رمضان عربية ش | F9: 83 | G9: 7.05 | H9: 585.15
A10: 7 | B10: الأحد | C10: 2020-11-01 | D10: 845 | E10: رمضان عربية ش | F10: 70 | G10: 7.05 | H10: =IFERROR(IF(#REF!<>"",F10*G10,""),"") -> 
A11: 8 | B11: الأربعاء | C11: 2020-11-04 | D11: 903 | E11: رمضان عربية ش | F11: 66 | G11: 7.05 | H11: =IFERROR(IF(#REF!<>"",F11*G11,""),"") -> 
A12: 9 | B12: السبت | C12: 2020-11-14 | D12: 1034 | E12: رمضان عربية ش | F12: 74 | G12: 7.05 | H12: =IFERROR(IF(#REF!<>"",F12*G12,""),"") -> 
A13: 10 | B13: الأربعاء | C13: 2020-11-18 | D13: 1075 | E13: رمضان عربية ش | F13: 84 | G13: 7.05 | H13: =IFERROR(IF(#REF!<>"",F13*G13,""),"") -> 
A14: 11 | B14: السبت | C14: 2020-11-21 | D14: 1114 | E14: رمضان عربية ش | F14: 50 | G14: 7.05 | H14: =IFERROR(IF(#REF!<>"",F14*G14,""),"") -> 
A15: 12 | B15: الإثنين | C15: 2020-11-23 | D15: 1140 | E15: رمضان عربية ش | F15: 38 | G15: 7.05 | H15: =IFERROR(IF(#REF!<>"",F15*G15,""),"") -> 
A16: 13 | B16: الأربعاء | C16: 2020-11-25 | D16: 1182 | E16: رمضان عربية ش | F16: 50 | G16: 7.05 | H16: =IFERROR(IF(#REF!<>"",F16*G16,""),"") -> 
A17: 14 | B17: السبت | C17: 2020-11-28 | D17: 1205 | E17: رمضان عربية ش | F17: 75 | G17: 7.05 | H17: =IFERROR(IF(#REF!<>"",F17*G17,""),"") -> 
A18: 15 | B18: الأربعاء | C18: 2020-12-02 | D18: 17 | E18: رمضان عربية ش | F18: 50 | G18: 7.05 | H18: =IFERROR(IF(#REF!<>"",F18*G18,""),"") -> 
A19: 16 | B19: الخميس | C19: 2020-12-03 | D19: 30 | E19: رمضان عربية ش | F19: 35 | G19: 7.05 | H19: =IFERROR(IF(#REF!<>"",F19*G19,""),"") -> 
A20: 17 | B20: السبت | C20: 2020-12-05 | D20: 46 | E20: رمضان عربية ش | F20: 65 | G20: 7.05 | H20: =IFERROR(IF(#REF!<>"",F20*G20,""),"") -> 
A21: 18 | B21: الإثنين | C21: 2020-12-07 | D21: 1321 | E21: رمضان عربية ش | F21: 23 | G21: 7.05 | H21: =IFERROR(IF(#REF!<>"",F21*G21,""),"") -> 
A22: 19 | B22: الخميس | C22: 2020-12-10 | D22: 1364 | E22: رمضان عربية ش | F22: 60 | G22: 7.05 | H22: =IFERROR(IF(#REF!<>"",F22*G22,""),"") -> 
A23: 20 | B23: الإثنين | C23: 2020-12-14 | D23: 1428 | E23: رمضان عربية ش | F23: 45 | G23: 7.05 | H23: =IFERROR(IF(#REF!<>"",F23*G23,""),"") -> 
A24: 21 | B24: الأحد | C24: 2020-12-20 | D24: 1495 | E24: رمضان عربية ش | F24: 68 | G24: 7.05 | H24: =IFERROR(IF(#REF!<>"",F24*G24,""),"") -> 
A25: 22 | B25: الأربعاء | C25: 2020-12-23 | D25: 1529 | E25: رمضان عربية ش | F25: 45 | G25: 7.05 | H25: =IFERROR(IF(#REF!<>"",F25*G25,""),"") -> 
A26: 23 | B26: السبت | C26: 2020-12-26 | D26: 1546 | E26: رمضان عربية ش | F26: 71 | G26: 7.05 | H26: =IFERROR(IF(#REF!<>"",F26*G26,""),"") -> 
A27: 24 | B27: الثلاثاء | C27: 2020-12-29 | D27: 1576 | E27: رمضان عربية ش | F27: 54 | G27: 7.05 | H27: =IFERROR(IF(#REF!<>"",F27*G27,""),"") -> 
A28: 25 | B28: الأحد | C28: 2021-01-03 | D28: 1596 | E28: رمضان عربية ش | F28: 831 | G28: 7.05 | H28: =IFERROR(IF(#REF!<>"",F28*G28,""),"") -> 

Sheet محمد عيسى
B3: اليوم | C3: التاريخ | D3: رقم الاذن | E3: اسم المقاول | F3: الكمية | G3: السعر | H3: القيمة
A4: 1 | B4: السبت | C4: 2020-10-10 | D4: 587 | E4: محمد عيسى | F4: 255 | G4: 7.05 | H4: =+F4*G4 -> 1797.75
A5: 2 | B5: الأحد | C5: 2020-10-11 | D5: 605 | E5: محمد عيسى | F5: 400 | G5: 7.05 | H5: 2820
A6: 3 | B6: الاثنين | C6: 2020-10-12 | D6: 621 | E6: محمد عيسى | F6: 400 | G6: 7.05 | H6: 2820
A7: 4 | B7: الاربعاء | C7: 2020-10-14 | D7: 642 | E7: محمد عيسى | F7: 400 | G7: 7.05 | H7: 2820
A8: 5 | B8: السبت | C8: 2020-10-17 | D8: 669 | E8: محمد عيسى | F8: 400 | G8: 7.05 | H8: 2820
A9: 6 | B9: الأحد | C9: 2020-10-18 | D9: 682 | E9: محمد عيسى | F9: 400 | G9: 7.05 | H9: 2820
A10: 7 | B10: الثلاثاء | C10: 2020-10-20 | D10: 723 | E10: محمد عيسى | F10: 300 | G10: =IFERROR(IF(E10<>"",7.05,""),"") -> 7.05 | H10: 2115
A11: 8 | B11: الأربعاء | C11: 2020-10-21 | D11: 734 | E11: محمد عيسى | F11: 300 | G11: 7.05 | H11: 2115
A12: 9 | B12: السبت | C12: 2020-10-24 | D12: 758 | E12: محمد عيسى | F12: 400 | G12: 7.05 | H12: 2820
A13: 10 | B13: الأحد | C13: 2020-10-25 | D13: 778 | E13: محمد عيسى | F13: 400 | G13: 7.05 | H13: 2820
A14: 11 | B14: الإثنين | C14: 2020-10-26 | D14: 797 | E14: محمد عيسى | F14: 466 | G14: 7.05 | H14: 3285.3
A15: 12 | B15: الاربعاء | C15: 2020-10-28 | D15: 817 | E15: محمد عيسى | F15: 250 | G15: 7.05 | H15: 1762.5
A16: 13 | B16: الاحد | C16: 2020-11-01 | D16: 841 | E16: محمد عيسى | F16: 400 | G16: 7.05 | H16: =IFERROR(IF(#REF!<>"",F16*G16,""),"") -> 
A17: 14 | B17: الثلاثاء | C17: 2020-11-03 | D17: 872 | E17: محمد عيسى | F17: 300 | G17: 7.05 | H17: =IFERROR(IF(#REF!<>"",F17*G17,""),"") -> 
A18: 15 | B18: الأربعاء | C18: 2020-11-04 | D18: 892 | E18: محمد عيسى | F18: 300 | G18: 7.05 | H18: =IFERROR(IF(#REF!<>"",F18*G18,""),"") -> 
A19: 16 | B19: السبت | C19: 2020-11-07 | D19: 930 | E19: محمد عيسى | F19: 250 | G19: 7.05 | H19: =IFERROR(IF(#REF!<>"",F19*G19,""),"") -> 
A20: 17 | B20: الأحد | C20: 2020-11-08 | D20: 952 | E20: محمد عيسى | F20: 205 | G20: 7.05 | H20: =IFERROR(IF(#REF!<>"",F20*G20,""),"") -> 
A21: 18 | B21: الأحد | C21: 2021-01-03 | D21: 1592 | E21: محمد عيسى | F21: 69 | G21: 7.05 | H21: =IFERROR(IF(#REF!<>"",F21*G21,""),"") -> 

Sheet عمر
B3: اليوم | C3: التاريخ | D3: رقم الاذن | E3: اسم المقاول | F3: الكمية | G3: السعر | H3: القيمة
A4: 1 | B4: الأحد | C4: 2020-10-11 | D4: 598 | E4: عمر | F4: 40 | G4: 7.05 | H4: =+F4*G4 -> 282
A5: 2 | B5: السبت | C5: 2020-10-17 | D5: 660 | E5: عمر | F5: 120 | G5: 7.05 | H5: 846
A6: 3 | B6: الأحد | C6: 2020-10-18 | D6: 681 | E6: عمر | F6: 175 | G6: 7.05 | H6: 1233.75
A7: 4 | B7: الإثنين | C7: 2020-10-19 | D7: 708 | E7: عمر | F7: 125 | G7: =IFERROR(IF(E7<>"",7.05,""),"") -> 7.05 | H7: 881.25
A8: 5 | B8: الثلاثاء | C8: 2020-10-20 | D8: 718 | E8: عمر | F8: 345 | G8: 7.05 | H8: 2432.25
A9: 6 | B9: الأربعاء | C9: 2020-10-21 | D9: 740 | E9: عمر | F9: 200 | G9: 7.05 | H9: 1410
A10: 7 | B10: الإثنين | C10: 2020-10-26 | D10: 793 | E10: عمر | F10: 102 | G10: 7.05 | H10: 719.1
A11: 8 | B11: السبت | C11: 2020-10-31 | D11: 826 | E11: عمر | F11: 130 | G11: 7.05 | H11: =IFERROR(IF(#REF!<>"",F11*G11,""),"") -> 
A12: 9 | B12: الثلاثاء | C12: 2020-11-03 | D12: 880 | E12: عمر | F12: 100 | G12: 7.05 | H12: =IFERROR(IF(#REF!<>"",F12*G12,""),"") -> 
A13: 10 | B13: الأربعاء | C13: 2020-11-04 | D13: 899 | E13: عمر | F13: 600 | G13: 7.05 | H13: =IFERROR(IF(#REF!<>"",F13*G13,""),"") -> 
A14: 11 | B14: السبت | C14: 2020-11-07 | D14: 917 | E14: عمر | F14: 400 | G14: 7.05 | H14: =IFERROR(IF(#REF!<>"",F14*G14,""),"") -> 
A15: 12 | B15: الأحد | C15: 2020-11-08 | D15: 948 | E15: عمر | F15: 350 | G15: 7.05 | H15: =IFERROR(IF(#REF!<>"",F15*G15,""),"") -> 
A16: 13 | B16: الأحد | C16: 2020-11-08 | D16: 953 | E16: عمر | F16: 100 | G16: 7.05 | H16: =IFERROR(IF(#REF!<>"",F16*G16,""),"") -> 
A17: 14 | B17: الأحد | C17: 2020-11-08 | D17: 970 | E17: عمر | F17: 300 | G17: 7.05 | H17: =IFERROR(IF(#REF!<>"",F17*G17,""),"") -> 
A18: 15 | B18: الثلاثاء | C18: 2020-11-10 | D18: 992 | E18: عمر | F18: 300 | G18: 7.05 | H18: =IFERROR(IF(#REF!<>"",F18*G18,""),"") -> 
A19: 16 | B19: الاربعاء | C19: 2020-11-11 | D19: 1004 | E19: عمر | F19: 200 | G19: 7.05 | H19: =IFERROR(IF(#REF!<>"",F19*G19,""),"") -> 
A20: 17 | B20: السبت | C20: 2020-11-14 | D20: 1033 | E20: عمر | F20: 200 | G20: 7.05 | H20: =IFERROR(IF(#REF!<>"",F20*G20,""),"") -> 
A21: 18 | B21: الأحد | C21: 2020-11-15 | D21: 1050 | E21: عمر | F21: 320 | G21: 7.05 | H21: =IFERROR(IF(#REF!<>"",F21*G21,""),"") -> 
A22: 19 | B22: الإثنين | C22: 2020-11-16 | D22: 1065 | E22: عمر | F22: 500 | G22: 7.05 | H22: =IFERROR(IF(#REF!<>"",F22*G22,""),"") -> 
A23: 20 | B23: الأربعاء | C23: 2020-11-18 | D23: 1082 | E23: عمر | F23: 350 | G23: 7.05 | H23: =IFERROR(IF(#REF!<>"",F23*G23,""),"") -> 
A24: 21 | B24: السبت | C24: 2020-11-21 | D24: 1113 | E24: عمر | F24: 50 | G24: 7.05 | H24: =IFERROR(IF(#REF!<>"",F24*G24,""),"") -> 
A25: 22 | B25: الأحد | C25: 2020-11-22 | D25: 1123 | E25: عمر | F25: 500 | G25: 7.05 | H25: =IFERROR(IF(#REF!<>"",F25*G25,""),"") -> 
A26: 23 | B26: الإثنين | C26: 2020-11-23 | D26: 1143 | E26: عمر | F26: 200 | G26: 7.05 | H26: =IFERROR(IF(#REF!<>"",F26*G26,""),"") -> 
A27: 24 | B27: الأحد | C27: 2020-11-29 | D27: 1220 | E27: عمر | F27: 200 | G27: 7.05 | H27: =IFERROR(IF(#REF!<>"",F27*G27,""),"") -> 
A28: 25 | B28: الإثنين | C28: 2020-11-30 | D28: 1242 | E28: عمر | F28: 150 | G28: 7.05 | H28: =IFERROR(IF(#REF!<>"",F28*G28,""),"") -> 
A29: 26 | B29: الأربعاء | C29: 2020-12-02 | D29: 3 | E29: عمر | F29: 100 | G29: 7.05 | H29: =IFERROR(IF(#REF!<>"",F29*G29,""),"") -> 
A30: 27 | B30: الأحد | C30: 2020-12-06 | D30: 1392 | E30: عمر | F30: 200 | G30: 7.05 | H30: =IFERROR(IF(#REF!<>"",F30*G30,""),"") -> 
A31: 28 | B31: الإثنين | C31: 2020-12-07 | D31: 1310 | E31: عمر | F31: 100 | G31: 7.05 | H31: =IFERROR(IF(#REF!<>"",F31*G31,""),"") -> 
A32: 29 | B32: الإثنين | C32: 2020-12-07 | D32: 1316 | E32: عمر | F32: 100 | G32: 7.05 | H32: =IFERROR(IF(#REF!<>"",F32*G32,""),"") -> 

Sheet حلمى25
B3: اليوم | C3: التاريخ | D3: رقم الاذن | E3: اسم المقاول | F3: الكمية | G3: السعر | H3: القيمة
A4: 1 | B4: الأحد | C4: 2020-10-11 | D4: 601 | E4: حلمى25 | F4: 200 | G4: 7.05 | H4: =+F4*G4 -> 1410
A5: 2 | B5: الأحد | C5: 2020-10-18 | D5: 687 | E5: حلمى25 | F5: 350 | G5: 7.05 | H5: 2467.5
A6: 3 | B6: الإثنين | C6: 2020-10-19 | D6: 701 | E6: حلمى25 | F6: 990 | G6: =IFERROR(IF(E6<>"",7.05,""),"") -> 7.05 | H6: 6979.5
A7: 4 | B7: الثلاثاء | C7: 2020-10-20 | D7: 722 | E7: حلمى25 | F7: 200 | G7: 7.05 | H7: 1410
A8: 5 | B8: الأربعاء | C8: 2020-10-21 | D8: 736 | E8: حلمى25 | F8: 300 | G8: 7.05 | H8: 2115
A9: 6 | B9: الأحد | C9: 2020-10-25 | D9: 780 | E9: حلمى25 | F9: 900 | G9: 7.05 | H9: 6345
A10: 7 | B10: الأحد | C10: 2020-11-08 | D10: 962 | E10: حلمى25 | F10: 350 | G10: 7.05 | H10: =IFERROR(IF(#REF!<>"",F10*G10,""),"") -> 
A11: 8 | B11: الأحد | C11: 2020-12-20 | D11: 1485 | E11: حلمى25 | F11: 800 | G11: 7.05 | H11: =IFERROR(IF(#REF!<>"",F11*G11,""),"") -> 
A12: 9 | B12: الأحد | C12: 2020-12-20 | D12: 1497 | E12: حلمى25 | F12: 375 | G12: 7.05 | H12: =IFERROR(IF(#REF!<>"",F12*G12,""),"") -> 
A13: 10 | B13: الإثنين | C13: 2020-12-21 | D13: 1511 | E13: حلمى25 | F13: 800 | G13: 7.05 | H13: =IFERROR(IF(#REF!<>"",F13*G13,""),"") -> 
A14: 11 | B14: الأربعاء | C14: 2020-12-23 | D14: 1531 | E14: حلمى25 | F14: 980 | G14: 7.05 | H14: =IFERROR(IF(#REF!<>"",F14*G14,""),"") -> 
A15: 12 | B15: السبت | C15: 2020-12-26 | D15: 1548 | E15: حلمى25 | F15: 829 | G15: 7.05 | H15: =IFERROR(IF(#REF!<>"",F15*G15,""),"") -> 
A16: 13 | B16: الأحد | C16: 2020-12-27 | D16: 1566 | E16: حلمى25 | F16: 700 | G16: 7.05 | H16: =IFERROR(IF(#REF!<>"",F16*G16,""),"") -> 
A17: 14 | B17: الثلاثاء | C17: 2020-12-29 | D17: 1575 | E17: حلمى25 | F17: 700 | G17: 7.05 | H17: =IFERROR(IF(#REF!<>"",F17*G17,""),"") -> 
A18: 15 | B18: الثلاثاء | C18: 2020-12-29 | D18: 1581 | E18: حلمى25 | F18: 54 | G18: 7.05 | H18: =IFERROR(IF(#REF!<>"",F18*G18,""),"") -> 

Sheet ضيف
B3: اليوم | C3: التاريخ | D3: رقم الاذن | E3: اسم المقاول | F3: الكمية | G3: السعر | H3: القيمة
A4: 1 | B4: الاثنين | C4: 2020-10-12 | D4: 622 | E4: ضيف | F4: 400 | G4: 7.05 | H4: =+F4*G4 -> 2820
A5: 2 | B5: الثلاثاء | C5: 2020-10-13 | D5: 632 | E5: ضيف | F5: 315 | G5: 7.05 | H5: 2220.75
A6: 3 | B6: الاربعاء | C6: 2020-10-14 | D6: 650 | E6: ضيف | F6: 400 | G6: 7.05 | H6: 2820
A7: 4 | B7: السبت | C7: 2020-10-17 | D7: 663 | E7: ضيف | F7: 300 | G7: 7.05 | H7: 2115
A8: 5 | B8: الأحد | C8: 2020-10-18 | D8: 685 | E8: ضيف | F8: 300 | G8: 7.05 | H8: 2115
A9: 6 | B9: الإثنين | C9: 2020-10-19 | D9: 702 | E9: ضيف | F9: 300 | G9: =IFERROR(IF(E9<>"",7.05,""),"") -> 7.05 | H9: 2115
A10: 7 | B10: الثلاثاء | C10: 2020-10-20 | D10: 726 | E10: ضيف | F10: 300 | G10: 7.05 | H10: 2115
A11: 8 | B11: الأربعاء | C11: 2020-10-21 | D11: 733 | E11: ضيف | F11: 200 | G11: 7.05 | H11: 1410
A12: 9 | B12: السبت | C12: 2020-10-24 | D12: 759 | E12: ضيف | F12: 400 | G12: 7.05 | H12: 2820
A13: 10 | B13: الأحد | C13: 2020-10-25 | D13: 781 | E13: ضيف | F13: 125 | G13: 7.05 | H13: 881.25
A14: 11 | B14: الإثنين | C14: 2020-10-26 | D14: 787 | E14: ضيف | F14: 393 | G14: 7.05 | H14: 2770.65
A15: 12 | B15: الاربعاء | C15: 2020-10-28 | D15: 818 | E15: ضيف | F15: 450 | G15: 7.05 | H15: 3172.5
A16: 13 | B16: الاربعاء | C16: 2020-10-28 | D16: 820 | E16: ضيف | F16: 50 | G16: 7.05 | H16: 352.5
A17: 14 | B17: السبت | C17: 2020-10-31 | D17: 830 | E17: ضيف | F17: 490 | G17: 7.05 | H17: =IFERROR(IF(#REF!<>"",F17*G17,""),"") -> 
A18: 15 | B18: الأحد | C18: 2020-11-01 | D18: 847 | E18: ضيف | F18: 600 | G18: 7.05 | H18: =IFERROR(IF(#REF!<>"",F18*G18,""),"") -> 
A19: 16 | B19: الثلاثاء | C19: 2020-11-03 | D19: 876 | E19: ضيف | F19: 400 | G19: 7.05 | H19: =IFERROR(IF(#REF!<>"",F19*G19,""),"") -> 
A20: 17 | B20: الأربعاء | C20: 2020-11-04 | D20: 900 | E20: ضيف | F20: 400 | G20: 7.05 | H20: =IFERROR(IF(#REF!<>"",F20*G20,""),"") -> 
A21: 18 | B21: السبت | C21: 2020-11-07 | D21: 922 | E21: ضيف | F21: 400 | G21: 7.05 | H21: =IFERROR(IF(#REF!<>"",F21*G21,""),"") -> 
A22: 19 | B22: الأحد | C22: 2020-11-08 | D22: 943 | E22: ضيف | F22: 300 | G22: 7.05 | H22: =IFERROR(IF(#REF!<>"",F22*G22,""),"") -> 
A23: 20 | B23: الأحد | C23: 2020-11-08 | D23: 964 | E23: ضيف | F23: 300 | G23: 7.05 | H23: =IFERROR(IF(#REF!<>"",F23*G23,""),"") -> 
A24: 21 | B24: الثلاثاء | C24: 2020-11-10 | D24: 986 | E24: ضيف | F24: 400 | G24: 7.05 | H24: =IFERROR(IF(#REF!<>"",F24*G24,""),"") -> 
A25: 22 | B25: الأربعاء | C25: 2020-11-11 | D25: 1011 | E25: ضيف | F25: 510 | G25: 7.05 | H25: =IFERROR(IF(#REF!<>"",F25*G25,""),"") -> 
A26: 23 | B26: السبت | C26: 2020-11-14 | D26: 1024 | E26: ضيف | F26: 200 | G26: 7.05 | H26: =IFERROR(IF(#REF!<>"",F26*G26,""),"") -> 
A27: 24 | B27: الاحد | C27: 2020-11-15 | D27: 1038 | E27: ضيف | F27: 400 | G27: 7.05 | H27: =IFERROR(IF(#REF!<>"",F27*G27,""),"") -> 
A28: 25 | B28: الأحد | C28: 2020-11-15 | D28: 1049 | E28: ضيف | F28: 40 | G28: 7.05 | H28: =IFERROR(IF(#REF!<>"",F28*G28,""),"") -> 
A29: 26 | B29: الإثنين | C29: 2020-11-16 | D29: 1066 | E29: ضيف | F29: 500 | G29: 7.05 | H29: =IFERROR(IF(#REF!<>"",F29*G29,""),"") -> 
A30: 27 | B30: الاربعاء | C30: 2020-11-18 | D30: 1073 | E30: ضيف | F30: 340 | G30: 7.05 | H30: =IFERROR(IF(#REF!<>"",F30*G30,""),"") -> 
A31: 28 | B31: الأحد | C31: 2020-11-22 | D31: 1120 | E31: ضيف | F31: 440 | G31: 7.05 | H31: =IFERROR(IF(#REF!<>"",F31*G31,""),"") -> 
A32: 29 | B32: الإثنين | C32: 2020-11-23 | D32: 1146 | E32: ضيف | F32: 300 | G32: 7.05 | H32: =IFERROR(IF(#REF!<>"",F32*G32,""),"") -> 
A33: 30 | B33: الثلاثاء | C33: 2020-11-24 | D33: 1164 | E33: ضيف | F33: 515 | G33: 7.05 | H33: =IFERROR(IF(#REF!<>"",F33*G33,""),"") -> 
A34: 31 | B34: الأربعاء | C34: 2020-11-25 | D34: 1185 | E34: ضيف | F34: 350 | G34: 7.05 | H34: =IFERROR(IF(#REF!<>"",F34*G34,""),"") -> 
A35: 32 | B35: السبت | C35: 2020-11-28 | D35: 1212 | E35: ضيف | F35: 400 | G35: 7.05 | H35: =IFERROR(IF(#REF!<>"",F35*G35,""),"") -> 
A36: 33 | B36: الإثنين | C36: 2020-11-30 | D36: 1241 | E36: ضيف | F36: 500 | G36: 7.05 | H36: =IFERROR(IF(#REF!<>"",F36*G36,""),"") -> 
A37: 34 | B37: الأربعاء | C37: 2020-12-02 | D37: 10 | E37: ضيف | F37: 400 | G37: 7.05 | H37: =IFERROR(IF(#REF!<>"",F37*G37,""),"") -> 
A38: 35 | B38: الخميس | C38: 2020-12-03 | D38: 24 | E38: ضيف | F38: 400 | G38: 7.05 | H38: =IFERROR(IF(#REF!<>"",F38*G38,""),"") -> 
A39: 36 | B39: الخميس | C39: 2020-12-03 | D39: 27 | E39: ضيف | F39: 42 | G39: 7.05 | H39: =IFERROR(IF(#REF!<>"",F39*G39,""),"") -> 
A40: 37 | B40: السبت | C40: 2020-12-05 | D40: 44 | E40: ضيف | F40: 400 | G40: 7.05 | H40: =IFERROR(IF(#REF!<>"",F40*G40,""),"") -> 
A41: 38 | B41: الأحد | C41: 2020-12-06 | D41: 1399 | E41: ضيف | F41: 400 | G41: 7.05 | H41: =IFERROR(IF(#REF!<>"",F41*G41,""),"") -> 
A42: 39 | B42: الإثنين | C42: 2020-12-07 | D42: 1313 | E42: ضيف | F42: 340 | G42: 7.05 | H42: =IFERROR(IF(#REF!<>"",F42*G42,""),"") -> 
A43: 40 | B43: الأربعاء | C43: 2020-12-09 | D43: 1344 | E43: ضيف | F43: 430 | G43: 7.05 | H43: =IFERROR(IF(#REF!<>"",F43*G43,""),"") -> 
A44: 41 | B44: الخميس | C44: 2020-12-10 | D44: 1367 | E44: ضيف | F44: 251 | G44: 7.05 | H44: =IFERROR(IF(#REF!<>"",F44*G44,""),"") -> 
A45: 42 | B45: السبت | C45: 2020-12-12 | D45: 1386 | E45: ضيف | F45: 200 | G45: 7.05 | H45: =IFERROR(IF(#REF!<>"",F45*G45,""),"") -> 
A46: 43 | B46: الإثنين | C46: 2020-12-14 | D46: 1427 | E46: ضيف | F46: 630 | G46: 7.05 | H46: =IFERROR(IF(#REF!<>"",F46*G46,""),"") -> 
A47: 44 | B47: الثلاثاء | C47: 2020-12-15 | D47: 1440 | E47: ضيف | F47: 500 | G47: 7.05 | H47: =IFERROR(IF(#REF!<>"",F47*G47,""),"") -> 
A48: 45 | B48: الأربعاء | C48: 2020-12-16 | D48: 1453 | E48: ضيف | F48: 800 | G48: 7.05 | H48: =IFERROR(IF(#REF!<>"",F48*G48,""),"") -> 
A49: 46 | B49: الأحد | C49: 2020-12-20 | D49: 1494 | E49: ضيف | F49: 430 | G49: 7.05 | H49: =IFERROR(IF(#REF!<>"",F49*G49,""),"") -> 
A50: 47 | B50: الإثنين | C50: 2020-12-21 | D50: 1509 | E50: ضيف | F50: 480 | G50: 7.05 | H50: =IFERROR(IF(#REF!<>"",F50*G50,""),"") -> 
A51: 48 | B51: السبت | C51: 2020-12-26 | D51: 1550 | E51: ضيف | F51: 500 | G51: 7.05 | H51: =IFERROR(IF(#REF!<>"",F51*G51,""),"") -> 
A52: 49 | B52: الأحد | C52: 2020-12-27 | D52: 1564 | E52: ضيف | F52: 430 | G52: 7.05 | H52: =IFERROR(IF(#REF!<>"",F52*G52,""),"") -> 
A53: 50 | B53: الثلاثاء | C53: 2020-12-29 | D53: 1574 | E53: ضيف | F53: 600 | G53: 7.05 | H53: =IFERROR(IF(#REF!<>"",F53*G53,""),"") -> 
A54: 51 | B54: الاحد | C54: 2021-01-03 | D54: 1590 | E54: ضيف | F54: 800 | G54: 7.05 | H54: =IFERROR(IF(#REF!<>"",F54*G54,""),"") -> 

Sheet خالد 54
B3: اليوم | C3: التاريخ | D3: رقم الاذن | E3: اسم المقاول | F3: الكمية | G3: السعر | H3: القيمة
A4: 1 | B4: الاربعاء | C4: 2020-10-14 | D4: 644 | E4: خالد 54 | F4: 400 | G4: 7.05 | H4: =+F4*G4 -> 2820
A5: 2 | B5: السبت | C5: 2020-10-17 | D5: 665 | E5: خالد 54 | F5: 400 | G5: 7.05 | H5: 2820
A6: 3 | B6: الأحد | C6: 2020-10-18 | D6: 689 | E6: خالد 54 | F6: 500 | G6: 7.05 | H6: 3525
A7: 4 | B7: الإثنين | C7: 2020-10-19 | D7: 699 | E7: خالد 54 | F7: 750 | G7: =IFERROR(IF(E7<>"",7.05,""),"") -> 7.05 | H7: 5287.5
A8: 5 | B8: الثلاثاء | C8: 2020-10-20 | D8: 720 | E8: خالد 54 | F8: 700 | G8: 7.05 | H8: 4935
A9: 6 | B9: الأربعاء | C9: 2020-10-21 | D9: 731 | E9: خالد 54 | F9: 1000 | G9: 7.05 | H9: 7050
A10: 7 | B10: السبت | C10: 2020-10-24 | D10: 755 | E10: خالد 54 | F10: 1000 | G10: 7.05 | H10: 7050
A11: 8 | B11: الأحد | C11: 2020-10-25 | D11: 776 | E11: خالد 54 | F11: 600 | G11: 7.05 | H11: 4230
A12: 9 | B12: الاربعاء | C12: 2020-10-28 | D12: 815 | E12: خالد 54 | F12: 600 | G12: 7.05 | H12: 4230
A13: 10 | B13: السبت | C13: 2020-10-31 | D13: 829 | E13: خالد 54 | F13: 900 | G13: 7.05 | H13: =IFERROR(IF(#REF!<>"",F13*G13,""),"") -> 
A14: 11 | B14: السبت | C14: 2020-10-31 | D14: 835 | E14: خالد 54 | F14: 200 | G14: 7.05 | H14: =IFERROR(IF(#REF!<>"",F14*G14,""),"") -> 
A15: 12 | B15: الأحد | C15: 2020-11-01 | D15: 849 | E15: خالد 54 | F15: 380 | G15: 7.05 | H15: =IFERROR(IF(#REF!<>"",F15*G15,""),"") -> 
A16: 13 | B16: الثلاثاء | C16: 2020-11-03 | D16: 873 | E16: خالد 54 | F16: 700 | G16: 7.05 | H16: =IFERROR(IF(#REF!<>"",F16*G16,""),"") -> 
A17: 14 | B17: الاربعاء | C17: 2020-11-04 | D17: 890 | E17: خالد 54 | F17: 700 | G17: 7.05 | H17: =IFERROR(IF(#REF!<>"",F17*G17,""),"") -> 
A18: 15 | B18: السبت | C18: 2020-11-07 | D18: 931 | E18: خالد 54 | F18: 500 | G18: 7.05 | H18: =IFERROR(IF(#REF!<>"",F18*G18,""),"") -> 
A19: 16 | B19: الأحد | C19: 2020-11-08 | D19: 951 | E19: خالد 54 | F19: 380 | G19: 7.05 | H19: =IFERROR(IF(#REF!<>"",F19*G19,""),"") -> 
A20: 17 | B20: الأحد | C20: 2020-11-08 | D20: 968 | E20: خالد 54 | F20: 350 | G20: 7.05 | H20: =IFERROR(IF(#REF!<>"",F20*G20,""),"") -> 
A21: 18 | B21: الثلاثاء | C21: 2020-11-10 | D21: 997 | E21: خالد 54 | F21: 900 | G21: 7.05 | H21: =IFERROR(IF(#REF!<>"",F21*G21,""),"") -> 
A22: 19 | B22: الأربعاء | C22: 2020-11-11 | D22: 1010 | E22: خالد 54 | F22: 584 | G22: 7.05 | H22: =IFERROR(IF(#REF!<>"",F22*G22,""),"") -> 
A23: 20 | B23: السبت | C23: 2020-11-14 | D23: 1023 | E23: خالد 54 | F23: 400 | G23: 7.05 | H23: =IFERROR(IF(#REF!<>"",F23*G23,""),"") -> 
A24: 21 | B24: الأحد | C24: 2020-11-15 | D24: 1052 | E24: خالد 54 | F24: 65 | G24: 7.05 | H24: =IFERROR(IF(#REF!<>"",F24*G24,""),"") -> 
A25: 22 | B25: الإثنين | C25: 2020-11-16 | D25: 1068 | E25: خالد 54 | F25: 100 | G25: 7.05 | H25: =IFERROR(IF(#REF!<>"",F25*G25,""),"") -> 
A26: 23 | B26: الأربعاء | C26: 2020-11-18 | D26: 1077 | E26: خالد 54 | F26: 145 | G26: 7.05 | H26: =IFERROR(IF(#REF!<>"",F26*G26,""),"") -> 
A27: 24 | B27: السبت | C27: 2020-11-21 | D27: 1107 | E27: خالد 54 | F27: 150 | G27: 7.05 | H27: =IFERROR(IF(#REF!<>"",F27*G27,""),"") -> 
A28: 25 | B28: الاحد | C28: 2020-11-22 | D28: 1118 | E28: خالد 54 | F28: 150 | G28: 7.05 | H28: =IFERROR(IF(#REF!<>"",F28*G28,""),"") -> 

Sheet محسن مياه
B3: اليوم | C3: التاريخ | D3: رقم الاذن | E3: اسم المقاول | F3: الكمية | G3: السعر | H3: القيمة
A4: 1 | B4: السبت | C4: 2020-10-17 | D4: 659 | E4: محسن مياه | F4: 100 | G4: 7.05 | H4: =+F4*G4 -> 705
A5: 2 | B5: الأحد | C5: 2020-10-18 | D5: 680 | E5: محسن مياه | F5: 50 | G5: 7.05 | H5: 352.5
A6: 3 | B6: الأحد | C6: 2020-10-18 | D6: 688 | E6: محسن مياه | F6: 50 | G6: 7.05 | H6: 352.5
A7: 4 | B7: الإثنين | C7: 2020-10-19 | D7: 705 | E7: محسن مياه | F7: 20 | G7: =IFERROR(IF(E7<>"",7.05,""),"") -> 7.05 | H7: 141
A8: 5 | B8: الإثنين | C8: 2020-10-19 | D8: 706 | E8: محسن مياه | F8: 20 | G8: 7.05 | H8: 141
A9: 6 | B9: الأربعاء | C9: 2020-10-21 | D9: 729 | E9: محسن مياه | F9: 50 | G9: 7.05 | H9: 352.5
A10: 7 | B10: الأربعاء | C10: 2020-10-21 | D10: 735 | E10: محسن مياه | F10: 50 | G10: 7.05 | H10: 352.5
A11: 8 | B11: الأربعاء | C11: 2020-10-21 | D11: 743 | E11: محسن مياه | F11: 40 | G11: 7.05 | H11: 282
A12: 9 | B12: السبت | C12: 2020-10-24 | D12: 766 | E12: محسن مياه | F12: 111 | G12: 7.05 | H12: 782.55
A13: 10 | B13: الأحد | C13: 2020-10-25 | D13: 782 | E13: محسن مياه | F13: 164 | G13: 7.05 | H13: 1156.2
A14: 11 | B14: الإثنين | C14: 2020-10-26 | D14: 798 | E14: محسن مياه | F14: 102 | G14: 7.05 | H14: 719.1
A15: 12 | B15: الإثنين | C15: 2020-10-26 | D15: 799 | E15: محسن مياه | F15: 128 | G15: 7.05 | H15: 902.4
A16: 13 | B16: الاربعاء | C16: 2020-10-28 | D16: 808 | E16: محسن مياه | F16: 40 | G16: 7.05 | H16: 282
A17: 14 | B17: الاربعاء | C17: 2020-10-28 | D17: 821 | E17: محسن مياه | F17: 100 | G17: 7.05 | H17: 705
A18: 15 | B18: السبت | C18: 2020-10-31 | D18: 837 | E18: محسن مياه | F18: 130 | G18: 7.05 | H18: =IFERROR(IF(#REF!<>"",F18*G18,""),"") -> 
A19: 16 | B19: الثلاثاء | C19: 2020-11-03 | D19: 878 | E19: محسن مياه | F19: 25 | G19: 7.05 | H19: =IFERROR(IF(#REF!<>"",F19*G19,""),"") -> 
A20: 17 | B20: الثلاثاء | C20: 2020-11-03 | D20: 883 | E20: محسن مياه | F20: 25 | G20: 7.05 | H20: =IFERROR(IF(#REF!<>"",F20*G20,""),"") -> 
A21: 18 | B21: الأربعاء | C21: 2020-11-04 | D21: 897 | E21: محسن مياه | F21: 140 | G21: 7.05 | H21: =IFERROR(IF(#REF!<>"",F21*G21,""),"") -> 
A22: 19 | B22: الأربعاء | C22: 2020-11-04 | D22: 898 | E22: محسن مياه | F22: 50 | G22: 7.05 | H22: =IFERROR(IF(#REF!<>"",F22*G22,""),"") -> 
A23: 20 | B23: السبت | C23: 2020-11-07 | D23: 924 | E23: محسن مياه | F23: 50 | G23: 7.05 | H23: =IFERROR(IF(#REF!<>"",F23*G23,""),"") -> 
A24: 21 | B24: الأحد | C24: 2020-11-08 | D24: 955 | E24: محسن مياه | F24: 150 | G24: 7.05 | H24: =IFERROR(IF(#REF!<>"",F24*G24,""),"") -> 
A25: 22 | B25: الأحد | C25: 2020-11-08 | D25: 956 | E25: محسن مياه | F25: 50 | G25: 7.05 | H25: =IFERROR(IF(#REF!<>"",F25*G25,""),"") -> 
A26: 23 | B26: الثلاثاء | C26: 2020-11-10 | D26: 995 | E26: محسن مياه | F26: 220 | G26: 7.05 | H26: =IFERROR(IF(#REF!<>"",F26*G26,""),"") -> 
A27: 24 | B27: الثلاثاء | C27: 2020-11-10 | D27: 996 | E27: محسن مياه | F27: 50 | G27: 7.05 | H27: =IFERROR(IF(#REF!<>"",F27*G27,""),"") -> 
A28: 25 | B28: الثلاثاء | C28: 2020-11-10 | D28: 998 | E28: محسن مياه | F28: 80 | G28: 7.05 | H28: =IFERROR(IF(#REF!<>"",F28*G28,""),"") -> 
A29: 26 | B29: الأربعاء | C29: 2020-11-11 | D29: 1012 | E29: محسن مياه | F29: 200 | G29: 7.05 | H29: =IFERROR(IF(#REF!<>"",F29*G29,""),"") -> 
A30: 27 | B30: الأحد | C30: 2020-11-15 | D30: 1051 | E30: محسن مياه | F30: 300 | G30: 7.05 | H30: =IFERROR(IF(#REF!<>"",F30*G30,""),"") -> 
A31: 28 | B31: الأربعاء | C31: 2020-11-18 | D31: 1081 | E31: محسن مياه | F31: 50 | G31: 7.05 | H31: =IFERROR(IF(#REF!<>"",F31*G31,""),"") -> 
A32: 29 | B32: الأربعاء | C32: 2020-11-18 | D32: 1083 | E32: محسن مياه | F32: 100 | G32: 7.05 | H32: =IFERROR(IF(#REF!<>"",F32*G32,""),"") -> 
A33: 30 | B33: الأربعاء | C33: 2020-11-18 | D33: 1085 | E33: محسن مياه | F33: 50 | G33: 7.05 | H33: =IFERROR(IF(#REF!<>"",F33*G33,""),"") -> 
A34: 31 | B34: الإثنين | C34: 2020-11-23 | D34: 1144 | E34: محسن مياه | F34: 60 | G34: 7.05 | H34: =IFERROR(IF(#REF!<>"",F34*G34,""),"") -> 
A35: 32 | B35: الإثنين | C35: 2020-11-23 | D35: 1145 | E35: محسن مياه | F35: 100 | G35: 7.05 | H35: =IFERROR(IF(#REF!<>"",F35*G35,""),"") -> 
A36: 33 | B36: الأربعاء | C36: 2020-11-25 | D36: 1174 | E36: محسن مياه | F36: 70 | G36: 7.05 | H36: =IFERROR(IF(#REF!<>"",F36*G36,""),"") -> 
A37: 34 | B37: الأربعاء | C37: 2020-11-25 | D37: 1183 | E37: محسن مياه | F37: 50 | G37: 7.05 | H37: =IFERROR(IF(#REF!<>"",F37*G37,""),"") -> 
A38: 35 | B38: الأربعاء | C38: 2020-11-25 | D38: 1184 | E38: محسن مياه | F38: 50 | G38: 7.05 | H38: =IFERROR(IF(#REF!<>"",F38*G38,""),"") -> 
A39: 36 | B39: السبت | C39: 2020-11-28 | D39: 1210 | E39: محسن مياه | F39: 100 | G39: 7.05 | H39: =IFERROR(IF(#REF!<>"",F39*G39,""),"") -> 
A40: 37 | B40: الأحد | C40: 2020-11-29 | D40: 1221 | E40: محسن مياه | F40: 60 | G40: 7.05 | H40: =IFERROR(IF(#REF!<>"",F40*G40,""),"") -> 
A41: 38 | B41: الأربعاء | C41: 2020-12-02 | D41: 9 | E41: محسن مياه | F41: 80 | G41: 7.05 | H41: =IFERROR(IF(#REF!<>"",F41*G41,""),"") -> 
A42: 39 | B42: الأربعاء | C42: 2020-12-02 | D42: 12 | E42: محسن مياه | F42: 50 | G42: 7.05 | H42: =IFERROR(IF(#REF!<>"",F42*G42,""),"") -> 
A43: 40 | B43: الأربعاء | C43: 2020-12-02 | D43: 16 | E43: محسن مياه | F43: 40 | G43: 7.05 | H43: =IFERROR(IF(#REF!<>"",F43*G43,""),"") -> 
A44: 41 | B44: السبت | C44: 2020-12-05 | D44: 41 | E44: محسن مياه | F44: 100 | G44: 7.05 | H44: =IFERROR(IF(#REF!<>"",F44*G44,""),"") -> 
A45: 42 | B45: السبت | C45: 2020-12-05 | D45: 43 | E45: محسن مياه | F45: 100 | G45: 7.05 | H45: =IFERROR(IF(#REF!<>"",F45*G45,""),"") -> 
A46: 43 | B46: الأحد | C46: 2020-12-06 | D46: 1398 | E46: محسن مياه | F46: 100 | G46: 7.05 | H46: =IFERROR(IF(#REF!<>"",F46*G46,""),"") -> 
A47: 44 | B47: الاثنين | C47: 2020-12-07 | D47: 1302 | E47: محسن مياه | F47: 100 | G47: 7.05 | H47: =IFERROR(IF(#REF!<>"",F47*G47,""),"") -> 
A48: 45 | B48: الإثنين | C48: 2020-12-07 | D48: 1306 | E48: محسن مياه | F48: 50 | G48: 7.05 | H48: =IFERROR(IF(#REF!<>"",F48*G48,""),"") -> 
A49: 46 | B49: الأربعاء | C49: 2020-12-09 | D49: 1336 | E49: محسن مياه | F49: 50 | G49: 7.05 | H49: =IFERROR(IF(#REF!<>"",F49*G49,""),"") -> 
A50: 47 | B50: الأربعاء | C50: 2020-12-09 | D50: 1341 | E50: محسن مياه | F50: 50 | G50: 7.05 | H50: =IFERROR(IF(#REF!<>"",F50*G50,""),"") -> 
A51: 48 | B51: الأربعاء | C51: 2020-12-09 | D51: 1345 | E51: محسن مياه | F51: 70 | G51: 7.05 | H51: =IFERROR(IF(#REF!<>"",F51*G51,""),"") -> 
A52: 49 | B52: السبت | C52: 2020-12-12 | D52: 1377 | E52: محسن مياه | F52: 152 | G52: 7.05 | H52: =IFERROR(IF(#REF!<>"",F52*G52,""),"") -> 
A53: 50 | B53: السبت | C53: 2020-12-12 | D53: 1378 | E53: محسن مياه | F53: 48 | G53: 7.05 | H53: =IFERROR(IF(#REF!<>"",F53*G53,""),"") -> 
A54: 51 | B54: الإثنين | C54: 2020-12-14 | D54: 1420 | E54: محسن مياه | F54: 75 | G54: 7.05 | H54: =IFERROR(IF(#REF!<>"",F54*G54,""),"") -> 
A55: 52 | B55: الإثنين | C55: 2020-12-14 | D55: 1421 | E55: محسن مياه | F55: 50 | G55: 7.05 | H55: =IFERROR(IF(#REF!<>"",F55*G55,""),"") -> 
A56: 53 | B56: الإثنين | C56: 2020-12-14 | D56: 1426 | E56: محسن مياه | F56: 30 | G56: 7.05 | H56: =IFERROR(IF(#REF!<>"",F56*G56,""),"") -> 
A57: 54 | B57: الثلاثاء | C57: 2020-12-15 | D57: 1442 | E57: محسن مياه | F57: 50 | G57: 7.05 | H57: =IFERROR(IF(#REF!<>"",F57*G57,""),"") -> 
A58: 55 | B58: الثلاثاء | C58: 2020-12-15 | D58: 1443 | E58: محسن مياه | F58: 30 | G58: 7.05 | H58: =IFERROR(IF(#REF!<>"",F58*G58,""),"") -> 
A59: 56 | B59: الأربعاء | C59: 2020-12-16 | D59: 1455 | E59: محسن مياه | F59: 100 | G59: 7.05 | H59: =IFERROR(IF(#REF!<>"",F59*G59,""),"") -> 
A60: 57 | B60: الأربعاء | C60: 2020-12-16 | D60: 1459 | E60: محسن مياه | F60: 100 | G60: 7.05 | H60: =IFERROR(IF(#REF!<>"",F60*G60,""),"") -> 
A61: 58 | B61: الأحد | C61: 2020-12-20 | D61: 1490 | E61: محسن مياه | F61: 50 | G61: 7.05 | H61: =IFERROR(IF(#REF!<>"",F61*G61,""),"") -> 
A62: 59 | B62: الأحد | C62: 2020-12-20 | D62: 1491 | E62: محسن مياه | F62: 25 | G62: 7.05 | H62: =IFERROR(IF(#REF!<>"",F62*G62,""),"") -> 
A63: 60 | B63: الأحد | C63: 2020-12-20 | D63: 1492 | E63: محسن مياه | F63: 50 | G63: 7.05 | H63: =IFERROR(IF(#REF!<>"",F63*G63,""),"") -> 
A64: 61 | B64: الأحد | C64: 2020-12-20 | D64: 1493 | E64: محسن مياه | F64: 75 | G64: 7.05 | H64: =IFERROR(IF(#REF!<>"",F64*G64,""),"") -> 
A65: 62 | B65: الاثنين | C65: 2020-12-21 | D65: 1507 | E65: محسن مياه | F65: 75 | G65: 7.05 | H65: =IFERROR(IF(#REF!<>"",F65*G65,""),"") -> 
A66: 63 | B66: الإثنين | C66: 2020-12-21 | D66: 1513 | E66: محسن مياه | F66: 50 | G66: 7.05 | H66: =IFERROR(IF(#REF!<>"",F66*G66,""),"") -> 
A67: 64 | B67: الاربعاء | C67: 2020-12-23 | D67: 1528 | E67: محسن مياه | F67: 30 | G67: 7.05 | H67: =IFERROR(IF(#REF!<>"",F67*G67,""),"") -> 
A68: 65 | B68: الأربعاء | C68: 2020-12-23 | D68: 1532 | E68: محسن مياه | F68: 30 | G68: 7.05 | H68: =IFERROR(IF(#REF!<>"",F68*G68,""),"") -> 
A69: 66 | B69: الأربعاء | C69: 2020-12-23 | D69: 1535 | E69: محسن مياه | F69: 30 | G69: 7.05 | H69: =IFERROR(IF(#REF!<>"",F69*G69,""),"") -> 
A70: 67 | B70: السبت | C70: 2020-12-26 | D70: 1544 | E70: محسن مياه | F70: 75 | G70: 7.05 | H70: =IFERROR(IF(#REF!<>"",F70*G70,""),"") -> 

Sheet خالد 31
B3: اليوم | C3: التاريخ | D3: رقم الاذن | E3: اسم المقاول | F3: الكمية | G3: السعر | H3: القيمة
A4: 1 | B4: الاربعاء | C4: 2020-10-28 | D4: 816 | E4: خالد 31 | F4: 400 | G4: =IFERROR(IF(E4<>"",7.05,""),"") -> 7.05 | H4: =+F4*G4 -> 2820
A5: 2 | B5: السبت | C5: 2020-10-31 | D5: 828 | E5: خالد 31 | F5: 500 | G5: 7.05 | H5: =IFERROR(IF(#REF!<>"",F5*G5,""),"") -> 
A6: 3 | B6: الأحد | C6: 2020-11-01 | D6: 848 | E6: خالد 31 | F6: 675 | G6: 7.05 | H6: =IFERROR(IF(#REF!<>"",F6*G6,""),"") -> 
A7: 4 | B7: الثلاثاء | C7: 2020-11-03 | D7: 884 | E7: خالد 31 | F7: 350 | G7: 7.05 | H7: =IFERROR(IF(#REF!<>"",F7*G7,""),"") -> 
A8: 5 | B8: الأربعاء | C8: 2020-11-04 | D8: 895 | E8: خالد 31 | F8: 350 | G8: 7.05 | H8: =IFERROR(IF(#REF!<>"",F8*G8,""),"") -> 
A9: 6 | B9: السبت | C9: 2020-11-07 | D9: 932 | E9: خالد 31 | F9: 200 | G9: 7.05 | H9: =IFERROR(IF(#REF!<>"",F9*G9,""),"") -> 
A10: 7 | B10: الأحد | C10: 2020-11-08 | D10: 945 | E10: خالد 31 | F10: 200 | G10: 7.05 | H10: =IFERROR(IF(#REF!<>"",F10*G10,""),"") -> 
A11: 8 | B11: السبت | C11: 2020-11-14 | D11: 1022 | E11: خالد 31 | F11: 750 | G11: 7.05 | H11: =IFERROR(IF(#REF!<>"",F11*G11,""),"") -> 
A12: 9 | B12: الأحد | C12: 2020-11-15 | D12: 1044 | E12: خالد 31 | F12: 1300 | G12: 7.05 | H12: =IFERROR(IF(#REF!<>"",F12*G12,""),"") -> 
A13: 10 | B13: الاثنين | C13: 2020-11-16 | D13: 1060 | E13: خالد 31 | F13: 1100 | G13: 7.05 | H13: =IFERROR(IF(#REF!<>"",F13*G13,""),"") -> 
A14: 11 | B14: الأربعاء | C14: 2020-11-18 | D14: 1076 | E14: خالد 31 | F14: 1359 | G14: 7.05 | H14: =IFERROR(IF(#REF!<>"",F14*G14,""),"") -> 
A15: 12 | B15: السبت | C15: 2020-11-21 | D15: 1108 | E15: خالد 31 | F15: 1429 | G15: 7.05 | H15: =IFERROR(IF(#REF!<>"",F15*G15,""),"") -> 
A16: 13 | B16: الأحد | C16: 2020-11-22 | D16: 1119 | E16: خالد 31 | F16: 1300 | G16: 7.05 | H16: =IFERROR(IF(#REF!<>"",F16*G16,""),"") -> 
A17: 14 | B17: الاثنين | C17: 2020-11-23 | D17: 1135 | E17: خالد 31 | F17: 1200 | G17: 7.05 | H17: =IFERROR(IF(#REF!<>"",F17*G17,""),"") -> 
A18: 15 | B18: الثلاثاء | C18: 2020-11-24 | D18: 1158 | E18: خالد 31 | F18: 900 | G18: 7.05 | H18: =IFERROR(IF(#REF!<>"",F18*G18,""),"") -> 
A19: 16 | B19: الأربعاء | C19: 2020-11-25 | D19: 1177 | E19: خالد 31 | F19: 1250 | G19: 7.05 | H19: =IFERROR(IF(#REF!<>"",F19*G19,""),"") -> 
A20: 17 | B20: السبت | C20: 2020-11-28 | D20: 1209 | E20: خالد 31 | F20: 1000 | G20: 7.05 | H20: =IFERROR(IF(#REF!<>"",F20*G20,""),"") -> 
A21: 18 | B21: الاحد | C21: 2020-11-29 | D21: 1215 | E21: خالد 31 | F21: 700 | G21: 7.05 | H21: =IFERROR(IF(#REF!<>"",F21*G21,""),"") -> 
A22: 19 | B22: الإثنين | C22: 2020-11-30 | D22: 1237 | E22: خالد 31 | F22: 1300 | G22: 7.05 | H22: =IFERROR(IF(#REF!<>"",F22*G22,""),"") -> 
A23: 20 | B23: الأربعاء | C23: 2020-12-02 | D23: 5 | E23: خالد 31 | F23: 1150 | G23: 7.05 | H23: =IFERROR(IF(#REF!<>"",F23*G23,""),"") -> 
A24: 21 | B24: الخميس | C24: 2020-12-03 | D24: 25 | E24: خالد 31 | F24: 1200 | G24: 7.05 | H24: =IFERROR(IF(#REF!<>"",F24*G24,""),"") -> 
A25: 22 | B25: السبت | C25: 2020-12-05 | D25: 39 | E25: خالد 31 | F25: 485 | G25: 7.05 | H25: =IFERROR(IF(#REF!<>"",F25*G25,""),"") -> 
A26: 23 | B26: الأحد | C26: 2020-12-06 | D26: 1394 | E26: خالد 31 | F26: 1150 | G26: 7.05 | H26: =IFERROR(IF(#REF!<>"",F26*G26,""),"") -> 
A27: 24 | B27: الإثنين | C27: 2020-12-07 | D27: 1311 | E27: خالد 31 | F27: 1200 | G27: 7.05 | H27: =IFERROR(IF(#REF!<>"",F27*G27,""),"") -> 
A28: 25 | B28: الأربعاء | C28: 2020-12-09 | D28: 1338 | E28: خالد 31 | F28: 750 | G28: 7.05 | H28: =IFERROR(IF(#REF!<>"",F28*G28,""),"") -> 
A29: 26 | B29: الخميس | C29: 2020-12-10 | D29: 1366 | E29: خالد 31 | F29: 850 | G29: 7.05 | H29: =IFERROR(IF(#REF!<>"",F29*G29,""),"") -> 
A30: 27 | B30: السبت | C30: 2020-12-12 | D30: 1381 | E30: خالد 31 | F30: 850 | G30: 7.05 | H30: =IFERROR(IF(#REF!<>"",F30*G30,""),"") -> 
A31: 28 | B31: الإثنين | C31: 2020-12-14 | D31: 1419 | E31: خالد 31 | F31: 470 | G31: 7.05 | H31: =IFERROR(IF(#REF!<>"",F31*G31,""),"") -> 
A32: 29 | B32: الثلاثاء | C32: 2020-12-15 | D32: 1439 | E32: خالد 31 | F32: 150 | G32: 7.05 | H32: =IFERROR(IF(#REF!<>"",F32*G32,""),"") -> 
A33: 30 | B33: الأربعاء | C33: 2020-12-16 | D33: 1456 | E33: خالد 31 | F33: 318 | G33: 7.05 | H33: =IFERROR(IF(#REF!<>"",F33*G33,""),"") -> 

Sheet عربية الجيش
B3: اليوم | C3: التاريخ | D3: رقم الاذن | E3: اسم المقاول | F3: الكمية | G3: السعر | H3: القيمة
A4: 1 | B4: الأحد | C4: 2020-11-01 | D4: 856 | E4: عربية الجيش | F4: 36 | G4: =IFERROR(IF(E4<>"",7.05,""),"") -> 7.05 | H4: =IFERROR(IF(#REF!<>"",F4*G4,""),"") -> 
A5: 2 | B5: الأحد | C5: 2020-11-08 | D5: 963 | E5: عربية الجيش | F5: 80 | G5: 7.05 | H5: =IFERROR(IF(#REF!<>"",F5*G5,""),"") -> 
A6: 3 | B6: الأربعاء | C6: 2020-11-18 | D6: 1086 | E6: عربية الجيش | F6: 20 | G6: 7.05 | H6: =IFERROR(IF(#REF!<>"",F6*G6,""),"") -> 

Sheet السيد156
B3: اليوم | C3: التاريخ | D3: رقم الاذن | E3: اسم المقاول | F3: الكمية | G3: السعر | H3: القيمة
A4: 1 | B4: الثلاثاء | C4: 2020-11-03 | D4: 875 | E4: السيد156 | F4: 700 | G4: =IFERROR(IF(E4<>"",7.05,""),"") -> 7.05 | H4: =IFERROR(IF(#REF!<>"",F4*G4,""),"") -> 
A5: 2 | B5: الاربعاء | C5: 2020-11-04 | D5: 889 | E5: السيد156 | F5: 700 | G5: 7.05 | H5: =IFERROR(IF(#REF!<>"",F5*G5,""),"") -> 
A6: 3 | B6: السبت | C6: 2020-11-07 | D6: 923 | E6: السيد156 | F6: 800 | G6: 7.05 | H6: =IFERROR(IF(#REF!<>"",F6*G6,""),"") -> 
A7: 4 | B7: الأحد | C7: 2020-11-08 | D7: 946 | E7: السيد156 | F7: 800 | G7: 7.05 | H7: =IFERROR(IF(#REF!<>"",F7*G7,""),"") -> 
A8: 5 | B8: الأحد | C8: 2020-11-08 | D8: 969 | E8: السيد156 | F8: 900 | G8: 7.05 | H8: =IFERROR(IF(#REF!<>"",F8*G8,""),"") -> 
A9: 6 | B9: الثلاثاء | C9: 2020-11-10 | D9: 990 | E9: السيد156 | F9: 700 | G9: 7.05 | H9: =IFERROR(IF(#REF!<>"",F9*G9,""),"") -> 
A10: 7 | B10: الثلاثاء | C10: 2020-11-10 | D10: 991 | E10: السيد156 | F10: 50 | G10: 7.05 | H10: =IFERROR(IF(#REF!<>"",F10*G10,""),"") -> 
A11: 8 | B11: الأربعاء | C11: 2020-11-11 | D11: 1005 | E11: السيد156 | F11: 900 | G11: 7.05 | H11: =IFERROR(IF(#REF!<>"",F11*G11,""),"") -> 
A12: 9 | B12: السبت | C12: 2020-11-14 | D12: 1029 | E12: السيد156 | F12: 850 | G12: 7.05 | H12: =IFERROR(IF(#REF!<>"",F12*G12,""),"") -> 
A13: 10 | B13: الأحد | C13: 2020-11-15 | D13: 1043 | E13: السيد156 | F13: 700 | G13: 7.05 | H13: =IFERROR(IF(#REF!<>"",F13*G13,""),"") -> 
A14: 11 | B14: الاثنين | C14: 2020-11-16 | D14: 1059 | E14: السيد156 | F14: 550 | G14: 7.05 | H14: =IFERROR(IF(#REF!<>"",F14*G14,""),"") -> 
A15: 12 | B15: الأربعاء | C15: 2020-11-18 | D15: 1080 | E15: السيد156 | F15: 550 | G15: 7.05 | H15: =IFERROR(IF(#REF!<>"",F15*G15,""),"") -> 
A16: 13 | B16: السبت | C16: 2020-11-21 | D16: 1106 | E16: السيد156 | F16: 750 | G16: 7.05 | H16: =IFERROR(IF(#REF!<>"",F16*G16,""),"") -> 
A17: 14 | B17: الأحد | C17: 2020-11-22 | D17: 1125 | E17: السيد156 | F17: 700 | G17: 7.05 | H17: =IFERROR(IF(#REF!<>"",F17*G17,""),"") -> 
A18: 15 | B18: الإثنين | C18: 2020-11-23 | D18: 1139 | E18: السيد156 | F18: 700 | G18: 7.05 | H18: =IFERROR(IF(#REF!<>"",F18*G18,""),"") -> 
A19: 16 | B19: الثلاثاء | C19: 2020-11-24 | D19: 1161 | E19: السيد156 | F19: 700 | G19: 7.05 | H19: =IFERROR(IF(#REF!<>"",F19*G19,""),"") -> 
A20: 17 | B20: الأربعاء | C20: 2020-11-25 | D20: 1180 | E20: السيد156 | F20: 700 | G20: 7.05 | H20: =IFERROR(IF(#REF!<>"",F20*G20,""),"") -> 
A21: 18 | B21: السبت | C21: 2020-11-28 | D21: 1208 | E21: السيد156 | F21: 750 | G21: 7.05 | H21: =IFERROR(IF(#REF!<>"",F21*G21,""),"") -> 
A22: 19 | B22: الاحد | C22: 2020-11-29 | D22: 1214 | E22: السيد156 | F22: 850 | G22: 7.05 | H22: =IFERROR(IF(#REF!<>"",F22*G22,""),"") -> 
A23: 20 | B23: الأحد | C23: 2020-11-29 | D23: 1226 | E23: السيد156 | F23: 431 | G23: 7.05 | H23: =IFERROR(IF(#REF!<>"",F23*G23,""),"") -> 
A24: 21 | B24: الإثنين | C24: 2020-11-30 | D24: 1239 | E24: السيد156 | F24: 700 | G24: 7.05 | H24: =IFERROR(IF(#REF!<>"",F24*G24,""),"") -> 
A25: 22 | B25: الأربعاء | C25: 2020-12-02 | D25: 11 | E25: السيد156 | F25: 650 | G25: 7.05 | H25: =IFERROR(IF(#REF!<>"",F25*G25,""),"") -> 
A26: 23 | B26: الخميس | C26: 2020-12-03 | D26: 26 | E26: السيد156 | F26: 800 | G26: 7.05 | H26: =IFERROR(IF(#REF!<>"",F26*G26,""),"") -> 
A27: 24 | B27: السبت | C27: 2020-12-05 | D27: 37 | E27: السيد156 | F27: 800 | G27: 7.05 | H27: =IFERROR(IF(#REF!<>"",F27*G27,""),"") -> 
A28: 25 | B28: الأحد | C28: 2020-12-06 | D28: 1393 | E28: السيد156 | F28: 800 | G28: 7.05 | H28: =IFERROR(IF(#REF!<>"",F28*G28,""),"") -> 
A29: 26 | B29: الإثنين | C29: 2020-12-07 | D29: 1305 | E29: السيد156 | F29: 800 | G29: 7.05 | H29: =IFERROR(IF(#REF!<>"",F29*G29,""),"") -> 
A30: 27 | B30: الأربعاء | C30: 2020-12-09 | D30: 1339 | E30: السيد156 | F30: 600 | G30: 7.05 | H30: =IFERROR(IF(#REF!<>"",F30*G30,""),"") -> 
A31: 28 | B31: الخميس | C31: 2020-12-10 | D31: 1368 | E31: السيد156 | F31: 600 | G31: 7.05 | H31: =IFERROR(IF(#REF!<>"",F31*G31,""),"") -> 
A32: 29 | B32: السبت | C32: 2020-12-12 | D32: 1379 | E32: السيد156 | F32: 600 | G32: 7.05 | H32: =IFERROR(IF(#REF!<>"",F32*G32,""),"") -> 
A33: 30 | B33: الاثنين | C33: 2020-12-14 | D33: 1415 | E33: السيد156 | F33: 50 | G33: 7.05 | H33: =IFERROR(IF(#REF!<>"",F33*G33,""),"") -> 
A34: 31 | B34: الثلاثاء | C34: 2020-12-15 | D34: 1434 | E34: السيد156 | F34: 300 | G34: 7.05 | H34: =IFERROR(IF(#REF!<>"",F34*G34,""),"") -> 
A35: 32 | B35: الأربعاء | C35: 2020-12-16 | D35: 1462 | E35: السيد156 | F35: 250 | G35: 7.05 | H35: =IFERROR(IF(#REF!<>"",F35*G35,""),"") -> 

Sheet عنتر
B3: اليوم | C3: التاريخ | D3: رقم الاذن | E3: اسم المقاول | F3: الكمية | G3: السعر | H3: القيمة
A4: 1 | B4: السبت | C4: 2020-11-07 | D4: 926 | E4: عنتر | F4: 100 | G4: =IFERROR(IF(E4<>"",7.05,""),"") -> 7.05 | H4: =IFERROR(IF(#REF!<>"",F4*G4,""),"") -> 
A5: 2 | B5: الأحد | C5: 2020-11-08 | D5: 942 | E5: عنتر | F5: 353 | G5: 7.05 | H5: =IFERROR(IF(#REF!<>"",F5*G5,""),"") -> 
A6: 3 | B6: الاحد | C6: 2020-11-08 | D6: 958 | E6: عنتر | F6: 200 | G6: 7.05 | H6: =IFERROR(IF(#REF!<>"",F6*G6,""),"") -> 
A7: 4 | B7: الاحد | C7: 2020-11-08 | D7: 959 | E7: عنتر | F7: 350 | G7: 7.05 | H7: =IFERROR(IF(#REF!<>"",F7*G7,""),"") -> 
A8: 5 | B8: الثلاثاء | C8: 2020-11-10 | D8: 988 | E8: عنتر | F8: 600 | G8: 7.05 | H8: =IFERROR(IF(#REF!<>"",F8*G8,""),"") -> 
A9: 6 | B9: الاربعاء | C9: 2020-11-11 | D9: 1003 | E9: عنتر | F9: 600 | G9: 7.05 | H9: =IFERROR(IF(#REF!<>"",F9*G9,""),"") -> 
A10: 7 | B10: السبت | C10: 2020-11-14 | D10: 1021 | E10: عنتر | F10: 400 | G10: 7.05 | H10: =IFERROR(IF(#REF!<>"",F10*G10,""),"") -> 
A11: 8 | B11: السبت | C11: 2020-11-14 | D11: 1028 | E11: عنتر | F11: 300 | G11: 7.05 | H11: =IFERROR(IF(#REF!<>"",F11*G11,""),"") -> 
A12: 9 | B12: الاحد | C12: 2020-11-15 | D12: 1039 | E12: عنتر | F12: 900 | G12: 7.05 | H12: =IFERROR(IF(#REF!<>"",F12*G12,""),"") -> 
A13: 10 | B13: الإثنين | C13: 2020-11-16 | D13: 1061 | E13: عنتر | F13: 1200 | G13: 7.05 | H13: =IFERROR(IF(#REF!<>"",F13*G13,""),"") -> 
A14: 11 | B14: الاربعاء | C14: 2020-11-18 | D14: 1072 | E14: عنتر | F14: 1300 | G14: 7.05 | H14: =IFERROR(IF(#REF!<>"",F14*G14,""),"") -> 
A15: 12 | B15: الأربعاء | C15: 2020-11-18 | D15: 1084 | E15: عنتر | F15: 180 | G15: 7.05 | H15: =IFERROR(IF(#REF!<>"",F15*G15,""),"") -> 
A16: 13 | B16: السبت | C16: 2020-11-21 | D16: 1109 | E16: عنتر | F16: 750 | G16: 7.05 | H16: =IFERROR(IF(#REF!<>"",F16*G16,""),"") -> 
A17: 14 | B17: السبت | C17: 2020-11-21 | D17: 1111 | E17: عنتر | F17: 750 | G17: 7.05 | H17: =IFERROR(IF(#REF!<>"",F17*G17,""),"") -> 
A18: 15 | B18: الأحد | C18: 2020-11-22 | D18: 1121 | E18: عنتر | F18: 1320 | G18: 7.05 | H18: =IFERROR(IF(#REF!<>"",F18*G18,""),"") -> 
A19: 16 | B19: الإثنين | C19: 2020-11-23 | D19: 1137 | E19: عنتر | F19: 900 | G19: 7.05 | H19: =IFERROR(IF(#REF!<>"",F19*G19,""),"") -> 
A20: 17 | B20: الثلاثاء | C20: 2020-11-24 | D20: 1156 | E20: عنتر | F20: 700 | G20: 7.05 | H20: =IFERROR(IF(#REF!<>"",F20*G20,""),"") -> 
A21: 18 | B21: الأربعاء | C21: 2020-11-25 | D21: 1178 | E21: عنتر | F21: 840 | G21: 7.05 | H21: =IFERROR(IF(#REF!<>"",F21*G21,""),"") -> 
A22: 19 | B22: السبت | C22: 2020-11-28 | D22: 1204 | E22: عنتر | F22: 818 | G22: 7.05 | H22: =IFERROR(IF(#REF!<>"",F22*G22,""),"") -> 
A23: 20 | B23: الأحد | C23: 2020-11-29 | D23: 1217 | E23: عنتر | F23: 1096 | G23: 7.05 | H23: =IFERROR(IF(#REF!<>"",F23*G23,""),"") -> 
A24: 21 | B24: الإثنين | C24: 2020-11-30 | D24: 1240 | E24: عنتر | F24: 800 | G24: 7.05 | H24: =IFERROR(IF(#REF!<>"",F24*G24,""),"") -> 
A25: 22 | B25: الأربعاء | C25: 2020-12-02 | D25: 6 | E25: عنتر | F25: 900 | G25: 7.05 | H25: =IFERROR(IF(#REF!<>"",F25*G25,""),"") -> 
A26: 23 | B26: الخميس | C26: 2020-12-03 | D26: 28 | E26: عنتر | F26: 450 | G26: 7.05 | H26: =IFERROR(IF(#REF!<>"",F26*G26,""),"") -> 
A27: 24 | B27: السبت | C27: 2020-12-05 | D27: 38 | E27: عنتر | F27: 450 | G27: 7.05 | H27: =IFERROR(IF(#REF!<>"",F27*G27,""),"") -> 
A28: 25 | B28: الأحد | C28: 2020-12-06 | D28: 1396 | E28: عنتر | F28: 750 | G28: 7.05 | H28: =IFERROR(IF(#REF!<>"",F28*G28,""),"") -> 
A29: 26 | B29: الإثنين | C29: 2020-12-07 | D29: 1312 | E29: عنتر | F29: 440 | G29: 7.05 | H29: =IFERROR(IF(#REF!<>"",F29*G29,""),"") -> 
A30: 27 | B30: الأربعاء | C30: 2020-12-09 | D30: 1337 | E30: عنتر | F30: 850 | G30: 7.05 | H30: =IFERROR(IF(#REF!<>"",F30*G30,""),"") -> 
A31: 28 | B31: الخميس | C31: 2020-12-10 | D31: 1365 | E31: عنتر | F31: 850 | G31: 7.05 | H31: =IFERROR(IF(#REF!<>"",F31*G31,""),"") -> 
A32: 29 | B32: السبت | C32: 2020-12-12 | D32: 1380 | E32: عنتر | F32: 900 | G32: 7.05 | H32: =IFERROR(IF(#REF!<>"",F32*G32,""),"") -> 
A33: 30 | B33: الإثنين | C33: 2020-12-14 | D33: 1418 | E33: عنتر | F33: 950 | G33: 7.05 | H33: =IFERROR(IF(#REF!<>"",F33*G33,""),"") -> 
A34: 31 | B34: الثلاثاء | C34: 2020-12-15 | D34: 1435 | E34: عنتر | F34: 1170 | G34: 7.05 | H34: =IFERROR(IF(#REF!<>"",F34*G34,""),"") -> 
A35: 32 | B35: الأربعاء | C35: 2020-12-16 | D35: 1461 | E35: عنتر | F35: 443 | G35: 7.05 | H35: =IFERROR(IF(#REF!<>"",F35*G35,""),"") -> 
A36: 33 | B36: الأحد | C36: 2020-12-20 | D36: 1496 | E36: عنتر | F36: 567 | G36: 7.05 | H36: =IFERROR(IF(#REF!<>"",F36*G36,""),"") -> 
A37: 34 | B37: الإثنين | C37: 2020-12-21 | D37: 1514 | E37: عنتر | F37: 931 | G37: 7.05 | H37: =IFERROR(IF(#REF!<>"",F37*G37,""),"") -> 
A38: 35 | B38: الأربعاء | C38: 2020-12-23 | D38: 1533 | E38: عنتر | F38: 400 | G38: 7.05 | H38: =IFERROR(IF(#REF!<>"",F38*G38,""),"") -> 
A39: 36 | B39: السبت | C39: 2020-12-26 | D39: 1549 | E39: عنتر | F39: 600 | G39: 7.05 | H39: =IFERROR(IF(#REF!<>"",F39*G39,""),"") -> 
A40: 37 | B40: الأحد | C40: 2020-12-27 | D40: 1565 | E40: عنتر | F40: 300 | G40: 7.05 | H40: =IFERROR(IF(#REF!<>"",F40*G40,""),"") -> 
A41: 38 | B41: الثلاثاء | C41: 2020-12-29 | D41: 1579 | E41: عنتر | F41: 500 | G41: 7.05 | H41: =IFERROR(IF(#REF!<>"",F41*G41,""),"") -> 
A42: 39 | B42: الثلاثاء | C42: 2020-12-29 | D42: 1580 | E42: عنتر | F42: 2000 | G42: 7.05 | H42: =IFERROR(IF(#REF!<>"",F42*G42,""),"") -> 
A43: 40 | B43: الأحد | C43: 2021-01-03 | D43: 1594 | E43: عنتر | F43: 700 | G43: 7.05 | H43: =IFERROR(IF(#REF!<>"",F43*G43,""),"") -> 

Sheet رجب طرق
B3: اليوم | C3: التاريخ | D3: رقم الاذن | E3: اسم المقاول | F3: الكمية | G3: السعر | H3: القيمة
A4: 1 | B4: الإثنين | C4: 2020-11-23 | D4: 1138 | E4: رجب طرق | F4: 400 | G4: =IFERROR(IF(E4<>"",7.05,""),"") -> 7.05 | H4: =IFERROR(IF(#REF!<>"",F4*G4,""),"") -> 
A5: 2 | B5: الثلاثاء | C5: 2020-11-24 | D5: 1157 | E5: رجب طرق | F5: 331 | G5: 7.05 | H5: =IFERROR(IF(#REF!<>"",F5*G5,""),"") -> 
A6: 3 | B6: الأربعاء | C6: 2020-11-25 | D6: 1176 | E6: رجب طرق | F6: 200 | G6: 7.05 | H6: =IFERROR(IF(#REF!<>"",F6*G6,""),"") -> 
A7: 4 | B7: السبت | C7: 2020-11-28 | D7: 1203 | E7: رجب طرق | F7: 400 | G7: 7.05 | H7: =IFERROR(IF(#REF!<>"",F7*G7,""),"") -> 
A8: 5 | B8: الأحد | C8: 2020-11-29 | D8: 1222 | E8: رجب طرق | F8: 200 | G8: 7.05 | H8: =IFERROR(IF(#REF!<>"",F8*G8,""),"") -> 
A9: 6 | B9: الإثنين | C9: 2020-11-30 | D9: 1236 | E9: رجب طرق | F9: 400 | G9: 7.05 | H9: =IFERROR(IF(#REF!<>"",F9*G9,""),"") -> 
A10: 7 | B10: الأربعاء | C10: 2020-12-02 | D10: 4 | E10: رجب طرق | F10: 200 | G10: 7.05 | H10: =IFERROR(IF(#REF!<>"",F10*G10,""),"") -> 
A11: 8 | B11: الأربعاء | C11: 2020-12-02 | D11: 15 | E11: رجب طرق | F11: 200 | G11: 7.05 | H11: =IFERROR(IF(#REF!<>"",F11*G11,""),"") -> 
A12: 9 | B12: الخميس | C12: 2020-12-03 | D12: 19 | E12: رجب طرق | F12: 450 | G12: 7.05 | H12: =IFERROR(IF(#REF!<>"",F12*G12,""),"") -> 
A13: 10 | B13: الخميس | C13: 2020-12-03 | D13: 20 | E13: رجب طرق | F13: 200 | G13: 7.05 | H13: =IFERROR(IF(#REF!<>"",F13*G13,""),"") -> 
A14: 11 | B14: السبت | C14: 2020-12-05 | D14: 33 | E14: رجب طرق | F14: 750 | G14: 7.05 | H14: =IFERROR(IF(#REF!<>"",F14*G14,""),"") -> 
A15: 12 | B15: الأحد | C15: 2020-12-06 | D15: 1391 | E15: رجب طرق | F15: 600 | G15: 7.05 | H15: =IFERROR(IF(#REF!<>"",F15*G15,""),"") -> 
A16: 13 | B16: الأحد | C16: 2020-12-06 | D16: 1401 | E16: رجب طرق | F16: 100 | G16: 7.05 | H16: =IFERROR(IF(#REF!<>"",F16*G16,""),"") -> 
A17: 14 | B17: الإثنين | C17: 2020-12-07 | D17: 1304 | E17: رجب طرق | F17: 600 | G17: 7.05 | H17: =IFERROR(IF(#REF!<>"",F17*G17,""),"") -> 
A18: 15 | B18: الإثنين | C18: 2020-12-07 | D18: 1315 | E18: رجب طرق | F18: 200 | G18: 7.05 | H18: =IFERROR(IF(#REF!<>"",F18*G18,""),"") -> 
A19: 16 | B19: الأربعاء | C19: 2020-12-09 | D19: 1335 | E19: رجب طرق | F19: 700 | G19: 7.05 | H19: =IFERROR(IF(#REF!<>"",F19*G19,""),"") -> 
A20: 17 | B20: الخميس | C20: 2020-12-10 | D20: 1359 | E20: رجب طرق | F20: 700 | G20: 7.05 | H20: =IFERROR(IF(#REF!<>"",F20*G20,""),"") -> 
A21: 18 | B21: السبت | C21: 2020-12-12 | D21: 1383 | E21: رجب طرق | F21: 820 | G21: 7.05 | H21: =IFERROR(IF(#REF!<>"",F21*G21,""),"") -> 
A22: 19 | B22: الاثنين | C22: 2020-12-14 | D22: 1416 | E22: رجب طرق | F22: 1000 | G22: 7.05 | H22: =IFERROR(IF(#REF!<>"",F22*G22,""),"") -> 
A23: 20 | B23: الإثنين | C23: 2020-12-14 | D23: 1423 | E23: رجب طرق | F23: 200 | G23: 7.05 | H23: =IFERROR(IF(#REF!<>"",F23*G23,""),"") -> 
A24: 21 | B24: الثلاثاء | C24: 2020-12-15 | D24: 1433 | E24: رجب طرق | F24: 1200 | G24: 7.05 | H24: =IFERROR(IF(#REF!<>"",F24*G24,""),"") -> 
A25: 22 | B25: الأربعاء | C25: 2020-12-16 | D25: 1454 | E25: رجب طرق | F25: 1550 | G25: 7.05 | H25: =IFERROR(IF(#REF!<>"",F25*G25,""),"") -> 
A26: 23 | B26: الأربعاء | C26: 2020-12-16 | D26: 1464 | E26: رجب طرق | F26: 200 | G26: 7.05 | H26: =IFERROR(IF(#REF!<>"",F26*G26,""),"") -> 
A27: 24 | B27: الأحد | C27: 2020-12-20 | D27: 1487 | E27: رجب طرق | F27: 1300 | G27: 7.05 | H27: =IFERROR(IF(#REF!<>"",F27*G27,""),"") -> 
A28: 25 | B28: الإثنين | C28: 2020-12-21 | D28: 1512 | E28: رجب طرق | F28: 1394 | G28: 7.05 | H28: =IFERROR(IF(#REF!<>"",F28*G28,""),"") -> 
A29: 26 | B29: الأربعاء | C29: 2020-12-23 | D29: 1530 | E29: رجب طرق | F29: 1750 | G29: 7.05 | H29: =IFERROR(IF(#REF!<>"",F29*G29,""),"") -> 
A30: 27 | B30: السبت | C30: 2020-12-26 | D30: 1547 | E30: رجب طرق | F30: 1650 | G30: 7.05 | H30: =IFERROR(IF(#REF!<>"",F30*G30,""),"") -> 
A31: 28 | B31: الاحد | C31: 2020-12-27 | D31: 1563 | E31: رجب طرق | F31: 1850 | G31: 7.05 | H31: =IFERROR(IF(#REF!<>"",F31*G31,""),"") -> 
A32: 29 | B32: الثلاثاء | C32: 2020-12-29 | D32: 1577 | E32: رجب طرق | F32: 1792 | G32: 7.05 | H32: =IFERROR(IF(#REF!<>"",F32*G32,""),"") -> 
A33: 30 | B33: الاحد | C33: 2021-01-03 | D33: 1591 | E33: رجب طرق | F33: 2300 | G33: 7.05 | H33: =IFERROR(IF(#REF!<>"",F33*G33,""),"") -> 

Sheet جابر 59
B3: اليوم | C3: التاريخ | D3: رقم الاذن | E3: اسم المقاول | F3: الكمية | G3: السعر | H3: القيمة
A4: 1 | B4: السبت | C4: 2020-11-28 | D4: 1207 | E4: جابر 59 | F4: 402 | G4: =IFERROR(IF(E4<>"",7.05,""),"") -> 7.05 | H4: =IFERROR(IF(#REF!<>"",F4*G4,""),"") -> 
A5: 2 | B5: الأحد | C5: 2020-11-29 | D5: 1224 | E5: جابر 59 | F5: 400 | G5: 7.05 | H5: =IFERROR(IF(#REF!<>"",F5*G5,""),"") -> 
A6: 3 | B6: الإثنين | C6: 2020-11-30 | D6: 1245 | E6: جابر 59 | F6: 387 | G6: 7.05 | H6: =IFERROR(IF(#REF!<>"",F6*G6,""),"") -> 
A7: 4 | B7: الأربعاء | C7: 2020-12-02 | D7: 7 | E7: جابر 59 | F7: 600 | G7: 7.05 | H7: =IFERROR(IF(#REF!<>"",F7*G7,""),"") -> 
A8: 5 | B8: الخميس | C8: 2020-12-03 | D8: 23 | E8: جابر 59 | F8: 700 | G8: 7.05 | H8: =IFERROR(IF(#REF!<>"",F8*G8,""),"") -> 
A9: 6 | B9: الخميس | C9: 2020-12-03 | D9: 31 | E9: جابر 59 | F9: 323 | G9: 7.05 | H9: =IFERROR(IF(#REF!<>"",F9*G9,""),"") -> 
A10: 7 | B10: السبت | C10: 2020-12-05 | D10: 35 | E10: جابر 59 | F10: 700 | G10: 7.05 | H10: =IFERROR(IF(#REF!<>"",F10*G10,""),"") -> 
A11: 8 | B11: الاحد | C11: 2020-12-06 | D11: 1389 | E11: جابر 59 | F11: 1200 | G11: 7.05 | H11: =IFERROR(IF(#REF!<>"",F11*G11,""),"") -> 
A12: 9 | B12: الإثنين | C12: 2020-12-07 | D12: 1307 | E12: جابر 59 | F12: 700 | G12: 7.05 | H12: =IFERROR(IF(#REF!<>"",F12*G12,""),"") -> 
A13: 10 | B13: الأربعاء | C13: 2020-12-09 | D13: 1342 | E13: جابر 59 | F13: 750 | G13: 7.05 | H13: =IFERROR(IF(#REF!<>"",F13*G13,""),"") -> 
A14: 11 | B14: الخميس | C14: 2020-12-10 | D14: 1362 | E14: جابر 59 | F14: 1270 | G14: 7.05 | H14: =IFERROR(IF(#REF!<>"",F14*G14,""),"") -> 
A15: 12 | B15: الخميس | C15: 2020-12-10 | D15: 1373 | E15: جابر 59 | F15: 34 | G15: 7.05 | H15: =IFERROR(IF(#REF!<>"",F15*G15,""),"") -> 
A16: 13 | B16: السبت | C16: 2020-12-12 | D16: 1384 | E16: جابر 59 | F16: 1500 | G16: 7.05 | H16: =IFERROR(IF(#REF!<>"",F16*G16,""),"") -> 
A17: 14 | B17: الإثنين | C17: 2020-12-14 | D17: 1425 | E17: جابر 59 | F17: 2261 | G17: 7.05 | H17: =IFERROR(IF(#REF!<>"",F17*G17,""),"") -> 
A18: 15 | B18: الثلاثاء | C18: 2020-12-15 | D18: 1437 | E18: جابر 59 | F18: 2200 | G18: 7.05 | H18: =IFERROR(IF(#REF!<>"",F18*G18,""),"") -> 
A19: 16 | B19: الأربعاء | C19: 2020-12-16 | D19: 1458 | E19: جابر 59 | F19: 1000 | G19: 7.05 | H19: =IFERROR(IF(#REF!<>"",F19*G19,""),"") -> 
A20: 17 | B20: الأحد | C20: 2020-12-20 | D20: 1489 | E20: جابر 59 | F20: 1720 | G20: 7.05 | H20: =IFERROR(IF(#REF!<>"",F20*G20,""),"") -> 
A21: 18 | B21: الإثنين | C21: 2020-12-21 | D21: 1516 | E21: جابر 59 | F21: 1600 | G21: 7.05 | H21: =IFERROR(IF(#REF!<>"",F21*G21,""),"") -> 
A22: 19 | B22: الأربعاء | C22: 2020-12-23 | D22: 1537 | E22: جابر 59 | F22: 2250 | G22: 7.05 | H22: =IFERROR(IF(#REF!<>"",F22*G22,""),"") -> 
A23: 20 | B23: السبت | C23: 2020-12-26 | D23: 1551 | E23: جابر 59 | F23: 2110 | G23: 7.05 | H23: =IFERROR(IF(#REF!<>"",F23*G23,""),"") -> 
A24: 21 | B24: الأحد | C24: 2020-12-27 | D24: 1568 | E24: جابر 59 | F24: 2495 | G24: 7.05 | H24: =IFERROR(IF(#REF!<>"",F24*G24,""),"") -> 
A25: 22 | B25: الأحد | C25: 2021-01-03 | D25: 1595 | E25: جابر 59 | F25: 1000 | G25: 7.05 | H25: =IFERROR(IF(#REF!<>"",F25*G25,""),"") -> 

Sheet الشركة
B3: اليوم | C3: التاريخ | D3: رقم الاذن | E3: اسم المقاول | F3: الكمية | G3: السعر | H3: القيمة
A4: 1 | B4: السبت | C4: 2020-12-05 | D4: 45 | E4: الشركة | F4: 161 | G4: =IFERROR(IF(E4<>"",7.05,""),"") -> 7.05 | H4: =IFERROR(IF(#REF!<>"",F4*G4,""),"") -> 
A5: 2 | B5: الإثنين | C5: 2020-12-07 | D5: 1309 | E5: الشركة | F5: 147 | G5: 7.05 | H5: =IFERROR(IF(#REF!<>"",F5*G5,""),"") -> 
A6: 3 | B6: الإثنين | C6: 2020-12-14 | D6: 1429 | E6: الشركة | F6: 50 | G6: 7.05 | H6: =IFERROR(IF(#REF!<>"",F6*G6,""),"") -> 
A7: 4 | B7: الأربعاء | C7: 2020-12-16 | D7: 1463 | E7: الشركة | F7: 40 | G7: 7.05 | H7: =IFERROR(IF(#REF!<>"",F7*G7,""),"") -> 

Sheet الشركة 23
B3: اليوم | C3: التاريخ | D3: رقم الاذن | E3: اسم المقاول | F3: الكمية | G3: السعر | H3: القيمة
A4: 1 | B4: الأحد | C4: 2020-12-20 | D4: 1499 | E4: الشركة 23 | F4: 171 | G4: =IFERROR(IF(E4<>"",7.05,""),"") -> 7.05 | H4: =IFERROR(IF(#REF!<>"",F4*G4,""),"") -> 
A5: 2 | B5: الإثنين | C5: 2020-12-21 | D5: 1517 | E5: الشركة 23 | F5: 100 | G5: 7.05 | H5: =IFERROR(IF(#REF!<>"",F5*G5,""),"") -> 
A6: 3 | B6: الأربعاء | C6: 2020-12-23 | D6: 1534 | E6: الشركة 23 | F6: 35 | G6: 7.05 | H6: =IFERROR(IF(#REF!<>"",F6*G6,""),"") -> 
A7: 4 | B7: السبت | C7: 2020-12-26 | D7: 1545 | E7: الشركة 23 | F7: 65 | G7: 7.05 | H7: =IFERROR(IF(#REF!<>"",F7*G7,""),"") -> 
A8: 5 | B8: الأحد | C8: 2020-12-27 | D8: 1567 | E8: الشركة 23 | F8: 25 | G8: 7.05 | H8: =IFERROR(IF(#REF!<>"",F8*G8,""),"") -> 
